Workbook

Sheet 啟用巨集說明 (hidden)
A1: ▲本件excel檔內有巨集程式，開啟excel檔時，如出現以下畫面，請依如下步驟處理：
A13: 1.在excel中點選「工具」-「選項」-「安全性」-「巨集安全性」
A31: 2.在「安全性層級」頁面，點選「中」，再按「確定」
A49: 3.重新開啟本件excel檔，出現以下畫面，點選「啟用巨集」

Sheet 封面
A2: 中 華 民 國 110 年 度
A3: (自110年1月1日起至110年12月31日止)
A5: 各直轄市及縣(市)總預算彙編
A7: 行政院主計總處編

Sheet 目錄
A1: 110年度各直轄市及縣(市)總預算彙編目次
A3: 一、 | B3: 總說明- - - - - - - - - - - - - - - - - - - - - | D3: - - - - - - - - - 1
A4: 二、 | B4: 歲入歲出簡明比較分析表 - - - - - - | D4: - - - - - - - -10
A5: 三、 | B5: 歲入歲出性質及餘絀簡明比較分析表 - - - - - 12
A6: 四、 | B6: 歲入歲出性質及餘絀簡明分析表 - | D6: - - - - - - - - 14
A7: 五、 | B7: 收支簡明比較分析表 - - - - - - - - - | D7: - - - - - - - - 18
A8: 六、 | B8: 收支簡明分析表 - - - - - - - - - - - - - - | D8: - - - - - - - - 19
A9: 七、 | B9: 歲入來源別預算總表 - - - - - - - - - - - - | D9: - - - - - - - - 21
A10: 八、 | B10: 歲出政事別預算總表 - - - - - - - - - - - - | D10: - - - - - - - - 32
A11: 九、 | B11: 歲出機關別預算總表 - - - - - - - - - - - - | D11: - - - - - - - - 62
A12: 十、 | B12: 歲出一級用途別科目分析總表 - - - - - - - - - - - - | D12: - - - - - - - - 68
A13: 十一、 | B13: 資本支出分析總表 - - - - - - - - - - - - | D13: - - - - - - - - 72
A14: 十二、 | B14: 歲出人事費彙計表 - - - - - - - - - - - - | D14: - - - - - - - - 74
A15: 十三、 | B15: 附各鄉(鎮、市)及直轄市山地原住民區總預算彙編
B16: (一) | C16: 歲入歲出簡明比較分析表 - - - - - - | D16: - - - - - - - - 78
B17: (二) | C17: 歲入歲出性質及餘絀簡明比較分析表 - 80
B18: (三) | C18: 收支簡明比較分析表 - - - - - - - | D18: - - - - - - - - 82
B19: (四) | C19: 歲入來源別預算總表 - - - - - - - | D19: - - - - - - - - 83
B20: (五) | C20: 歲出政事別預算總表 - - - - - - - | D20: - - - - - - - - 92
B21: (六) | C21: 歲出一級用途別科目分析總表 - - - - - - | D21: - - - - - - - 116
B22: (七) | C22: 資本支出分析總表 - - - - - - - - | D22: - - - - - - - 120
B23: (八) | C23: 歲出人事費彙計表 - - - - - - - - - | D23: - - - - - - - 122

Sheet 簡明總
D1: 各直轄市及縣(市) | E1: 總預算彙編
D2: 歲 入 歲 出 簡 明 | E2: 比 較 分 析 表
D3: 中 華 民 國 | E3: =[1]簡明總!$E$3 -> 110 年 度 | H3: 單位：新臺幣千元
A4: 項 目 | B4: 本年度預算數 | D4: 上年度預 | E4: 算數 | F4: 前年度決算數 | H4: 本年度與上年度比較
B5: 金 額 | C5: 百分比 | D5: 金 額 | E5: 百分比 | F5: 金 額 | G5: 百分比 | H5: 金 額 | I5: 增加率
A6: 一、歲入合計 | B6: 1216714380 | C6: 100 | D6: 1161540109 | E6: 100 | F6: 1141250941 | G6: 100 | H6: 55174271 | I6: 4.750096064
A7: 1.稅課收入 | B7: 621974507 | C7: 51.12 | D7: 609969791 | E7: 52.51 | F7: 632157518 | G7: 55.39 | H7: 12004716 | I7: 1.968083695
A8: 2.工程受益費收入 | B8: 2 | C8: 0 | D8: 2 | E8: 0 | F8: 2920 | G8: 0 | H8: 0 | I8: 0
A9: 3.罰款及賠償收入 | B9: 18545628 | C9: 1.52 | D9: 17767552 | E9: 1.53 | F9: 22122507 | G9: 1.94 | H9: 778076 | I9: 4.379196414
A10: 4.規費收入 | B10: 36923902 | C10: 3.03 | D10: 35614360 | E10: 3.07 | F10: 37160458 | G10: 3.26 | H10: 1309542 | I10: 3.677005567
A11: 5.信託管理收入 | B11: 182 | C11: 0 | D11: 182 | E11: 0 | F11: 186 | G11: 0 | H11: 0 | I11: 0
A12: 6.財產收入 | B12: 25830965 | C12: 2.12 | D12: 24557360 | E12: 2.11 | F12: 18164012 | G12: 1.59 | H12: 1273605 | I12: 5.18624559
A13: 7.營業盈餘及事業收入 | B13: 45419606 | C13: 3.73 | D13: 46165501 | E13: 3.97 | F13: 31505067 | G13: 2.76 | H13: -745895 | I13: -1.615697835
A14: 8.補助及協助收入 | B14: 433909078 | C14: 35.67 | D14: 398538594 | E14: 34.32 | F14: 366152011 | G14: 32.08 | H14: 35370484 | I14: 8.875046114
A15: 9.捐獻及贈與收入 | B15: 7368243 | C15: 0.61 | D15: 6436762 | E15: 0.55 | F15: 6990108 | G15: 0.61 | H15: 931481 | I15: 14.47126676
A16: 10.自治稅捐收入 | B16: 0 | C16: 0 | D16: 0 | E16: 0 | F16: 0 | G16: 0 | H16: 0 | I16: 0
A17: 10.其他收入 | B17: 26742267 | C17: 2.2 | D17: 22490005 | E17: 1.94 | F17: 26996154 | G17: 2.37 | H17: 4252262 | I17: 18.90734128
A19: 二、歲出合計 | B19: 1286694974 | C19: 100 | D19: 1228999632 | E19: 100 | F19: 1133730882 | G19: 100 | H19: 57695342 | I19: 4.69449628
A20: 1.一般政務支出 | B20: 219197292 | C20: 17.04 | D20: 218113368 | E20: 17.75 | F20: 205328434 | G20: 18.11 | H20: 1083924 | I20: 0.4969544095
A21: 2.教育科學文化支出 | B21: 477168700 | C21: 37.09 | D21: 434914805 | E21: 35.39 | F21: 404258820 | G21: 35.66 | H21: 42253895 | I21: 9.715441855
A22: 3.經濟發展支出 | B22: 205722602 | C22: 15.99 | D22: 198745069 | E22: 16.17 | F22: 206323705 | G22: 18.2 | H22: 6977533 | I22: 3.510795531
A23: 4.社會福利支出 | B23: 215565789 | C23: 16.75 | D23: 207741699 | E23: 16.9 | F23: 176133774 | G23: 15.54 | H23: 7824090 | I23: 3.76625879
A24: 5.社區發展及環境保護支出 | B24: 73222829 | C24: 5.69 | D24: 75317582 | E24: 6.13 | F24: 68270340 | G24: 6.02 | H24: -2094753 | I24: -2.781227098
A25: 6.退休撫卹支出 | B25: 61420694 | C25: 4.77 | D25: 60135381 | E25: 4.89 | F25: 55119401 | G25: 4.86 | H25: 1285313 | I25: 2.137365688
A26: 7.債務支出 | B26: 8358688 | C26: 0.65 | D26: 8628654 | E26: 0.7 | F26: 6148538 | G26: 0.54 | H26: -269966 | I26: -3.128715093
A27: 8.補助及其他支出 | B27: 26038380 | C27: 2.02 | D27: 25403074 | E27: 2.07 | F27: 12147870 | G27: 1.07 | H27: 635306 | I27: 2.500902056
A29: 三、歲入歲出餘絀 | B29: -69980594 | D29: -67459523 | F29: 7520059 | H29: -2521071
A30: 備註:本(110)年度金門縣為總預算案。

Sheet 收支總
D1: 各直轄市及縣(市) | E1: 總預算彙編
D2: 歲 入 歲 出 性 質 及 餘 | E2: 絀 簡 明 比 較 分 析 表
D3: 中 華 民 國 | E3: =簡明總!E3 -> 110 年 度 | I3: 單位：新臺幣千元
A4: 項 目 | B4: 本 年 度 預 算 數 | D4: 上 年 度 預 算 | E4: 數 | F4: 前 年 度 決 算 數 | H4: 本年度與上年度比較
A5: 一、經常門 | B5: 金 額 | C5: 百分比 | D5: 金 額 | E5: 百分比 | F5: 金 額 | G5: 百分比 | H5: 金 額 | I5: 增加率
A6: (一)歲入 | B6: 1200192793 | C6: 100 | D6: 1148486865 | E6: 100 | F6: 1131787916 | G6: 100 | H6: 51705928 | I6: 4.5
A7: 1.直接稅收入 | B7: 368549482 | C7: 30.71 | D7: 363066837 | E7: 31.61 | F7: 383570844 | G7: 33.89 | H7: 5482645 | I7: 1.51
A8: 2.間接稅收入 | B8: 253425025 | C8: 21.12 | D8: 246902954 | E8: 21.5 | F8: 248586674 | G8: 21.96 | H8: 6522071 | I8: 2.64
A9: 3.賦稅外收入 | B9: 578218286 | C9: 48.17 | D9: 538517074 | E9: 46.89 | F9: 499630398 | G9: 44.15 | H9: 39701212 | I9: 7.37
A10: (二)歲出 | B10: 1008413505 | C10: 100 | D10: 975414193 | E10: 100 | F10: 883477210 | G10: 100 | H10: 32999312 | I10: 3.38
A11: 1.一般經常支出 | B11: 994691007 | C11: 98.64 | D11: 961936568 | E11: 98.62 | F11: 877145973 | G11: 99.28 | H11: 32754439 | I11: 3.41
A12: 2.債務利息及事務支出 | B12: 8358688 | C12: 0.83 | D12: 8628654 | E12: 0.88 | F12: 6148538 | G12: 0.7 | H12: -269966 | I12: -3.13
A13: 3.預備金 | B13: 5363810 | C13: 0.53 | D13: 4848971 | E13: 0.5 | F13: 182699 | G13: 0.02 | H13: 514839 | I13: 10.62
A14: (三)經常門賸餘 | B14: 191779288 | D14: 173072672 | F14: 248310706 | H14: 18706616
A16: 二、資本門
A17: (一)歲入 | B17: 16521587 | C17: 100 | D17: 13053244 | E17: 100 | F17: 9463025 | G17: 100 | H17: 3468343 | I17: 26.57
A18: 1.減少資產 | B18: 15873587 | C18: 96.08 | D18: 12536444 | E18: 96.04 | F18: 9463025 | G18: 100 | H18: 3337143 | I18: 26.62
A19: 2.收回投資 | B19: 648000 | C19: 3.92 | D19: 516800 | E19: 3.96 | F19: 0 | G19: 0 | H19: 131200 | I19: 25.3869969
A20: (二)歲出 | B20: 278281469 | C20: 100 | D20: 253585439 | E20: 100 | F20: 250253672 | G20: 100 | H20: 24696030 | I20: 9.74
A21: 1.增置或擴充改良資產 | B21: 238317930 | C21: 85.64 | D21: 216366149 | E21: 85.32 | F21: 229038393 | G21: 91.53 | H21: 21951781 | I21: 10.15
A22: 2.增加投資 | B22: 27378461 | C22: 9.84 | D22: 25230202 | E22: 9.95 | F22: 15701417 | G22: 6.27 | H22: 2148259 | I22: 8.51
A23: 3.預備金 | B23: 12585078 | C23: 4.52 | D23: 11989088 | E23: 4.73 | F23: 5513862 | G23: 2.2 | H23: 595990 | I23: 4.97
A24: (三)資本門差短 | B24: -261759882 | D24: -240532195 | F24: -240790647 | H24: -21227687
A25: 三、歲入歲出餘絀 | B25: -69980594 | D25: -67459523 | F25: 7520059 | H25: -2521071
A26: 備註:本(110)年度金門縣為總預算案。

Sheet 收支細
E1: 各直轄市及縣 | F1: (市)總預算 | O1: 各直轄市及縣 | P1: (市)總預算
E2: =收支總!D2 -> 歲 入 歲 出 性 質 及 餘 | F2: 絀 簡 明 分 析 表 | O2: =收支總!D2 -> 歲 入 歲 出 性 質 及 餘 | P2: =F2 -> 絀 簡 明 分 析 表 | T2: （續一）
E3: 中 華 民 國 | F3: =[2]簡明總!E3 -> 110 年 度 | J3: 單位：新臺幣千元 | O3: 中 華 民 國 | P3: =F3 -> 110 年 度 | T3: 單位：新臺幣千元
A4: 市縣別 | C4: 經常門 | K4: 市縣別 | M4: 資本 | P4: 門 | T4: 歲入歲出餘絀
B5: (一)歲入 | C5: 1.直接稅收入 | D5: 2.間接稅收入 | E5: 3.賦稅外收入 | F5: (二)歲出 | G5: 1.一般經常支出 | H5: 2.債務利息及事務支出 | I5: 3.預備金 | J5: (三)經常門賸餘 | L5: (一)歲入 | M5: 1.減少資產 | N5: 2.收回投資 | O5: (二)歲出 | P5: 1.增置或擴充改良資產 | Q5: 2.增加投資 | R5: 預備金 | S5: (三)資本門差短 | U5: 與收支表預備金勾稽 | W5: 與簡明表
A6: 總 計 | B6: 1200192793 | C6: 368549482 | D6: 253425025 | E6: 578218286 | F6: 1008413505 | G6: 994691007 | H6: 8358688 | I6: 5363810 | J6: 191779288 | K6: 總 計 | L6: 16521587 | M6: 15873587 | N6: 648000 | O6: 278281469 | P6: 238317930 | Q6: 27378461 | R6: 12585078 | S6: -261759882 | T6: -69980594 | U6: 經常門 | V6: 資本門 | W6: 債務費勾
A7: 直轄市合計 | B7: 813483448 | C7: 303765317 | D7: 181566809 | E7: 328151322 | F7: 697270264 | G7: 687494289 | H7: 5965995 | I7: 3809980 | J7: 116213184 | K7: 直轄市合計 | L7: 14580740 | M7: 13932740 | N7: 648000 | O7: 187603308 | P7: 152088247 | Q7: 27267501 | R7: 8247560 | S7: -173022568 | T7: -56809384
A8: 新北市 | B8: 162097552 | C8: 64906969 | D8: 32922676 | E8: 64267907 | F8: 140215824 | G8: 138405927 | H8: 1036000 | I8: 773897 | J8: 21881728 | K8: 新北市 | L8: 2905000 | M8: 2905000 | N8: 0 | O8: 39176728 | P8: 28613894 | Q8: 9062834 | R8: 1500000 | S8: -36271728 | T8: -14390000 | U8: =I8-'[2]2-收支-縣市(不印)'!K10 -> 0 | V8: =S8-'[2]2-收支-縣市(不印)'!T10 -> -37771728 | W8: =G8-'[2]1-簡明-縣市(不印)'!V10 -> 137369927 | X8: =S8/B8 -> -0.2237648105
A9: 臺北市 | B9: 162352606 | C9: 67333000 | D9: 56367722 | E9: 38651884 | F9: 137052222 | G9: 134811836 | H9: 845654 | I9: 1394732 | J9: 25300384 | K9: 臺北市 | L9: 2279296 | M9: 1631296 | N9: 648000 | O9: 35717433 | P9: 29843241 | Q9: 4604192 | R9: 1270000 | S9: -33438137 | T9: -8137753 | U9: =I9-'[2]2-收支-縣市(不印)'!K11 -> 0 | V9: =S9-'[2]2-收支-縣市(不印)'!T11 -> -34708137 | W9: =G9-'[2]1-簡明-縣市(不印)'!V11 -> 133966182 | X9: -0.2059599647
A10: 桃園市 | B10: 116927812 | C10: 41958076 | D10: 22758093 | E10: 52211643 | F10: 97143142 | G10: 96371885 | H10: 521257 | I10: 250000 | J10: 19784670 | K10: 桃園市 | L10: 7149188 | M10: 7149188 | N10: 0 | O10: 40636858 | P10: 26670722 | Q10: 12579136 | R10: 1387000 | S10: -33487670 | T10: -13703000 | U10: =I10-'[2]2-收支-縣市(不印)'!K12 -> 0 | V10: =S10-'[2]2-收支-縣市(不印)'!T12 -> -34874670 | W10: =G10-'[2]1-簡明-縣市(不印)'!V12 -> 95850628 | X10: -0.2863961057
A11: 臺中市 | B11: 132217175 | C11: 45198619 | D11: 28635420 | E11: 58383136 | F11: 118407709 | G11: 117065501 | H11: 800000 | I11: 542208 | J11: 13809466 | K11: 臺中市 | L11: 100000 | M11: 100000 | N11: 0 | O11: 23795466 | P11: 21554466 | Q11: 751000 | R11: 1490000 | S11: -23695466 | T11: -9886000 | U11: =I11-'[2]2-收支-縣市(不印)'!K13 -> 0 | V11: =S11-'[2]2-收支-縣市(不印)'!T13 -> -25185466 | W11: =G11-'[2]1-簡明-縣市(不印)'!V13 -> 116265501 | X11: -0.1792162478
A12: 臺南市 | B12: 96045148 | C12: 27931358 | D12: 19796120 | E12: 48317670 | F12: 77427451 | G12: 76359591 | H12: 524000 | I12: 543860 | J12: 18617697 | K12: 臺南市 | L12: 100000 | M12: 100000 | N12: 0 | O12: 23201039 | P12: 22237746 | Q12: 1000 | R12: 962293 | S12: -23101039 | T12: -4483342 | U12: =I12-'[2]2-收支-縣市(不印)'!K14 -> 0 | V12: =S12-'[2]2-收支-縣市(不印)'!T14 -> -24063332 | W12: =G12-'[2]1-簡明-縣市(不印)'!V14 -> 75835591 | X12: -0.2405227071
A13: 高雄市 | B13: 143843155 | C13: 56437295 | D13: 21086778 | E13: 66319082 | F13: 127023916 | G13: 124479549 | H13: 2239084 | I13: 305283 | J13: 16819239 | K13: 高雄市 | L13: 2047256 | M13: 2047256 | N13: 0 | O13: 25075784 | P13: 23168178 | Q13: 269339 | R13: 1638267 | S13: -23028528 | T13: -6209289 | U13: =I13-'[2]2-收支-縣市(不印)'!K15 -> 0 | V13: =S13-'[2]2-收支-縣市(不印)'!T15 -> -24666795 | W13: =G13-'[2]1-簡明-縣市(不印)'!V15 -> 122240465 | X13: -0.1600947087
A14: 縣市合計 | B14: 386709345 | C14: 64784165 | D14: 71858216 | E14: 250066964 | F14: 311143241 | G14: 307196718 | H14: 2392693 | I14: 1553830 | J14: 75566104 | K14: 縣市合計 | L14: 1940847 | M14: 1940847 | N14: 0 | O14: 90678161 | P14: 86229683 | Q14: 110960 | R14: 4337518 | S14: -88737314 | T14: -13171210
A15: 宜蘭縣 | B15: 24631930 | C15: 4299154 | D15: 3960013 | E15: 16372763 | F15: 19596748 | G15: 19445370 | H15: 101378 | I15: 50000 | J15: 5035182 | K15: 宜蘭縣 | L15: 100 | M15: 100 | N15: 0 | O15: 5110639 | P15: 4863465 | Q15: 0 | R15: 247174 | S15: -5110539 | T15: -75357 | U15: =I15-'[2]2-收支-縣市(不印)'!K17 -> 0 | V15: =S15-'[2]2-收支-縣市(不印)'!T17 -> -5357713 | W15: =G15-'[2]1-簡明-縣市(不印)'!V17 -> 19343992 | X15: =S15/B15 -> -0.2074761905
A16: 新竹縣 | B16: 29501500 | C16: 5984165 | D16: 5012064 | E16: 18505271 | F16: 22483005 | G16: 21870935 | H16: 200000 | I16: 412070 | J16: 7018495 | K16: 新竹縣 | L16: 850011 | M16: 850011 | N16: 0 | O16: 7868506 | P16: 7564986 | Q16: 0 | R16: 303520 | S16: -7018495 | T16: 0 | U16: =I16-'[2]2-收支-縣市(不印)'!K18 -> 0 | V16: =S16-'[2]2-收支-縣市(不印)'!T18 -> -7322015 | W16: =G16-'[2]1-簡明-縣市(不印)'!V18 -> 21670935 | X16: -0.237902988
A17: 苗栗縣 | B17: 21361398 | C17: 4685219 | D17: 5162566 | E17: 11513613 | F17: 18061851 | G17: 17461851 | H17: 550000 | I17: 50000 | J17: 3299547 | K17: 苗栗縣 | L17: 0 | M17: 0 | N17: 0 | O17: 3063636 | P17: 2852236 | Q17: 0 | R17: 211400 | S17: -3063636 | T17: 235911 | U17: =I17-'[2]2-收支-縣市(不印)'!K19 -> 0 | V17: =S17-'[2]2-收支-縣市(不印)'!T19 -> -3275036 | W17: =G17-'[2]1-簡明-縣市(不印)'!V19 -> 16911851 | X17: -0.143419265
A18: 彰化縣 | B18: 46811518 | C18: 8179168 | D18: 10860646 | E18: 27771704 | F18: 39431034 | G18: 38919760 | H18: 371274 | I18: 140000 | J18: 7380484 | K18: 彰化縣 | L18: 23000 | M18: 23000 | N18: 0 | O18: 10494436 | P18: 10004436 | Q18: 0 | R18: 490000 | S18: -10471436 | T18: -3090952 | U18: =I18-'[2]2-收支-縣市(不印)'!K20 -> 0 | V18: =S18-'[2]2-收支-縣市(不印)'!T20 -> -10961436 | W18: =G18-'[2]1-簡明-縣市(不印)'!V20 -> 38548486 | X18: -0.223693579
A19: 南投縣 | B19: 28450000 | C19: 3888629 | D19: 5470798 | E19: 19090573 | F19: 22680880 | G19: 22352449 | H19: 98431 | I19: 230000 | J19: 5769120 | K19: 南投縣 | L19: 2000 | M19: 2000 | N19: 0 | O19: 5494120 | P19: 5212370 | Q19: 0 | R19: 281750 | S19: -5492120 | T19: 277000 | U19: =I19-'[2]2-收支-縣市(不印)'!K21 -> 0 | V19: =S19-'[2]2-收支-縣市(不印)'!T21 -> -5773870 | W19: =G19-'[2]1-簡明-縣市(不印)'!V21 -> 22254018 | X19: -0.1930446397
A20: 雲林縣 | B20: 35699086 | C20: 5673982 | D20: 7007155 | E20: 23017949 | F20: 27032308 | G20: 26833679 | H20: 184670 | I20: 13959 | J20: 8666778 | K20: 雲林縣 | L20: 53692 | M20: 53692 | N20: 0 | O20: 9558894 | P20: 9112980 | Q20: 0 | R20: 445914 | S20: -9505202 | T20: -838424 | U20: =I20-'[2]2-收支-縣市(不印)'!K22 -> 0 | V20: =S20-'[2]2-收支-縣市(不印)'!T22 -> -9951116 | W20: =G20-'[2]1-簡明-縣市(不印)'!V22 -> 26649009 | X20: -0.2662589737
A21: 嘉義縣 | B21: 29862000 | C21: 3510754 | D21: 4863263 | E21: 21487983 | F21: 21252372 | G21: 20996325 | H21: 250000 | I21: 6047 | J21: 8609628 | K21: 嘉義縣 | L21: 100000 | M21: 100000 | N21: 0 | O21: 8747628 | P21: 8361468 | Q21: 5160 | R21: 381000 | S21: -8647628 | T21: -38000 | U21: =I21-'[2]2-收支-縣市(不印)'!K23 -> 0 | V21: =S21-'[2]2-收支-縣市(不印)'!T23 -> -9028628 | W21: =G21-'[2]1-簡明-縣市(不印)'!V23 -> 20746325 | X21: -0.2895863639
A22: 屏東縣 | B22: 44111209 | C22: 5793634 | D22: 7693852 | E22: 30623723 | F22: 34813821 | G22: 34603821 | H22: 150000 | I22: 60000 | J22: 9297388 | K22: 屏東縣 | L22: 376791 | M22: 376791 | N22: 0 | O22: 9674179 | P22: 9227179 | Q22: 0 | R22: 447000 | S22: -9297388 | T22: 0 | U22: =I22-'[2]2-收支-縣市(不印)'!K24 -> 0 | V22: =S22-'[2]2-收支-縣市(不印)'!T24 -> -9744388 | W22: =G22-'[2]1-簡明-縣市(不印)'!V24 -> 34453821 | X22: -0.2107715524
A23: 臺東縣 | B23: 19193880 | C23: 2015488 | D23: 2686044 | E23: 14492348 | F23: 16953411 | G23: 16813411 | H23: 100000 | I23: 40000 | J23: 2240469 | K23: 臺東縣 | L23: 20001 | M23: 20001 | N23: 0 | O23: 3723167 | P23: 3453167 | Q23: 0 | R23: 270000 | S23: -3703166 | T23: -1462697 | U23: =I23-'[2]2-收支-縣市(不印)'!K25 -> 0 | V23: =S23-'[2]2-收支-縣市(不印)'!T25 -> -3973166 | W23: =G23-'[2]1-簡明-縣市(不印)'!V25 -> 16713411 | X23: -0.1929347271
A24: 花蓮縣 | B24: 24121669 | C24: 2973052 | D24: 4855263 | E24: 16293354 | F24: 18989079 | G24: 18789679 | H24: 122200 | I24: 77200 | J24: 5132590 | K24: 花蓮縣 | L24: 10200 | M24: 10200 | N24: 0 | O24: 5142790 | P24: 4902790 | Q24: 0 | R24: 240000 | S24: -5132590 | T24: 0 | U24: =I24-'[2]2-收支-縣市(不印)'!K26 -> 0 | V24: =S24-'[2]2-收支-縣市(不印)'!T26 -> -5372590 | W24: =G24-'[2]1-簡明-縣市(不印)'!V26 -> 18667479 | X24: -0.2127792235
A25: 澎湖縣 | B25: 10729995 | C25: 1135595 | D25: 1357481 | E25: 8236919 | F25: 8806265 | G25: 8726525 | H25: 16740 | I25: 63000 | J25: 1923730 | K25: 澎湖縣 | L25: 10000 | M25: 10000 | N25: 0 | O25: 2877793 | P25: 2759883 | Q25: 800 | R25: 117110 | S25: -2867793 | T25: -944063 | U25: =I25-'[2]2-收支-縣市(不印)'!K27 -> 0 | V25: =S25-'[2]2-收支-縣市(不印)'!T27 -> -2984903 | W25: =G25-'[2]1-簡明-縣市(不印)'!V27 -> 8709785 | X25: -0.2672688105
A26: 基隆市 | B26: 21287498 | C26: 4474850 | D26: 3395978 | E26: 13416670 | F26: 16970919 | G26: 16840419 | H26: 90000 | I26: 40500 | J26: 4316579 | K26: 基隆市 | L26: 262351 | M26: 262351 | N26: 0 | O26: 4574930 | P26: 4359430 | Q26: 0 | R26: 215500 | S26: -4312579 | T26: 4000 | U26: =I26-'[2]2-收支-縣市(不印)'!K28 -> 0 | V26: =S26-'[2]2-收支-縣市(不印)'!T28 -> -4528079 | W26: =G26-'[2]1-簡明-縣市(不印)'!V28 -> 16750419 | X26: -0.202587406
A27: 新竹市 | B27: 23118877 | C27: 8079905 | D27: 4884103 | E27: 10154869 | F27: 19190881 | G27: 18882341 | H27: 150000 | I27: 158540 | J27: 3927996 | K27: 新竹市 | L27: 190000 | M27: 190000 | N27: 0 | O27: 6086899 | P27: 5672899 | Q27: 0 | R27: 414000 | S27: -5896899 | T27: -1968903 | U27: =I27-'[2]2-收支-縣市(不印)'!K29 -> 0 | V27: =S27-'[2]2-收支-縣市(不印)'!T29 -> -6310899 | W27: =G27-'[2]1-簡明-縣市(不印)'!V29 -> 18732341 | X27: -0.2550685745
A28: 嘉義市 | B28: 14504251 | C28: 3015209 | D28: 2399460 | E28: 9089582 | F28: 12993053 | G28: 12904653 | H28: 7400 | I28: 81000 | J28: 1511198 | K28: 嘉義市 | L28: 10000 | M28: 10000 | N28: 0 | O28: 3004194 | P28: 2894194 | Q28: 0 | R28: 110000 | S28: -2994194 | T28: -1482996 | U28: =I28-'[2]2-收支-縣市(不印)'!K30 -> 0 | V28: =S28-'[2]2-收支-縣市(不印)'!T30 -> -3104194 | W28: =G28-'[2]1-簡明-縣市(不印)'!V30 -> 12897253 | X28: -0.2064356167
A29: 金門縣 | B29: 9978623 | C29: 864086 | D29: 1882487 | E29: 7232050 | F29: 9496600 | G29: 9376388 | H29: 0 | I29: 120212 | J29: 482023 | K29: 金門縣 | L29: 32701 | M29: 32701 | N29: 0 | O29: 4053043 | P29: 3830043 | Q29: 105000 | R29: 118000 | S29: -4020342 | T29: -3538319 | U29: =I29-'[2]2-收支-縣市(不印)'!K31 -> 0 | V29: =S29-'[2]2-收支-縣市(不印)'!T31 -> -4138342 | W29: =G29-'[2]1-簡明-縣市(不印)'!V31 -> 9376388 | X29: -0.4028954696
A30: 連江縣 | B30: 3345911 | C30: 211275 | D30: 367043 | E30: 2767593 | F30: 2391014 | G30: 2379112 | H30: 600 | I30: 11302 | J30: 954897 | K30: 連江縣 | L30: 0 | M30: 0 | N30: 0 | O30: 1203307 | P30: 1158157 | Q30: 0 | R30: 45150 | S30: -1203307 | T30: -248410 | U30: =I30-'[2]2-收支-縣市(不印)'!K32 -> 0 | V30: =S30-'[2]2-收支-縣市(不印)'!T32 -> -1248457 | W30: =G30-'[2]1-簡明-縣市(不印)'!V32 -> 2378512 | X30: -0.3596350889

Sheet 融資總
A1: 各直轄市及縣(市)總預算彙編
A2: 收 支 簡 明 比 較 分 析 表
B3: =[1]融資總!$B$3:$C$3 -> 中 華 民 國 110 年 度 | E3: 單位：新臺幣千元
A4: 項 目 | B4: 本年度 預算數 | C4: 上年度 預算數 | D4: 前年度 決算數 | E4: 本年度與上 年度比較
A5: 一、收入合計 | B5: 1699713468 | C5: 1601268641 | D5: 1464005011 | E5: 98444827
A6: (一)歲入 | B6: 1216714380 | C6: 1161540109 | D6: 1141250941 | E6: 55174271
A7: (二)債務之舉借 | B7: 462464890 | C7: 424896371 | D7: 321307970 | E7: 37568519
A8: (三)預計移用以前年度歲計 | B8: 20534198 | C8: 14832161 | D8: 1446100 | E8: 5702037
A9: 賸餘調節因應數
A10: 二、支出合計 | B10: 1699707557 | C10: 1601268641 | D10: 1453119888 | E10: 98438916
A11: (一)歲出 | B11: 1286694974 | C11: 1228999632 | D11: 1133730882 | E11: 57695342
A12: (二)債務之償還 | B12: 413012583 | C12: 372269009 | D12: 319389006 | E12: 40743574
A13: 三、收支賸餘 | B13: 5911 | C13: 0 | D13: 10885123 | E13: 5911
A15: 備註:本(110)年度金門縣為總預算案。

Sheet 融資細
C1: =融資總!A1 -> 各直轄市及縣(市)總預算彙編 | G1: =C1 -> 各直轄市及縣(市)總預算彙編
C2: 收 支 簡 明 分 析 表 | H2: =C2 -> 收 支 簡 明 分 析 表 | J2: (續一)
D3: =融資總!B3 -> 中 華 民 國 110 年 度 | F3: =J3 -> 單位：新臺幣千元 | H3: =D3 -> 中 華 民 國 110 年 度 | J3: 單位：新臺幣千元
B5: 科 目 | C5: 一、收入合計 | D5: (一)歲入 | E5: (二)債務之舉借 | F5: (三)預計移用以前年度歲計賸餘調節因應數 | G5: 二、支出合計 | H5: (一)歲出 | I5: (二)債務之償還 | J5: 三、收支賸餘
A6: 1 | B6: 總 計 | C6: 1699713468 | D6: 1216714380 | E6: 462464890 | F6: 20534198 | G6: 1699707557 | H6: 1286694974 | I6: 413012583 | J6: 5911
B7: 直轄市合計 | C7: 1196283288 | D7: 828064188 | E7: 351271631 | F7: 16947469 | G7: 1196283288 | H7: 884873572 | I7: 311409716 | J7: 0
A8: 新北市 | B8: 新北市 | C8: 287592552 | D8: 165002552 | E8: 122590000 | F8: 0 | G8: 287592552 | H8: 179392552 | I8: 108200000 | J8: 0
A9: 臺北市 | B9: 臺北市 | C9: 181579371 | D9: 164631902 | E9: 0 | F9: 16947469 | G9: 181579371 | H9: 172769655 | I9: 8809716 | J9: 0
A10: 桃園市 | B10: 桃園市 | C10: 187780000 | D10: 124077000 | E10: 63703000 | F10: 0 | G10: 187780000 | H10: 137780000 | I10: 50000000 | J10: 0
A11: 臺中市 | B11: 臺中市 | C11: 240203175 | D11: 132317175 | E11: 107886000 | F11: 0 | G11: 240203175 | H11: 142203175 | I11: 98000000 | J11: 0
A12: 臺南市 | B12: 臺南市 | C12: 143028490 | D12: 96145148 | E12: 46883342 | F12: 0 | G12: 143028490 | H12: 100628490 | I12: 42400000 | J12: 0
A13: 高雄市 | B13: 高雄市 | C13: 156099700 | D13: 145890411 | E13: 10209289 | F13: 0 | G13: 156099700 | H13: 152099700 | I13: 4000000 | J13: 0
B14: 縣市合計 | C14: 503430180 | D14: 388650192 | E14: 111193259 | F14: 3586729 | G14: 503424269 | H14: 401821402 | I14: 101602867 | J14: 5911
A15: 宜蘭縣 | B15: 宜蘭縣 | C15: 36428015 | D15: 24632030 | E15: 11795985 | F15: 0 | G15: 36428015 | H15: 24707387 | I15: 11720628 | J15: 0
A16: 新竹縣 | B16: 新竹縣 | C16: 42581511 | D16: 30351511 | E16: 12230000 | F16: 0 | G16: 42581511 | H16: 30351511 | I16: 12230000 | J16: 0
A17: 苗栗縣 | B17: 苗栗縣 | C17: 30031398 | D17: 21361398 | E17: 8670000 | F17: 0 | G17: 30025487 | H17: 21125487 | I17: 8900000 | J17: 5911
A18: 彰化縣 | B18: 彰化縣 | C18: 59896137 | D18: 46834518 | E18: 13061619 | F18: 0 | G18: 59896137 | H18: 49925470 | I18: 9970667 | J18: 0
A19: 南投縣 | B19: 南投縣 | C19: 32327813 | D19: 28452000 | E19: 3875813 | F19: 0 | G19: 32327813 | H19: 28175000 | I19: 4152813 | J19: 0
A20: 雲林縣 | B20: 雲林縣 | C20: 51137492 | D20: 35752778 | E20: 15384714 | F20: 0 | G20: 51137492 | H20: 36591202 | I20: 14546290 | J20: 0
A21: 嘉義縣 | B21: 嘉義縣 | C21: 38000000 | D21: 29962000 | E21: 8038000 | F21: 0 | G21: 38000000 | H21: 30000000 | I21: 8000000 | J21: 0
A22: 屏東縣 | B22: 屏東縣 | C22: 52508000 | D22: 44488000 | E22: 8020000 | F22: 0 | G22: 52508000 | H22: 44488000 | I22: 8020000 | J22: 0
A23: 臺東縣 | B23: 臺東縣 | C23: 25600540 | D23: 19213881 | E23: 6386659 | F23: 0 | G23: 25600540 | H23: 20676578 | I23: 4923962 | J23: 0
A24: 花蓮縣 | B24: 花蓮縣 | C24: 28781869 | D24: 24131869 | E24: 4650000 | F24: 0 | G24: 28781869 | H24: 24131869 | I24: 4650000 | J24: 0
A25: 澎湖縣 | B25: 澎湖縣 | C25: 12684058 | D25: 10739995 | E25: 1944063 | F25: 0 | G25: 12684058 | H25: 11684058 | I25: 1000000 | J25: 0
A26: 基隆市 | B26: 基隆市 | C26: 23912849 | D26: 21549849 | E26: 2363000 | F26: 0 | G26: 23912849 | H26: 21545849 | I26: 2367000 | J26: 0
A27: 新竹市 | B27: 新竹市 | C27: 36387780 | D27: 23308877 | E27: 13078903 | F27: 0 | G27: 36387780 | H27: 25277780 | I27: 11110000 | J27: 0
A28: 嘉義市 | B28: 嘉義市 | C28: 16008754 | D28: 14514251 | E28: 1494503 | F28: 0 | G28: 16008754 | H28: 15997247 | I28: 11507 | J28: 0
A29: 金門縣 | B29: 金門縣 | C29: 13549643 | D29: 10011324 | E29: 0 | F29: 3538319 | G29: 13549643 | H29: 13549643 | I29: 0 | J29: 0
A30: 連江縣 | B30: 連江縣 | C30: 3594321 | D30: 3345911 | E30: 200000 | F30: 48410 | G30: 3594321 | H30: 3594321 | I30: 0 | J30: 0

Sheet 來源別
B1: 各直轄市及縣(市)總預算 | I1: 各直轄市及縣 | J1: (市)總預算 | R1: 各直轄市及縣 | S1: (市)總預算 | Z1: 各直轄市及縣 | AA1: (市)總預算 | AJ1: 各直轄市及縣 | AK1: (市)總預算 | AR1: 各直轄市及縣 | AS1: (市)總預算
B2: 歲入來源別預算總表 | I2: 歲入來源別 | J2: 預算總表 | M2: (續一) | R2: 歲入來源別 | S2: 預算總表 | V2: (續二) | Z2: 歲入來源別 | AA2: 預算總表 | AE2: (續三) | AJ2: 歲入來源別 | AK2: 預算總表 | AN2: (續四) | AR2: 歲入來源別 | AS2: 預算總表 | AX2: (續五)
B3: 經資門併計 | C3: =融資總!B3 -> 中 華 民 國 110 年 度 | E3: 單位：新臺幣千元 | F3: 經資門併計 | I3: 中華民國 | J3: =簡明總!#REF! ->  | M3: 單位：新臺幣千元 | N3: 經資門併計 | R3: 中華民國 | S3: =J3 ->  | V3: 單位：新臺幣千元 | W3: 經資門併計 | Z3: 中華民國 | AA3: =S3 ->  | AE3: 單位：新臺幣千元 | AF3: 經資門併計 | AJ3: 中華民國 | AK3: =AA3 ->  | AN3: 單位：新臺幣千元 | AO3: 經資門併計 | AR3: 中華民國 | AS3: =AK3 ->  | AX3: 單位：新臺幣千元
B5: 科 目 | C5: 合 計 | D5: 稅課收入 | E5: 遺產及贈與稅 | F5: 科 目 | G5: 菸酒稅 | H5: 印花稅 | I5: 使用牌照稅 | J5: 土地稅 | K5: 房屋稅 | L5: 契稅 | M5: 娛樂稅 | N5: 科 目 | O5: 統籌分配稅 | P5: 特別稅課 | Q5: 臨時稅課 | R5: 附加稅課 | S5: 工程受益 費收入 | T5: 罰款及賠償收入 | U5: 罰金罰鍰及怠金 | V5: 沒入及沒收財物 | W5: 科 目 | X5: 賠償收入 | Y5: 規費收入 | Z5: 行政規費收入 | AA5: 使用規費收入 | AB5: 信託管理收入 | AC5: 財產收入 | AD5: 財產孳息 | AE5: 財產售價 | AF5: 科 目 | AG5: 財產作價 | AH5: 投資收回 | AI5: 廢舊物資售價 | AJ5: 營業盈餘及 事業收入 | AK5: 營業基金盈餘繳庫 | AL5: 非營業特種基金 賸餘繳庫 | AM5: 投資收益 | AN5: 補助及協助收入 | AO5: 科 目 | AP5: 上級政府 補助收入 | AQ5: 地方政府 協助收入 | AR5: 捐獻及 贈與收入 | AS5: 捐獻收入 | AT5: 贈與收入 | AU5: 自治稅捐收入 | AV5: 其他收入 | AW5: 學雜費收入 | AX5: 雜項收入
B6: 款 | D6: 1 | F6: 款 | N6: 款 | S6: 2 | T6: 3 | W6: 款 | Y6: 4 | AB6: 5 | AC6: 6 | AF6: 款 | AJ6: 7 | AN6: 8 | AO6: 款 | AR6: 9 | AU6: 11 | AV6: 10
A7: 縣市 | B7: 項 | E7: 1 | F7: 項 | G7: 2 | H7: 3 | I7: 4 | J7: 5 | K7: 6 | L7: 7 | M7: 8 | N7: 項 | O7: 9 | P7: 10 | Q7: 11 | R7: 12 | U7: 1 | V7: 2 | W7: 項 | X7: 3 | Z7: 1 | AA7: 2 | AD7: 1 | AE7: 2 | AF7: 項 | AG7: 3 | AH7: 4 | AI7: 5 | AK7: 1 | AL7: 2 | AM7: 3 | AO7: 項 | AP7: 1 | AQ7: 2 | AS7: 1 | AT7: 2 | AW7: 1 | AX7: 2
A8: 1 | B8: 總 計 | C8: 1216714380 | D8: 621974507 | E8: 13868111 | F8: 總 計 | G8: 8269997 | H8: 11977231 | I8: 65636282 | J8: 176787352 | K8: 72057094 | L8: 11577755 | M8: 1280632 | N8: 總 計 | O8: 258905779 | P8: 1614274 | Q8: 0 | R8: 0 | S8: 2 | T8: 18545628 | U8: 17996597 | V8: 32327 | W8: 總 計 | X8: 516704 | Y8: 36923902 | Z8: 9684920 | AA8: 27238982 | AB8: 182 | AC8: 25830965 | AD8: 8834294 | AE8: 5798772 | AF8: 總 計 | AG8: 10074815 | AH8: 648000 | AI8: 475084 | AJ8: 45419606 | AK8: 933707 | AL8: 41582081 | AM8: 2903818 | AN8: 433909078 | AO8: 總 計 | AP8: 433812048 | AQ8: 97030 | AR8: 7368243 | AS8: 7368240 | AT8: 3 | AU8: 0 | AV8: 26742267 | AW8: 54222 | AX8: 26688045
B9: 直轄市合計 | C9: 828064188 | D9: 485332126 | E9: 13295601 | F9: 直轄市合計 | G9: 5199702 | H9: 9817686 | I9: 45356164 | J9: 153364979 | K9: 63546865 | L9: 11010142 | M9: 1183033 | N9: 直轄市合計 | O9: 182455144 | P9: 102810 | Q9: 0 | R9: 0 | S9: 0 | T9: 14417341 | U9: 13978688 | V9: 26246 | W9: 直轄市合計 | X9: 412407 | Y9: 32408294 | Z9: 7217641 | AA9: 25190653 | AB9: 0 | AC9: 22175444 | AD9: 7273190 | AE9: 3857925 | AF9: 直轄市合計 | AG9: 10074815 | AH9: 648000 | AI9: 321514 | AJ9: 43433981 | AK9: 885338 | AL9: 39646893 | AM9: 2901750 | AN9: 205973173 | AO9: 直轄市合計 | AP9: 205973173 | AQ9: 0 | AR9: 4177324 | AS9: 4177324 | AT9: 0 | AU9: 0 | AV9: 20146505 | AW9: 200 | AX9: 20146305
A10: 新北市 | B10: 新北市 | C10: 165002552 | D10: 97829645 | E10: 2240528 | F10: 新北市 | G10: 1275536 | H10: 1174000 | I10: 9100000 | J10: 33660445 | K10: 12952000 | L10: 2863000 | M10: 284000 | N10: 新北市 | O10: 34280136 | P10: 0 | Q10: 0 | R10: 0 | S10: 0 | T10: 3724923 | U10: 3524980 | V10: 18700 | W10: 新北市 | X10: 181243 | Y10: 6664928 | Z10: 1788902 | AA10: 4876026 | AB10: 0 | AC10: 3685508 | AD10: 753254 | AE10: 30000 | AF10: 新北市 | AG10: 2875000 | AH10: 0 | AI10: 27254 | AJ10: 8507735 | AK10: 0 | AL10: 8388000 | AM10: 119735 | AN10: 38784746 | AO10: 新北市 | AP10: 38784746 | AQ10: 0 | AR10: 1128272 | AS10: 1128272 | AT10: 0 | AU10: 0 | AV10: 4676795 | AW10: 0 | AX10: 4676795
A11: 臺北市 | B11: 臺北市 | C11: 164631902 | D11: 123700722 | E11: 6438000 | F11: 臺北市 | G11: 839538 | H11: 4870000 | I11: 7450000 | J11: 43926000 | K11: 15400000 | L11: 1569000 | M11: 245000 | N11: 臺北市 | O11: 42963184 | P11: 0 | Q11: 0 | R11: 0 | S11: 0 | T11: 3674253 | U11: 3556798 | V11: 3636 | W11: 臺北市 | X11: 113819 | Y11: 8006346 | Z11: 1489906 | AA11: 6516440 | AB11: 0 | AC11: 5940810 | AD11: 3584457 | AE11: 1631296 | AF11: 臺北市 | AG11: 0 | AH11: 648000 | AI11: 77057 | AJ11: 7773581 | AK11: 880265 | AL11: 4180011 | AM11: 2713305 | AN11: 12968535 | AO11: 臺北市 | AP11: 12968535 | AQ11: 0 | AR11: 21386 | AS11: 21386 | AT11: 0 | AU11: 0 | AV11: 2546269 | AW11: 200 | AX11: 2546069
A12: 桃園市 | B12: 桃園市 | C12: 124077000 | D12: 64716169 | E12: 993000 | F12: 桃園市 | G12: 713846 | H12: 1050000 | I12: 6870000 | J12: 21300000 | K12: 9140000 | L12: 1863489 | M12: 221701 | N12: 桃園市 | O12: 22509323 | P12: 54810 | Q12: 0 | R12: 0 | S12: 0 | T12: 2124088 | U12: 2065021 | V12: 1796 | W12: 桃園市 | X12: 57271 | Y12: 3624537 | Z12: 1032474 | AA12: 2592063 | AB12: 0 | AC12: 7440250 | AD12: 252038 | AE12: 215360 | AF12: 桃園市 | AG12: 6933828 | AH12: 0 | AI12: 39024 | AJ12: 6710000 | AK12: 0 | AL12: 6710000 | AM12: 0 | AN12: 32641417 | AO12: 桃園市 | AP12: 32641417 | AQ12: 0 | AR12: 1457771 | AS12: 1457771 | AT12: 0 | AU12: 0 | AV12: 5362768 | AW12: 0 | AX12: 5362768
A13: 臺中市 | B13: 臺中市 | C13: 132317175 | D13: 73834039 | E13: 1517000 | F13: 臺中市 | G13: 893566 | H13: 1200000 | I13: 9158306 | J13: 21512733 | K13: 9500132 | L13: 1880000 | M13: 135000 | N13: 臺中市 | O13: 28037302 | P13: 0 | Q13: 0 | R13: 0 | S13: 0 | T13: 2027601 | U13: 2011999 | V13: 453 | W13: 臺中市 | X13: 15149 | Y13: 4868160 | Z13: 1278774 | AA13: 3589386 | AB13: 0 | AC13: 707274 | AD13: 562239 | AE13: 100000 | AF13: 臺中市 | AG13: 0 | AH13: 0 | AI13: 45035 | AJ13: 13959213 | AK13: 0 | AL13: 13959213 | AM13: 0 | AN13: 33815847 | AO13: 臺中市 | AP13: 33815847 | AQ13: 0 | AR13: 282651 | AS13: 282651 | AT13: 0 | AU13: 0 | AV13: 2822390 | AW13: 0 | AX13: 2822390
A14: 臺南市 | B14: 臺南市 | C14: 96145148 | D14: 47727478 | E14: 807073 | F14: 臺南市 | G14: 597001 | H14: 493686 | I14: 5377858 | J14: 11965801 | K14: 5954733 | L14: 934653 | M14: 107332 | N14: 臺南市 | O14: 21489341 | P14: 0 | Q14: 0 | R14: 0 | S14: 0 | T14: 797018 | U14: 775720 | V14: 970 | W14: 臺南市 | X14: 20328 | Y14: 3471735 | Z14: 639003 | AA14: 2832732 | AB14: 0 | AC14: 469747 | AD14: 263528 | AE14: 100000 | AF14: 臺南市 | AG14: 0 | AH14: 0 | AI14: 106219 | AJ14: 1441483 | AK14: 2932 | AL14: 1438531 | AM14: 20 | AN14: 40709598 | AO14: 臺南市 | AP14: 40709598 | AQ14: 0 | AR14: 160913 | AS14: 160913 | AT14: 0 | AU14: 0 | AV14: 1367176 | AW14: 0 | AX14: 1367176
A15: 高雄市 | B15: 高雄市 | C15: 145890411 | D15: 77524073 | E15: 1300000 | F15: 高雄市 | G15: 880215 | H15: 1030000 | I15: 7400000 | J15: 21000000 | K15: 10600000 | L15: 1900000 | M15: 190000 | N15: 高雄市 | O15: 33175858 | P15: 48000 | Q15: 0 | R15: 0 | S15: 0 | T15: 2069458 | U15: 2044170 | V15: 691 | W15: 高雄市 | X15: 24597 | Y15: 5772588 | Z15: 988582 | AA15: 4784006 | AB15: 0 | AC15: 3931855 | AD15: 1857674 | AE15: 1781269 | AF15: 高雄市 | AG15: 265987 | AH15: 0 | AI15: 26925 | AJ15: 5041969 | AK15: 2141 | AL15: 4971138 | AM15: 68690 | AN15: 47053030 | AO15: 高雄市 | AP15: 47053030 | AQ15: 0 | AR15: 1126331 | AS15: 1126331 | AT15: 0 | AU15: 0 | AV15: 3371107 | AW15: 0 | AX15: 3371107
B16: 縣市合計 | C16: 388650192 | D16: 136642381 | E16: 572510 | F16: 縣市合計 | G16: 3070295 | H16: 2159545 | I16: 20280118 | J16: 23422373 | K16: 8510229 | L16: 567613 | M16: 97599 | N16: 縣市合計 | O16: 76450635 | P16: 1511464 | Q16: 0 | R16: 0 | S16: 2 | T16: 4128287 | U16: 4017909 | V16: 6081 | W16: 縣市合計 | X16: 104297 | Y16: 4515608 | Z16: 2467279 | AA16: 2048329 | AB16: 182 | AC16: 3655521 | AD16: 1561104 | AE16: 1940847 | AF16: 縣市合計 | AG16: 0 | AH16: 0 | AI16: 153570 | AJ16: 1985625 | AK16: 48369 | AL16: 1935188 | AM16: 2068 | AN16: 227935905 | AO16: 縣市合計 | AP16: 227838875 | AQ16: 97030 | AR16: 3190919 | AS16: 3190916 | AT16: 3 | AU16: 0 | AV16: 6595762 | AW16: 54022 | AX16: 6541740
A17: 宜蘭縣 | B17: 宜蘭縣 | C17: 24632030 | D17: 8259167 | E17: 0 | F17: 宜蘭縣 | G17: 144156 | H17: 133517 | I17: 1219078 | J17: 1992296 | K17: 598283 | L17: 0 | M17: 0 | N17: 宜蘭縣 | O17: 4118041 | P17: 53796 | Q17: 0 | R17: 0 | S17: 0 | T17: 344728 | U17: 337169 | V17: 114 | W17: 宜蘭縣 | X17: 7445 | Y17: 375655 | Z17: 167311 | AA17: 208344 | AB17: 0 | AC17: 50494 | AD17: 49121 | AE17: 100 | AF17: 宜蘭縣 | AG17: 0 | AH17: 0 | AI17: 1273 | AJ17: 155245 | AK17: 0 | AL17: 155245 | AM17: 0 | AN17: 14634941 | AO17: 宜蘭縣 | AP17: 14629102 | AQ17: 5839 | AR17: 2200 | AS17: 2200 | AT17: 0 | AU17: 0 | AV17: 809600 | AW17: 0 | AX17: 809600
A18: 新竹縣 | B18: 新竹縣 | C18: 30351511 | D18: 10996229 | E18: 0 | F18: 新竹縣 | G18: 178993 | H18: 332668 | I18: 1885270 | J18: 3337950 | K18: 791800 | L18: 0 | M18: 0 | N18: 新竹縣 | O18: 4469548 | P18: 0 | Q18: 0 | R18: 0 | S18: 0 | T18: 490588 | U18: 488531 | V18: 11 | W18: 新竹縣 | X18: 2046 | Y18: 395704 | Z18: 325015 | AA18: 70689 | AB18: 1 | AC18: 959364 | AD18: 83517 | AE18: 850011 | AF18: 新竹縣 | AG18: 0 | AH18: 0 | AI18: 25836 | AJ18: 555927 | AK18: 28927 | AL18: 527000 | AM18: 0 | AN18: 14665458 | AO18: 新竹縣 | AP18: 14599190 | AQ18: 66268 | AR18: 2342 | AS18: 2341 | AT18: 1 | AU18: 0 | AV18: 2285898 | AW18: 0 | AX18: 2285898
A19: 苗栗縣 | B19: 苗栗縣 | C19: 21361398 | D19: 9847785 | E19: 0 | F19: 苗栗縣 | G19: 173129 | H19: 120000 | I19: 1700000 | J19: 1870000 | K19: 581760 | L19: 0 | M19: 0 | N19: 苗栗縣 | O19: 5402236 | P19: 660 | Q19: 0 | R19: 0 | S19: 0 | T19: 287029 | U19: 282901 | V19: 0 | W19: 苗栗縣 | X19: 4128 | Y19: 251394 | Z19: 186830 | AA19: 64564 | AB19: 0 | AC19: 32164 | AD19: 29664 | AE19: 0 | AF19: 苗栗縣 | AG19: 0 | AH19: 0 | AI19: 2500 | AJ19: 19005 | AK19: 5 | AL19: 19000 | AM19: 0 | AN19: 10637709 | AO19: 苗栗縣 | AP19: 10637709 | AQ19: 0 | AR19: 0 | AS19: 0 | AT19: 0 | AU19: 0 | AV19: 286312 | AW19: 0 | AX19: 286312
A20: 彰化縣 | B20: 彰化縣 | C20: 46834518 | D20: 19039814 | E20: 0 | F20: 彰化縣 | G20: 403988 | H20: 400000 | I20: 3850000 | J20: 2675000 | K20: 1102967 | L20: 0 | M20: 0 | N20: 彰化縣 | O20: 10607859 | P20: 0 | Q20: 0 | R20: 0 | S20: 0 | T20: 525230 | U20: 519183 | V20: 240 | W20: 彰化縣 | X20: 5807 | Y20: 410249 | Z20: 341976 | AA20: 68273 | AB20: 0 | AC20: 204462 | AD20: 117897 | AE20: 23000 | AF20: 彰化縣 | AG20: 0 | AH20: 0 | AI20: 63565 | AJ20: 23251 | AK20: 6383 | AL20: 16868 | AM20: 0 | AN20: 26466569 | AO20: 彰化縣 | AP20: 26466569 | AQ20: 0 | AR20: 134470 | AS20: 134470 | AT20: 0 | AU20: 0 | AV20: 30473 | AW20: 9360 | AX20: 21113
A21: 南投縣 | B21: 南投縣 | C21: 28452000 | D21: 9359427 | E21: 0 | F21: 南投縣 | G21: 156832 | H21: 78340 | I21: 1538844 | J21: 1016000 | K21: 322116 | L21: 0 | M21: 0 | N21: 南投縣 | O21: 6147295 | P21: 100000 | Q21: 0 | R21: 0 | S21: 0 | T21: 239068 | U21: 237035 | V21: 1 | W21: 南投縣 | X21: 2032 | Y21: 187784 | Z21: 127878 | AA21: 59906 | AB21: 0 | AC21: 64750 | AD21: 45750 | AE21: 2000 | AF21: 南投縣 | AG21: 0 | AH21: 0 | AI21: 17000 | AJ21: 550742 | AK21: 0 | AL21: 550742 | AM21: 0 | AN21: 17939111 | AO21: 南投縣 | AP21: 17939111 | AQ21: 0 | AR21: 2 | AS21: 1 | AT21: 1 | AU21: 0 | AV21: 111116 | AW21: 44662 | AX21: 66454
A22: 雲林縣 | B22: 雲林縣 | C22: 35752778 | D22: 12681137 | E22: 0 | F22: 雲林縣 | G22: 216247 | H22: 164000 | I22: 2060000 | J22: 1773000 | K22: 698000 | L22: 0 | M22: 0 | N22: 雲林縣 | O22: 7719890 | P22: 50000 | Q22: 0 | R22: 0 | S22: 0 | T22: 326872 | U22: 311302 | V22: 0 | W22: 雲林縣 | X22: 15570 | Y22: 213713 | Z22: 164940 | AA22: 48773 | AB22: 0 | AC22: 70352 | AD22: 16660 | AE22: 53692 | AF22: 雲林縣 | AG22: 0 | AH22: 0 | AI22: 0 | AJ22: 307000 | AK22: 7000 | AL22: 300000 | AM22: 0 | AN22: 21083537 | AO22: 雲林縣 | AP22: 21083537 | AQ22: 0 | AR22: 297770 | AS22: 297770 | AT22: 0 | AU22: 0 | AV22: 772397 | AW22: 0 | AX22: 772397
A23: 嘉義縣 | B23: 嘉義縣 | C23: 29962000 | D23: 8374017 | E23: 0 | F23: 嘉義縣 | G23: 159688 | H23: 70000 | I23: 1393000 | J23: 862800 | K23: 355000 | L23: 0 | M23: 0 | N23: 嘉義縣 | O23: 5526521 | P23: 7008 | Q23: 0 | R23: 0 | S23: 0 | T23: 183521 | U23: 171057 | V23: 3 | W23: 嘉義縣 | X23: 12461 | Y23: 349312 | Z23: 112506 | AA23: 236806 | AB23: 180 | AC23: 143975 | AD23: 39770 | AE23: 100000 | AF23: 嘉義縣 | AG23: 0 | AH23: 0 | AI23: 4205 | AJ23: 258578 | AK23: 0 | AL23: 258578 | AM23: 0 | AN23: 20523473 | AO23: 嘉義縣 | AP23: 20523473 | AQ23: 0 | AR23: 500 | AS23: 500 | AT23: 0 | AU23: 0 | AV23: 128444 | AW23: 0 | AX23: 128444
A24: 屏東縣 | B24: 屏東縣 | C24: 44488000 | D24: 13487486 | E24: 0 | F24: 屏東縣 | G24: 260010 | H24: 147000 | I24: 2150000 | J24: 1825418 | K24: 510000 | L24: 0 | M24: 0 | N24: 屏東縣 | O24: 8335058 | P24: 260000 | Q24: 0 | R24: 0 | S24: 0 | T24: 694110 | U24: 675481 | V24: 3002 | W24: 屏東縣 | X24: 15627 | Y24: 535203 | Z24: 332784 | AA24: 202419 | AB24: 0 | AC24: 470884 | AD24: 69707 | AE24: 376791 | AF24: 屏東縣 | AG24: 0 | AH24: 0 | AI24: 24386 | AJ24: 40000 | AK24: 0 | AL24: 40000 | AM24: 0 | AN24: 28712890 | AO24: 屏東縣 | AP24: 28712890 | AQ24: 0 | AR24: 9508 | AS24: 9508 | AT24: 0 | AU24: 0 | AV24: 537919 | AW24: 0 | AX24: 537919
A25: 臺東縣 | B25: 臺東縣 | C25: 19213881 | D25: 4701532 | E25: 0 | F25: 臺東縣 | G25: 68806 | H25: 40675 | I25: 491757 | J25: 442793 | K25: 101430 | L25: 0 | M25: 0 | N25: 臺東縣 | O25: 3546071 | P25: 10000 | Q25: 0 | R25: 0 | S25: 0 | T25: 148702 | U25: 147692 | V25: 0 | W25: 臺東縣 | X25: 1010 | Y25: 172979 | Z25: 121207 | AA25: 51772 | AB25: 0 | AC25: 61495 | AD25: 39364 | AE25: 20001 | AF25: 臺東縣 | AG25: 0 | AH25: 0 | AI25: 2130 | AJ25: 10643 | AK25: 5000 | AL25: 5643 | AM25: 0 | AN25: 14041429 | AO25: 臺東縣 | AP25: 14017906 | AQ25: 23523 | AR25: 7017 | AS25: 7017 | AT25: 0 | AU25: 0 | AV25: 70084 | AW25: 0 | AX25: 70084
A26: 花蓮縣 | B26: 花蓮縣 | C26: 24131869 | D26: 7828315 | E26: 0 | F26: 花蓮縣 | G26: 103551 | H26: 81500 | I26: 884280 | J26: 820725 | K26: 198069 | L26: 0 | M26: 0 | N26: 花蓮縣 | O26: 4710190 | P26: 1030000 | Q26: 0 | R26: 0 | S26: 0 | T26: 244260 | U26: 229583 | V26: 2201 | W26: 花蓮縣 | X26: 12476 | Y26: 148920 | Z26: 102634 | AA26: 46286 | AB26: 0 | AC26: 63472 | AD26: 52652 | AE26: 10200 | AF26: 花蓮縣 | AG26: 0 | AH26: 0 | AI26: 620 | AJ26: 18382 | AK26: 0 | AL26: 18382 | AM26: 0 | AN26: 15659436 | AO26: 花蓮縣 | AP26: 15659436 | AQ26: 0 | AR26: 0 | AS26: 0 | AT26: 0 | AU26: 0 | AV26: 169084 | AW26: 0 | AX26: 169084
A27: 澎湖縣 | B27: 澎湖縣 | C27: 10739995 | D27: 2493076 | E27: 0 | F27: 澎湖縣 | G27: 33393 | H27: 12000 | I27: 68000 | J27: 209000 | K27: 44400 | L27: 0 | M27: 0 | N27: 澎湖縣 | O27: 2126283 | P27: 0 | Q27: 0 | R27: 0 | S27: 0 | T27: 18234 | U27: 17303 | V27: 1 | W27: 澎湖縣 | X27: 930 | Y27: 190715 | Z27: 86090 | AA27: 104625 | AB27: 0 | AC27: 30830 | AD27: 19728 | AE27: 10000 | AF27: 澎湖縣 | AG27: 0 | AH27: 0 | AI27: 1102 | AJ27: 5500 | AK27: 0 | AL27: 5500 | AM27: 0 | AN27: 7966806 | AO27: 澎湖縣 | AP27: 7965406 | AQ27: 1400 | AR27: 14538 | AS27: 14538 | AT27: 0 | AU27: 0 | AV27: 20296 | AW27: 0 | AX27: 20296
A28: 基隆市 | B28: 基隆市 | C28: 21549849 | D28: 7870828 | E28: 115000 | F28: 基隆市 | G28: 117087 | H28: 72945 | I28: 789289 | J28: 1733454 | K28: 784804 | L28: 147773 | M28: 28000 | N28: 基隆市 | O28: 4082476 | P28: 0 | Q28: 0 | R28: 0 | S28: 0 | T28: 321982 | U28: 311952 | V28: 0 | W28: 基隆市 | X28: 10030 | Y28: 367684 | Z28: 106344 | AA28: 261340 | AB28: 0 | AC28: 484962 | AD28: 217074 | AE28: 262351 | AF28: 基隆市 | AG28: 0 | AH28: 0 | AI28: 5537 | AJ28: 24230 | AK28: 0 | AL28: 24230 | AM28: 0 | AN28: 11999236 | AO28: 基隆市 | AP28: 11999236 | AQ28: 0 | AR28: 63358 | AS28: 63358 | AT28: 0 | AU28: 0 | AV28: 417569 | AW28: 0 | AX28: 417569
A29: 新竹市 | B29: 新竹市 | C29: 23308877 | D29: 12964008 | E29: 343000 | F29: 新竹市 | G29: 142450 | H29: 402900 | I29: 1381600 | J29: 3584617 | K29: 1755000 | L29: 329840 | M29: 41599 | N29: 新竹市 | O29: 4983002 | P29: 0 | Q29: 0 | R29: 0 | S29: 1 | T29: 246883 | U29: 242965 | V29: 1 | W29: 新竹市 | X29: 3917 | Y29: 420026 | Z29: 158297 | AA29: 261729 | AB29: 0 | AC29: 796427 | AD29: 602756 | AE29: 190000 | AF29: 新竹市 | AG29: 0 | AH29: 0 | AI29: 3671 | AJ29: 0 | AK29: 0 | AL29: 0 | AM29: 0 | AN29: 8123143 | AO29: 新竹市 | AP29: 8123143 | AQ29: 0 | AR29: 4283 | AS29: 4283 | AT29: 0 | AU29: 0 | AV29: 754106 | AW29: 0 | AX29: 754106
A30: 嘉義市 | B30: 嘉義市 | C30: 14514251 | D30: 5414669 | E30: 114510 | F30: 嘉義市 | G30: 84965 | H30: 80000 | I30: 710000 | J30: 1119520 | K30: 630000 | L30: 90000 | M30: 28000 | N30: 嘉義市 | O30: 2557674 | P30: 0 | Q30: 0 | R30: 0 | S30: 1 | T30: 19691 | U30: 19471 | V30: 7 | W30: 嘉義市 | X30: 213 | Y30: 193593 | Z30: 75932 | AA30: 117661 | AB30: 1 | AC30: 49203 | AD30: 38685 | AE30: 10000 | AF30: 嘉義市 | AG30: 0 | AH30: 0 | AI30: 518 | AJ30: 2119 | AK30: 51 | AL30: 0 | AM30: 2068 | AN30: 8679552 | AO30: 嘉義市 | AP30: 8679552 | AQ30: 0 | AR30: 29931 | AS30: 29930 | AT30: 1 | AU30: 0 | AV30: 125491 | AW30: 0 | AX30: 125491
A31: 金門縣 | B31: 金門縣 | C31: 10011324 | D31: 2746573 | E31: 0 | F31: 金門縣 | G31: 756377 | H31: 20000 | I31: 150000 | J31: 152500 | K31: 33600 | L31: 0 | M31: 0 | N31: 金門縣 | O31: 1634096 | P31: 0 | Q31: 0 | R31: 0 | S31: 0 | T31: 32259 | U31: 24204 | V31: 500 | W31: 金門縣 | X31: 7555 | Y31: 264762 | Z31: 49550 | AA31: 215212 | AB31: 0 | AC31: 160700 | AD31: 126772 | AE31: 32701 | AF31: 金門縣 | AG31: 0 | AH31: 0 | AI31: 1227 | AJ31: 0 | AK31: 0 | AL31: 0 | AM31: 0 | AN31: 4287820 | AO31: 金門縣 | AP31: 4287820 | AQ31: 0 | AR31: 2450000 | AS31: 2450000 | AT31: 0 | AU31: 0 | AV31: 69210 | AW31: 0 | AX31: 69210
A32: 連江縣 | B32: 連江縣 | C32: 3345911 | D32: 578318 | E32: 0 | F32: 連江縣 | G32: 70623 | H32: 4000 | I32: 9000 | J32: 7300 | K32: 3000 | L32: 0 | M32: 0 | N32: 連江縣 | O32: 484395 | P32: 0 | Q32: 0 | R32: 0 | S32: 0 | T32: 5130 | U32: 2080 | V32: 0 | W32: 連江縣 | X32: 3050 | Y32: 37915 | Z32: 7985 | AA32: 29930 | AB32: 0 | AC32: 11987 | AD32: 11987 | AE32: 0 | AF32: 連江縣 | AG32: 0 | AH32: 0 | AI32: 0 | AJ32: 15003 | AK32: 1003 | AL32: 14000 | AM32: 0 | AN32: 2514795 | AO32: 連江縣 | AP32: 2514795 | AQ32: 0 | AR32: 175000 | AS32: 175000 | AT32: 0 | AU32: 0 | AV32: 7763 | AW32: 0 | AX32: 7763

Sheet 政事別-經資
D1: 各直轄市及縣 | E1: (市)總預算 | M1: 各直轄市及縣 | N1: (市)總預算 | U1: 各直轄市及縣 | V1: (市)總預算 | AC1: 各直轄市及縣 | AD1: (市)總預算 | AK1: 各直轄市及縣 | AL1: (市)總預算
D2: 歲出政事別 | E2: 預算總表 | M2: 歲出政事別 | N2: 預算總表 | Q2: (續一) | U2: 歲出政事別 | V2: 預算總表 | Y2: (續二) | AC2: 歲出政事別 | AD2: 預算總表 | AG2: (續三) | AK2: 歲出政事別 | AL2: 預算總表 | AO2: (續四)
D3: 中華民國 | E3: =簡明總!#REF! ->  | H3: 單位：新臺幣千元 | M3: 中華民國 | N3: =E3 ->  | Q3: 單位：新臺幣千元 | U3: 中華民國 | V3: =N3 ->  | Y3: 單位：新臺幣千元 | AC3: 中華民國 | AD3: =V3 ->  | AG3: 單位：新臺幣千元 | AK3: 中華民國 | AL3: =AD3 ->  | AO3: 單位：新臺幣千元
A4: 科 目 | C4: 一般政務支出 | D4: 行政支出 | E4: 立法支出 | F4: 民政支出 | G4: 警政支出 | H4: 財務支出 | I4: 科 目 | J4: 教育科學 文化支出 | K4: 教育支出 | L4: 科學支出 | M4: 文化支出 | N4: 經濟發展支出 | O4: 農業支出 | P4: 工業支出 | Q4: 交通支出 | R4: 科 目 | S4: 其他經濟 服務支出 | T4: 社會福利支出 | U4: 社會保險支出 | V4: 社會救助支出 | W4: 福利服務支出 | X4: 國民就業支出 | Y4: 醫療保健支出 | Z4: 科 目 | AA4: 社區發展及環 境保護支出 | AB4: 環境保護支出 | AC4: 社區發展支出 | AD4: 退休撫 卹支出 | AE4: 退休撫卹 給付支出 | AF4: 債務支出 | AG4: 債務付息支出 | AH4: 科 目 | AI4: 還本付息 事務支出 | AJ4: 補助及其他支出 | AK4: 專案補助支出 | AL4: 平衡預算 補助支出 | AM4: 協助支出 | AN4: 其他支出 | AO4: 第二預備金
A5: 款 | B5: 合 計 | C5: 1 | I5: 款 | J5: 2 | N5: 3 | R5: 款 | T5: 4 | Z5: 款 | AA5: 5 | AD5: 6 | AF5: 7 | AH5: 款 | AJ5: 8
A6: 項 | D6: 1 | E6: 2 | F6: 3 | G6: 4 | H6: 5 | I6: 項 | K6: 1 | L6: 2 | M6: 3 | O6: 1 | P6: 2 | Q6: 3 | R6: 項 | S6: 4 | U6: 1 | V6: 2 | W6: 3 | X6: 4 | Y6: 5 | Z6: 項 | AB6: 1 | AC6: 2 | AE6: 1 | AG6: 1 | AH6: 項 | AI6: 2 | AK6: 1 | AL6: 2 | AM6: 3 | AN6: 4 | AO6: 5
A7: (經資門併計) | I7: (經資門併計) | R7: (經資門併計) | Z7: (經資門併計) | AH7: (經資門併計)
A8: 總 計 | B8: 1286694974 | C8: 219197292 | D8: 14335479 | E8: 8062112 | F8: 92578659 | G8: 93898804 | H8: 10322238 | I8: 總 計 | J8: 477168700 | K8: 441850292 | L8: 66334 | M8: 35252074 | N8: 205722602 | O8: 58451873 | P8: 20875622 | Q8: 101032017 | R8: 總 計 | S8: 25363090 | T8: 215565789 | U8: 18650410 | V8: 20583891 | W8: 129326960 | X8: 1610767 | Y8: 45393761 | Z8: 總 計 | AA8: 73222829 | AB8: 61239660 | AC8: 11983169 | AD8: 61420694 | AE8: 61420694 | AF8: 8358688 | AG8: 8338933 | AH8: 總 計 | AI8: 19755 | AJ8: 26038380 | AK8: 344042 | AL8: 217707 | AM8: 0 | AN8: 21187631 | AO8: 4289000
A9: 直轄市合計 | B9: 884873572 | C9: 148401786 | D9: 7810857 | E9: 4599157 | F9: 66526446 | G9: 62887443 | H9: 6577883 | I9: 直轄市合計 | J9: 331312451 | K9: 303700532 | L9: 0 | M9: 27611919 | N9: 144897944 | O9: 36323301 | P9: 15519731 | Q9: 77683057 | R9: 直轄市合計 | S9: 15371855 | T9: 152605462 | U9: 16210147 | V9: 17307686 | W9: 90534865 | X9: 837439 | Y9: 27715325 | Z9: 直轄市合計 | AA9: 61224122 | AB9: 51089717 | AC9: 10134405 | AD9: 24030301 | AE9: 24030301 | AF9: 5965995 | AG9: 5946240 | AH9: 直轄市合計 | AI9: 19755 | AJ9: 16435511 | AK9: 0 | AL9: 0 | AM9: 0 | AN9: 13745511 | AO9: 2690000
A10: 新北市 | B10: 179392552 | C10: 32846196 | D10: 1493096 | E10: 727660 | F10: 17699878 | G10: 11654515 | H10: 1271047 | I10: 新北市 | J10: 65391992 | K10: 61130009 | L10: 0 | M10: 4261983 | N10: 26338261 | O10: 5690019 | P10: 3562063 | Q10: 15974648 | R10: 新北市 | S10: 1111531 | T10: 30752066 | U10: 1504662 | V10: 1366653 | W10: 21796123 | X10: 128979 | Y10: 5955649 | Z10: 新北市 | AA10: 15186718 | AB10: 14160653 | AC10: 1026065 | AD10: 4002397 | AE10: 4002397 | AF10: 1036000 | AG10: 1036000 | AH10: 新北市 | AI10: 0 | AJ10: 3838922 | AK10: 0 | AL10: 0 | AM10: 0 | AN10: 3438922 | AO10: 400000
A11: 臺北市 | B11: 172769655 | C11: 28227450 | D11: 2108625 | E11: 897710 | F11: 9648173 | G11: 13689010 | H11: 1883932 | I11: 臺北市 | J11: 64654481 | K11: 55330090 | L11: 0 | M11: 9324391 | N11: 30197276 | O11: 7597450 | P11: 1452765 | Q11: 19618004 | R11: 臺北市 | S11: 1529057 | T11: 24974186 | U11: 675380 | V11: 8400147 | W11: 10587492 | X11: 488580 | Y11: 4822587 | Z11: 臺北市 | AA11: 14964235 | AB11: 9668043 | AC11: 5296192 | AD11: 5461873 | AE11: 5461873 | AF11: 845654 | AG11: 837654 | AH11: 臺北市 | AI11: 8000 | AJ11: 3444500 | AK11: 0 | AL11: 0 | AM11: 0 | AN11: 2704500 | AO11: 740000
A12: 桃園市 | B12: 137780000 | C12: 22633558 | D12: 1145149 | E12: 683757 | F12: 10731093 | G12: 9319890 | H12: 753669 | I12: 桃園市 | J12: 49518025 | K12: 44615615 | L12: 0 | M12: 4902410 | N12: 32668627 | O12: 7354046 | P12: 6554437 | Q12: 10517146 | R12: 桃園市 | S12: 8242998 | T12: 21080127 | U12: 1249737 | V12: 3356838 | W12: 14260766 | X12: 0 | Y12: 2212786 | Z12: 桃園市 | AA12: 7843617 | AB12: 6387428 | AC12: 1456189 | AD12: 1523357 | AE12: 1523357 | AF12: 521257 | AG12: 521257 | AH12: 桃園市 | AI12: 0 | AJ12: 1991432 | AK12: 0 | AL12: 0 | AM12: 0 | AN12: 1741432 | AO12: 250000
A13: 臺中市 | B13: 142203175 | C13: 23742368 | D13: 1405270 | E13: 796858 | F13: 10019128 | G13: 10481150 | H13: 1039962 | I13: 臺中市 | J13: 58128546 | K13: 55337135 | L13: 0 | M13: 2791411 | N13: 18962247 | O13: 2008254 | P13: 3071629 | Q13: 12561935 | R13: 臺中市 | S13: 1320429 | T13: 26012187 | U13: 965180 | V13: 2172839 | W13: 16547592 | X13: 19542 | Y13: 6307034 | Z13: 臺中市 | AA13: 8696070 | AB13: 7460727 | AC13: 1235343 | AD13: 3174757 | AE13: 3174757 | AF13: 800000 | AG13: 800000 | AH13: 臺中市 | AI13: 0 | AJ13: 2687000 | AK13: 0 | AL13: 0 | AM13: 0 | AN13: 2187000 | AO13: 500000
A14: 臺南市 | B14: 100628490 | C14: 16903511 | D14: 729187 | E14: 699086 | F14: 7730759 | G14: 7096366 | H14: 648113 | I14: 臺南市 | J14: 38176562 | K14: 35143057 | L14: 0 | M14: 3033505 | N14: 19570997 | O14: 9818079 | P14: 813975 | Q14: 7388562 | R14: 臺南市 | S14: 1550381 | T14: 15500095 | U14: 720367 | V14: 750484 | W14: 12647660 | X14: 95465 | Y14: 1286119 | Z14: 臺南市 | AA14: 4624261 | AB14: 4027535 | AC14: 596726 | AD14: 3602771 | AE14: 3602771 | AF14: 524000 | AG14: 524000 | AH14: 臺南市 | AI14: 0 | AJ14: 1726293 | AK14: 0 | AL14: 0 | AM14: 0 | AN14: 1326293 | AO14: 400000
A15: 高雄市 | B15: 152099700 | C15: 24048703 | D15: 929530 | E15: 794086 | F15: 10697415 | G15: 10646512 | H15: 981160 | I15: 高雄市 | J15: 55442845 | K15: 52144626 | L15: 0 | M15: 3298219 | N15: 17160536 | O15: 3855453 | P15: 64862 | Q15: 11622762 | R15: 高雄市 | S15: 1617459 | T15: 34286801 | U15: 11094821 | V15: 1260725 | W15: 14695232 | X15: 104873 | Y15: 7131150 | Z15: 高雄市 | AA15: 9909221 | AB15: 9385331 | AC15: 523890 | AD15: 6265146 | AE15: 6265146 | AF15: 2239084 | AG15: 2227329 | AH15: 高雄市 | AI15: 11755 | AJ15: 2747364 | AK15: 0 | AL15: 0 | AM15: 0 | AN15: 2347364 | AO15: 400000
A16: 縣市合計 | B16: 401821402 | C16: 70795506 | D16: 6524622 | E16: 3462955 | F16: 26052213 | G16: 31011361 | H16: 3744355 | I16: 縣市合計 | J16: 145856249 | K16: 138149760 | L16: 66334 | M16: 7640155 | N16: 60824658 | O16: 22128572 | P16: 5355891 | Q16: 23348960 | R16: 縣市合計 | S16: 9991235 | T16: 62960327 | U16: 2440263 | V16: 3276205 | W16: 38792095 | X16: 773328 | Y16: 17678436 | Z16: 縣市合計 | AA16: 11998707 | AB16: 10149943 | AC16: 1848764 | AD16: 37390393 | AE16: 37390393 | AF16: 2392693 | AG16: 2392693 | AH16: 縣市合計 | AI16: 0 | AJ16: 9602869 | AK16: 344042 | AL16: 217707 | AM16: 0 | AN16: 7442120 | AO16: 1599000
A17: 宜蘭縣 | B17: 24707387 | C17: 4268921 | D17: 334038 | E17: 190322 | F17: 1557920 | G17: 1973951 | H17: 212690 | I17: 宜蘭縣 | J17: 9598283 | K17: 8984917 | L17: 0 | M17: 613366 | N17: 3024880 | O17: 1650430 | P17: 281095 | Q17: 615956 | R17: 宜蘭縣 | S17: 477399 | T17: 3482939 | U17: 123053 | V17: 158365 | W17: 1691788 | X17: 58319 | Y17: 1451414 | Z17: 宜蘭縣 | AA17: 1555889 | AB17: 457812 | AC17: 1098077 | AD17: 2079329 | AE17: 2079329 | AF17: 101378 | AG17: 101378 | AH17: 宜蘭縣 | AI17: 0 | AJ17: 595768 | AK17: 10217 | AL17: 0 | AM17: 0 | AN17: 535551 | AO17: 50000
A18: 新竹縣 | B18: 30351511 | C18: 4701887 | D18: 416213 | E18: 215297 | F18: 2034571 | G18: 1801575 | H18: 234231 | I18: 新竹縣 | J18: 12727402 | K18: 12136652 | L18: 0 | M18: 590750 | N18: 3803640 | O18: 572054 | P18: 120966 | Q18: 2513690 | R18: 新竹縣 | S18: 596930 | T18: 4530116 | U18: 93352 | V18: 117902 | W18: 3625091 | X18: 38475 | Y18: 655296 | Z18: 新竹縣 | AA18: 1124972 | AB18: 1124972 | AC18: 0 | AD18: 2503504 | AE18: 2503504 | AF18: 200000 | AG18: 200000 | AH18: 新竹縣 | AI18: 0 | AJ18: 759990 | AK18: 0 | AL18: 0 | AM18: 0 | AN18: 359990 | AO18: 400000
A19: 苗栗縣 | B19: 21125487 | C19: 4674017 | D19: 355682 | E19: 221485 | F19: 1749730 | G19: 2093717 | H19: 253403 | I19: 苗栗縣 | J19: 7879065 | K19: 7650159 | L19: 0 | M19: 228906 | N19: 1736524 | O19: 786487 | P19: 45247 | Q19: 721969 | R19: 苗栗縣 | S19: 182821 | T19: 2645680 | U19: 121027 | V19: 221001 | W19: 1220356 | X19: 63368 | Y19: 1019928 | Z19: 苗栗縣 | AA19: 1025621 | AB19: 977203 | AC19: 48418 | AD19: 2208030 | AE19: 2208030 | AF19: 550000 | AG19: 550000 | AH19: 苗栗縣 | AI19: 0 | AJ19: 406550 | AK19: 0 | AL19: 42750 | AM19: 0 | AN19: 313800 | AO19: 50000
A20: 彰化縣 | B20: 49925470 | C20: 7541073 | D20: 405760 | E20: 293321 | F20: 2079307 | G20: 4327184 | H20: 435501 | I20: 彰化縣 | J20: 20286076 | K20: 19912699 | L20: 0 | M20: 373377 | N20: 6865682 | O20: 2728468 | P20: 99503 | Q20: 2836078 | R20: 彰化縣 | S20: 1201633 | T20: 7883724 | U20: 391929 | V20: 342402 | W20: 5338172 | X20: 114364 | Y20: 1696857 | Z20: 彰化縣 | AA20: 733251 | AB20: 376313 | AC20: 356938 | AD20: 5256576 | AE20: 5256576 | AF20: 371274 | AG20: 371274 | AH20: 彰化縣 | AI20: 0 | AJ20: 987814 | AK20: 26186 | AL20: 0 | AM20: 0 | AN20: 861628 | AO20: 100000
A21: 南投縣 | B21: 28175000 | C21: 5241976 | D21: 536603 | E21: 251559 | F21: 1677010 | G21: 2517427 | H21: 259377 | I21: 南投縣 | J21: 10500154 | K21: 10390330 | L21: 0 | M21: 109824 | N21: 3659686 | O21: 475117 | P21: 1362005 | Q21: 1616360 | R21: 南投縣 | S21: 206204 | T21: 4563781 | U21: 135807 | V21: 138734 | W21: 3277242 | X21: 15823 | Y21: 996175 | Z21: 南投縣 | AA21: 530170 | AB21: 498812 | AC21: 31358 | AD21: 2819514 | AE21: 2819514 | AF21: 98431 | AG21: 98431 | AH21: 南投縣 | AI21: 0 | AJ21: 761288 | AK21: 37500 | AL21: 0 | AM21: 0 | AN21: 493788 | AO21: 230000
A22: 雲林縣 | B22: 36591202 | C22: 4858585 | D22: 349880 | E22: 245158 | F22: 1444766 | G22: 2531189 | H22: 287592 | I22: 雲林縣 | J22: 13425205 | K22: 12310980 | L22: 0 | M22: 1114225 | N22: 6804584 | O22: 3668889 | P22: 180145 | Q22: 1959694 | R22: 雲林縣 | S22: 995856 | T22: 6395254 | U22: 225374 | V22: 526237 | W22: 3753589 | X22: 0 | Y22: 1890054 | Z22: 雲林縣 | AA22: 307094 | AB22: 299978 | AC22: 7116 | AD22: 3415323 | AE22: 3415323 | AF22: 184670 | AG22: 184670 | AH22: 雲林縣 | AI22: 0 | AJ22: 1200487 | AK22: 76500 | AL22: 0 | AM22: 0 | AN22: 1043987 | AO22: 80000
A23: 嘉義縣 | B23: 30000000 | C23: 4549058 | D23: 506313 | E23: 221875 | F23: 1465807 | G23: 2100984 | H23: 254079 | I23: 嘉義縣 | J23: 9845987 | K23: 9652522 | L23: 0 | M23: 193465 | N23: 6827175 | O23: 4921336 | P23: 63595 | Q23: 1465463 | R23: 嘉義縣 | S23: 376781 | T23: 5152930 | U23: 150794 | V23: 128167 | W23: 3657187 | X23: 76196 | Y23: 1140586 | Z23: 嘉義縣 | AA23: 261437 | AB23: 261437 | AC23: 0 | AD23: 2356316 | AE23: 2356316 | AF23: 250000 | AG23: 250000 | AH23: 嘉義縣 | AI23: 0 | AJ23: 757097 | AK23: 21847 | AL23: 89250 | AM23: 0 | AN23: 566000 | AO23: 80000
A24: 屏東縣 | B24: 44488000 | C24: 8177972 | D24: 695558 | E24: 320783 | F24: 3665212 | G24: 3131363 | H24: 365056 | I24: 屏東縣 | J24: 15996808 | K24: 15057328 | L24: 0 | M24: 939480 | N24: 6029286 | O24: 2750699 | P24: 337624 | Q24: 2353764 | R24: 屏東縣 | S24: 587199 | T24: 7649479 | U24: 305424 | V24: 398001 | W24: 3543932 | X24: 232497 | Y24: 3169625 | Z24: 屏東縣 | AA24: 586370 | AB24: 524439 | AC24: 61931 | AD24: 5102932 | AE24: 5102932 | AF24: 150000 | AG24: 150000 | AH24: 屏東縣 | AI24: 0 | AJ24: 795153 | AK24: 79292 | AL24: 0 | AM24: 0 | AN24: 665861 | AO24: 50000
A25: 臺東縣 | B25: 20676578 | C25: 4694257 | D25: 537210 | E25: 203527 | F25: 2207649 | G25: 1545838 | H25: 200033 | I25: 臺東縣 | J25: 7042641 | K25: 6667820 | L25: 0 | M25: 374821 | N25: 2292178 | O25: 926511 | P25: 260340 | Q25: 261492 | R25: 臺東縣 | S25: 843835 | T25: 3104119 | U25: 100092 | V25: 286925 | W25: 1302047 | X25: 30186 | Y25: 1384869 | Z25: 臺東縣 | AA25: 457952 | AB25: 451072 | AC25: 6880 | AD25: 2234115 | AE25: 2234115 | AF25: 100000 | AG25: 100000 | AH25: 臺東縣 | AI25: 0 | AJ25: 751316 | AK25: 1000 | AL25: 0 | AM25: 0 | AN25: 690316 | AO25: 60000
A26: 花蓮縣 | B26: 24131869 | C26: 5339081 | D26: 336063 | E26: 218684 | F26: 2508219 | G26: 2010748 | H26: 265367 | I26: 花蓮縣 | J26: 8622719 | K26: 8025428 | L26: 0 | M26: 597291 | N26: 2829123 | O26: 733231 | P26: 789797 | Q26: 627179 | R26: 花蓮縣 | S26: 678916 | T26: 3913272 | U26: 104874 | V26: 242604 | W26: 2753275 | X26: 12999 | Y26: 799520 | Z26: 花蓮縣 | AA26: 490952 | AB26: 430511 | AC26: 60441 | AD26: 2317383 | AE26: 2317383 | AF26: 122200 | AG26: 122200 | AH26: 花蓮縣 | AI26: 0 | AJ26: 497139 | AK26: 0 | AL26: 0 | AM26: 0 | AN26: 437139 | AO26: 60000
A27: 澎湖縣 | B27: 11684058 | C27: 2490210 | D27: 222314 | E27: 153585 | F27: 610026 | G27: 1377542 | H27: 126743 | I27: 澎湖縣 | J27: 2845469 | K27: 2526189 | L27: 66334 | M27: 252946 | N27: 2669417 | O27: 584148 | P27: 630605 | Q27: 904981 | R27: 澎湖縣 | S27: 549683 | T27: 1864327 | U27: 46510 | V27: 99168 | W27: 1111083 | X27: 20248 | Y27: 587318 | Z27: 澎湖縣 | AA27: 607378 | AB27: 597670 | AC27: 9708 | AD27: 841815 | AE27: 841815 | AF27: 16740 | AG27: 16740 | AH27: 澎湖縣 | AI27: 0 | AJ27: 348702 | AK27: 88500 | AL27: 0 | AM27: 0 | AN27: 213202 | AO27: 47000
A28: 基隆市 | B28: 21545849 | C28: 4200287 | D28: 379860 | E28: 208583 | F28: 1558395 | G28: 1773604 | H28: 279845 | I28: 基隆市 | J28: 7471816 | K28: 7153134 | L28: 0 | M28: 318682 | N28: 3073696 | O28: 206662 | P28: 405544 | Q28: 1875591 | R28: 基隆市 | S28: 585899 | T28: 3574472 | U28: 454543 | V28: 309648 | W28: 2309378 | X28: 14556 | Y28: 486347 | Z28: 基隆市 | AA28: 860331 | AB28: 845128 | AC28: 15203 | AD28: 1885467 | AE28: 1885467 | AF28: 90000 | AG28: 90000 | AH28: 基隆市 | AI28: 0 | AJ28: 389780 | AK28: 0 | AL28: 0 | AM28: 0 | AN28: 364780 | AO28: 25000
A29: 新竹市 | B29: 25277780 | C29: 3768638 | D29: 343969 | E29: 223757 | F29: 1381621 | G29: 1557788 | H29: 261503 | I29: 新竹市 | J29: 9426216 | K29: 8414462 | L29: 0 | M29: 1011754 | N29: 3420202 | O29: 485596 | P29: 383138 | Q29: 1596397 | R29: 新竹市 | S29: 955071 | T29: 3982288 | U29: 87555 | V29: 150971 | W29: 2951875 | X29: 58194 | Y29: 733693 | Z29: 新竹市 | AA29: 1614798 | AB29: 1493218 | AC29: 121580 | AD29: 2225038 | AE29: 2225038 | AF29: 150000 | AG29: 150000 | AH29: 新竹市 | AI29: 0 | AJ29: 690600 | AK29: 0 | AL29: 0 | AM29: 0 | AN29: 390600 | AO29: 300000
A30: 嘉義市 | B30: 15997247 | C30: 3266974 | D30: 309810 | E30: 229758 | F30: 1156425 | G30: 1354881 | H30: 216100 | I30: 嘉義市 | J30: 5793743 | K30: 5435298 | L30: 0 | M30: 358445 | N30: 2073330 | O30: 61786 | P30: 90628 | Q30: 1586811 | R30: 嘉義市 | S30: 334105 | T30: 2234361 | U30: 62966 | V30: 95409 | W30: 1321127 | X30: 38103 | Y30: 716756 | Z30: 嘉義市 | AA30: 875882 | AB30: 867012 | AC30: 8870 | AD30: 1427557 | AE30: 1427557 | AF30: 7400 | AG30: 7400 | AH30: 嘉義市 | AI30: 0 | AJ30: 318000 | AK30: 0 | AL30: 0 | AM30: 0 | AN30: 303000 | AO30: 15000
A31: 金門縣 | B31: 13549643 | C31: 2310548 | D31: 541639 | E31: 200739 | F31: 771107 | G31: 732423 | H31: 64640 | I31: 金門縣 | J31: 3423743 | K31: 2955753 | L31: 0 | M31: 467990 | N31: 4353396 | O31: 1272897 | P31: 289454 | Q31: 1824339 | R31: 金門縣 | S31: 966706 | T31: 1621221 | U31: 35084 | V31: 51603 | W31: 835851 | X31: 0 | Y31: 698683 | Z31: 金門縣 | AA31: 889822 | AB31: 867578 | AC31: 22244 | AD31: 667406 | AE31: 667406 | AF31: 0 | AG31: 0 | AH31: 金門縣 | AI31: 0 | AJ31: 283507 | AK31: 0 | AL31: 85707 | AM31: 0 | AN31: 160800 | AO31: 37000
A32: 連江縣 | B32: 3594321 | C32: 712022 | D32: 253710 | E32: 64522 | F32: 184448 | G32: 181147 | H32: 28195 | I32: 連江縣 | J32: 970922 | K32: 876089 | L32: 0 | M32: 94833 | N32: 1361859 | O32: 304261 | P32: 16205 | Q32: 589196 | R32: 連江縣 | S32: 452197 | T32: 362364 | U32: 1879 | V32: 9068 | W32: 100102 | X32: 0 | Y32: 251315 | Z32: 連江縣 | AA32: 76788 | AB32: 76788 | AC32: 0 | AD32: 50088 | AE32: 50088 | AF32: 600 | AG32: 600 | AH32: 連江縣 | AI32: 0 | AJ32: 59678 | AK32: 3000 | AL32: 0 | AM32: 0 | AN32: 41678 | AO32: 15000
A33: (經常門) | I33: (經常門) | R33: (經常門) | Z33: (經常門) | AH33: (經常門)
A34: 總 計 | B34: 1008413505 | C34: 198905938 | D34: 12854186 | E34: 7636978 | F34: 78583646 | G34: 89816773 | H34: 10014355 | I34: 總 計 | J34: 407569651 | K34: 386505393 | L34: 43904 | M34: 21020354 | N34: 61751870 | O34: 15589230 | P34: 8268047 | Q34: 27482256 | R34: 總 計 | S34: 10412337 | T34: 207922248 | U34: 18650410 | V34: 20580611 | W34: 124603738 | X34: 1435201 | Y34: 42652288 | Z34: 總 計 | AA34: 49523542 | AB34: 43797668 | AC34: 5725874 | AD34: 61420694 | AE34: 61420694 | AF34: 8358688 | AG34: 8338933 | AH34: 總 計 | AI34: 19755 | AJ34: 12960874 | AK34: 341042 | AL34: 169852 | AM34: 0 | AN34: 9237647 | AO34: 3212333
A35: 直轄市合計 | B35: 697270264 | C35: 134520023 | D35: 6995379 | E35: 4391885 | F35: 56512722 | G35: 60213090 | H35: 6406947 | I35: 直轄市合計 | J35: 288276015 | K35: 271634048 | L35: 0 | M35: 16641967 | N35: 46142343 | O35: 9277644 | P35: 6068052 | Q35: 24433783 | R35: 直轄市合計 | S35: 6362864 | T35: 147439605 | U35: 16210147 | V35: 17304436 | W35: 86613606 | X35: 728153 | Y35: 26583263 | Z35: 直轄市合計 | AA35: 42767031 | AB35: 37459598 | AC35: 5307433 | AD35: 24030301 | AE35: 24030301 | AF35: 5965995 | AG35: 5946240 | AH35: 直轄市合計 | AI35: 19755 | AJ35: 8128951 | AK35: 0 | AL35: 0 | AM35: 0 | AN35: 6125618 | AO35: 2003333
A36: 新北市 | B36: 140215824 | C36: 28381178 | D36: 1330205 | E36: 682150 | F36: 13977403 | G36: 11164952 | H36: 1226468 | I36: 新北市 | J36: 57303161 | K36: 54687453 | L36: 0 | M36: 2615708 | N36: 7832893 | O36: 1682604 | P36: 641947 | Q36: 4675411 | R36: 新北市 | S36: 832931 | T36: 29497407 | U36: 1504662 | V36: 1366653 | W36: 20869457 | X36: 128234 | Y36: 5628401 | Z36: 新北市 | AA36: 9882866 | AB36: 9169030 | AC36: 713836 | AD36: 4002397 | AE36: 4002397 | AF36: 1036000 | AG36: 1036000 | AH36: 新北市 | AI36: 0 | AJ36: 2279922 | AK36: 0 | AL36: 0 | AM36: 0 | AN36: 1879922 | AO36: 400000
A37: 臺北市 | B37: 137052222 | C37: 26000276 | D37: 1880619 | E37: 832889 | F37: 8619853 | G37: 12848407 | H37: 1818508 | I37: 臺北市 | J37: 56508432 | K37: 50914468 | L37: 0 | M37: 5593964 | N37: 12912242 | O37: 2343429 | P37: 1284923 | Q37: 8004827 | R37: 臺北市 | S37: 1279063 | T37: 23471500 | U37: 675380 | V37: 8400147 | W37: 9233045 | X37: 385210 | Y37: 4777718 | Z37: 臺北市 | AA37: 9677745 | AB37: 8012659 | AC37: 1665086 | AD37: 5461873 | AE37: 5461873 | AF37: 845654 | AG37: 837654 | AH37: 臺北市 | AI37: 8000 | AJ37: 2174500 | AK37: 0 | AL37: 0 | AM37: 0 | AN37: 1654500 | AO37: 520000
A38: 桃園市 | B38: 97143142 | C38: 19747797 | D38: 937337 | E38: 666677 | F38: 8647131 | G38: 8753718 | H38: 742934 | I38: 桃園市 | J38: 41040568 | K38: 38414364 | L38: 0 | M38: 2626204 | N38: 6746074 | O38: 1648564 | P38: 1696404 | Q38: 2380853 | R38: 桃園市 | S38: 1020253 | T38: 20178047 | U38: 1249737 | V38: 3353838 | W38: 13429948 | X38: 0 | Y38: 2144524 | Z38: 桃園市 | AA38: 6781610 | AB38: 5595684 | AC38: 1185926 | AD38: 1523357 | AE38: 1523357 | AF38: 521257 | AG38: 521257 | AH38: 桃園市 | AI38: 0 | AJ38: 604432 | AK38: 0 | AL38: 0 | AM38: 0 | AN38: 354432 | AO38: 250000
A39: 臺中市 | B39: 118407709 | C39: 22245302 | D39: 1308462 | E39: 789942 | F39: 8854508 | G39: 10277985 | H39: 1014405 | I39: 臺中市 | J39: 51409060 | K39: 49607125 | L39: 0 | M39: 1801935 | N39: 7742264 | O39: 1127777 | P39: 1643729 | Q39: 4012733 | R39: 臺中市 | S39: 958025 | T39: 25445401 | U39: 965180 | V39: 2172839 | W39: 16138778 | X39: 19542 | Y39: 6149062 | Z39: 臺中市 | AA39: 6393925 | AB39: 5675861 | AC39: 718064 | AD39: 3174757 | AE39: 3174757 | AF39: 800000 | AG39: 800000 | AH39: 臺中市 | AI39: 0 | AJ39: 1197000 | AK39: 0 | AL39: 0 | AM39: 0 | AN39: 897000 | AO39: 300000
A40: 臺南市 | B40: 77427451 | C40: 15685597 | D40: 665123 | E40: 661177 | F40: 6859370 | G40: 6863520 | H40: 636407 | I40: 臺南市 | J40: 32536726 | K40: 30918722 | L40: 0 | M40: 1618004 | N40: 5358614 | O40: 1779809 | P40: 762087 | Q40: 1689604 | R40: 臺南市 | S40: 1127114 | T40: 15241919 | U40: 720367 | V40: 750484 | W40: 12461275 | X40: 93749 | Y40: 1216044 | Z40: 臺南市 | AA40: 3713824 | AB40: 3180736 | AC40: 533088 | AD40: 3602771 | AE40: 3602771 | AF40: 524000 | AG40: 524000 | AH40: 臺南市 | AI40: 0 | AJ40: 764000 | AK40: 0 | AL40: 0 | AM40: 0 | AN40: 364000 | AO40: 400000
A41: 高雄市 | B41: 127023916 | C41: 22459873 | D41: 873633 | E41: 759050 | F41: 9554457 | G41: 10304508 | H41: 968225 | I41: 高雄市 | J41: 49478068 | K41: 47091916 | L41: 0 | M41: 2386152 | N41: 5550256 | O41: 695461 | P41: 38962 | Q41: 3670355 | R41: 高雄市 | S41: 1145478 | T41: 33605331 | U41: 11094821 | V41: 1260475 | W41: 14481103 | X41: 101418 | Y41: 6667514 | Z41: 高雄市 | AA41: 6317061 | AB41: 5825628 | AC41: 491433 | AD41: 6265146 | AE41: 6265146 | AF41: 2239084 | AG41: 2227329 | AH41: 高雄市 | AI41: 11755 | AJ41: 1109097 | AK41: 0 | AL41: 0 | AM41: 0 | AN41: 975764 | AO41: 133333
A42: 縣市合計 | B42: 311143241 | C42: 64385915 | D42: 5858807 | E42: 3245093 | F42: 22070924 | G42: 29603683 | H42: 3607408 | I42: 縣市合計 | J42: 119293636 | K42: 114871345 | L42: 43904 | M42: 4378387 | N42: 15609527 | O42: 6311586 | P42: 2199995 | Q42: 3048473 | R42: 縣市合計 | S42: 4049473 | T42: 60482643 | U42: 2440263 | V42: 3276175 | W42: 37990132 | X42: 707048 | Y42: 16069025 | Z42: 縣市合計 | AA42: 6756511 | AB42: 6338070 | AC42: 418441 | AD42: 37390393 | AE42: 37390393 | AF42: 2392693 | AG42: 2392693 | AH42: 縣市合計 | AI42: 0 | AJ42: 4831923 | AK42: 341042 | AL42: 169852 | AM42: 0 | AN42: 3112029 | AO42: 1209000
A43: 宜蘭縣 | B43: 19596748 | C43: 3836106 | D43: 295298 | E43: 186887 | F43: 1215745 | G43: 1928176 | H43: 210000 | I43: 宜蘭縣 | J43: 8040331 | K43: 7584779 | L43: 0 | M43: 455552 | N43: 1235001 | O43: 662724 | P43: 206655 | Q43: 158137 | R43: 宜蘭縣 | S43: 207485 | T43: 3378137 | U43: 123053 | V43: 158365 | W43: 1667516 | X43: 57319 | Y43: 1371884 | Z43: 宜蘭縣 | AA43: 577872 | AB43: 446795 | AC43: 131077 | AD43: 2079329 | AE43: 2079329 | AF43: 101378 | AG43: 101378 | AH43: 宜蘭縣 | AI43: 0 | AJ43: 348594 | AK43: 10217 | AL43: 0 | AM43: 0 | AN43: 288377 | AO43: 50000
A44: 新竹縣 | B44: 22483005 | C44: 3966910 | D44: 355817 | E44: 209127 | F44: 1515840 | G44: 1656220 | H44: 229906 | I44: 新竹縣 | J44: 9580838 | K44: 9382949 | L44: 0 | M44: 197889 | N44: 837166 | O44: 247854 | P44: 97566 | Q44: 353708 | R44: 新竹縣 | S44: 138038 | T44: 4396642 | U44: 93352 | V44: 117902 | W44: 3536476 | X44: 38475 | Y44: 610437 | Z44: 新竹縣 | AA44: 541475 | AB44: 541475 | AC44: 0 | AD44: 2503504 | AE44: 2503504 | AF44: 200000 | AG44: 200000 | AH44: 新竹縣 | AI44: 0 | AJ44: 456470 | AK44: 0 | AL44: 0 | AM44: 0 | AN44: 56470 | AO44: 400000
A45: 苗栗縣 | B45: 18061851 | C45: 4386857 | D45: 329242 | E45: 205505 | F45: 1634311 | G45: 1967533 | H45: 250266 | I45: 苗栗縣 | J45: 7621751 | K45: 7426170 | L45: 0 | M45: 195581 | N45: 373505 | O45: 215855 | P45: 44967 | Q45: 44888 | R45: 苗栗縣 | S45: 67795 | T45: 2597920 | U45: 121027 | V45: 221001 | W45: 1219356 | X45: 62557 | Y45: 973979 | Z45: 苗栗縣 | AA45: 128638 | AB45: 121220 | AC45: 7418 | AD45: 2208030 | AE45: 2208030 | AF45: 550000 | AG45: 550000 | AH45: 苗栗縣 | AI45: 0 | AJ45: 195150 | AK45: 0 | AL45: 42750 | AM45: 0 | AN45: 102400 | AO45: 50000
A46: 彰化縣 | B46: 39431034 | C46: 7370322 | D46: 397678 | E46: 289681 | F46: 2032173 | G46: 4218963 | H46: 431827 | I46: 彰化縣 | J46: 17374727 | K46: 17102295 | L46: 0 | M46: 272432 | N46: 1190916 | O46: 599840 | P46: 99503 | Q46: 188800 | R46: 彰化縣 | S46: 302773 | T46: 7072858 | U46: 391929 | V46: 342402 | W46: 5247595 | X46: 114364 | Y46: 976568 | Z46: 彰化縣 | AA46: 296547 | AB46: 252657 | AC46: 43890 | AD46: 5256576 | AE46: 5256576 | AF46: 371274 | AG46: 371274 | AH46: 彰化縣 | AI46: 0 | AJ46: 497814 | AK46: 26186 | AL46: 0 | AM46: 0 | AN46: 371628 | AO46: 100000
A47: 南投縣 | B47: 22680880 | C47: 4682695 | D47: 367450 | E47: 245609 | F47: 1436562 | G47: 2376755 | H47: 256319 | I47: 南投縣 | J47: 9009144 | K47: 8904922 | L47: 0 | M47: 104222 | N47: 662270 | O47: 272692 | P47: 178567 | Q47: 12048 | R47: 南投縣 | S47: 198963 | T47: 4529409 | U47: 135807 | V47: 138734 | W47: 3277242 | X47: 15823 | Y47: 961803 | Z47: 南投縣 | AA47: 399879 | AB47: 368521 | AC47: 31358 | AD47: 2819514 | AE47: 2819514 | AF47: 98431 | AG47: 98431 | AH47: 南投縣 | AI47: 0 | AJ47: 479538 | AK47: 37500 | AL47: 0 | AM47: 0 | AN47: 212038 | AO47: 230000
A48: 雲林縣 | B48: 27032308 | C48: 4563368 | D48: 345265 | E48: 240308 | F48: 1327925 | G48: 2371070 | H48: 278800 | I48: 雲林縣 | J48: 10866734 | K48: 10370597 | L48: 0 | M48: 496137 | N48: 1133707 | O48: 824630 | P48: 139878 | Q48: 50289 | R48: 雲林縣 | S48: 118910 | T48: 6246712 | U48: 225374 | V48: 526237 | W48: 3681917 | X48: 0 | Y48: 1813184 | Z48: 雲林縣 | AA48: 249794 | AB48: 244678 | AC48: 5116 | AD48: 3415323 | AE48: 3415323 | AF48: 184670 | AG48: 184670 | AH48: 雲林縣 | AI48: 0 | AJ48: 372000 | AK48: 76500 | AL48: 0 | AM48: 0 | AN48: 295500 | AO48: 0
A49: 嘉義縣 | B49: 21252372 | C49: 4209854 | D49: 413161 | E49: 211960 | F49: 1370919 | G49: 1975333 | H49: 238481 | I49: 嘉義縣 | J49: 8031619 | K49: 7886314 | L49: 0 | M49: 145305 | N49: 936411 | O49: 531202 | P49: 45368 | Q49: 145699 | R49: 嘉義縣 | S49: 214142 | T49: 4958382 | U49: 150794 | V49: 128167 | W49: 3531170 | X49: 74761 | Y49: 1073490 | Z49: 嘉義縣 | AA49: 133693 | AB49: 133693 | AC49: 0 | AD49: 2356316 | AE49: 2356316 | AF49: 250000 | AG49: 250000 | AH49: 嘉義縣 | AI49: 0 | AJ49: 376097 | AK49: 21847 | AL49: 89250 | AM49: 0 | AN49: 265000 | AO49: 0
A50: 屏東縣 | B50: 34813821 | C50: 7188417 | D50: 571158 | E50: 302832 | F50: 2955818 | G50: 3028058 | H50: 330551 | I50: 屏東縣 | J50: 13013145 | K50: 12524201 | L50: 0 | M50: 488944 | N50: 1282352 | O50: 572538 | P50: 134513 | Q50: 306621 | R50: 屏東縣 | S50: 268680 | T50: 7214441 | U50: 305424 | V50: 398001 | W50: 3460493 | X50: 169673 | Y50: 2880850 | Z50: 屏東縣 | AA50: 514381 | AB50: 452450 | AC50: 61931 | AD50: 5102932 | AE50: 5102932 | AF50: 150000 | AG50: 150000 | AH50: 屏東縣 | AI50: 0 | AJ50: 348153 | AK50: 79292 | AL50: 0 | AM50: 0 | AN50: 218861 | AO50: 50000
A51: 臺東縣 | B51: 16953411 | C51: 4016230 | D51: 536310 | E51: 193027 | F51: 1636602 | G51: 1475965 | H51: 174326 | I51: 臺東縣 | J51: 5668237 | K51: 5427378 | L51: 0 | M51: 240859 | N51: 1209114 | O51: 394963 | P51: 260340 | Q51: 164741 | R51: 臺東縣 | S51: 389070 | T51: 3003930 | U51: 100092 | V51: 286925 | W51: 1276558 | X51: 30186 | Y51: 1310169 | Z51: 臺東縣 | AA51: 240469 | AB51: 233589 | AC51: 6880 | AD51: 2234115 | AE51: 2234115 | AF51: 100000 | AG51: 100000 | AH51: 臺東縣 | AI51: 0 | AJ51: 481316 | AK51: 1000 | AL51: 0 | AM51: 0 | AN51: 480316 | AO51: 0
A52: 花蓮縣 | B52: 18989079 | C52: 4621521 | D52: 324376 | E52: 204417 | F52: 1940408 | G52: 1892228 | H52: 260092 | I52: 花蓮縣 | J52: 6557173 | K52: 6320285 | L52: 0 | M52: 236888 | N52: 961344 | O52: 347850 | P52: 278363 | Q52: 78388 | R52: 花蓮縣 | S52: 256743 | T52: 3851515 | U52: 104874 | V52: 242604 | W52: 2736948 | X52: 12989 | Y52: 754100 | Z52: 花蓮縣 | AA52: 300804 | AB52: 286190 | AC52: 14614 | AD52: 2317383 | AE52: 2317383 | AF52: 122200 | AG52: 122200 | AH52: 花蓮縣 | AI52: 0 | AJ52: 257139 | AK52: 0 | AL52: 0 | AM52: 0 | AN52: 197139 | AO52: 60000
A53: 澎湖縣 | B53: 8806265 | C53: 2378291 | D53: 210614 | E53: 150085 | F53: 556866 | G53: 1334223 | H53: 126503 | I53: 澎湖縣 | J53: 2351305 | K53: 2120442 | L53: 43904 | M53: 186959 | N53: 981337 | O53: 329704 | P53: 101950 | Q53: 0 | R53: 澎湖縣 | S53: 549683 | T53: 1719964 | U53: 46510 | V53: 99168 | W53: 1009754 | X53: 20248 | Y53: 544284 | Z53: 澎湖縣 | AA53: 285221 | AB53: 280513 | AC53: 4708 | AD53: 841815 | AE53: 841815 | AF53: 16740 | AG53: 16740 | AH53: 澎湖縣 | AI53: 0 | AJ53: 231592 | AK53: 88500 | AL53: 0 | AM53: 0 | AN53: 96092 | AO53: 47000
A54: 基隆市 | B54: 16970919 | C54: 3986432 | D54: 351825 | E54: 201691 | F54: 1420973 | G54: 1737645 | H54: 274298 | I54: 基隆市 | J54: 5649975 | K54: 5464812 | L54: 0 | M54: 185163 | N54: 864947 | O54: 160992 | P54: 101434 | Q54: 392360 | R54: 基隆市 | S54: 210161 | T54: 3516125 | U54: 454543 | V54: 309648 | W54: 2272428 | X54: 14556 | Y54: 464950 | Z54: 基隆市 | AA54: 803693 | AB54: 788590 | AC54: 15103 | AD54: 1885467 | AE54: 1885467 | AF54: 90000 | AG54: 90000 | AH54: 基隆市 | AI54: 0 | AJ54: 174280 | AK54: 0 | AL54: 0 | AM54: 0 | AN54: 149280 | AO54: 25000
A55: 新竹市 | B55: 19190881 | C55: 3421009 | D55: 318063 | E55: 192605 | F55: 1182296 | G55: 1472805 | H55: 255240 | I55: 新竹市 | J55: 7218018 | K55: 6759977 | L55: 0 | M55: 458041 | N55: 856274 | O55: 102616 | P55: 126238 | Q55: 317512 | R55: 新竹市 | S55: 309908 | T55: 3925208 | U55: 87555 | V55: 150971 | W55: 2911751 | X55: 57994 | Y55: 716937 | Z55: 新竹市 | AA55: 1118734 | AB55: 1042502 | AC55: 76232 | AD55: 2225038 | AE55: 2225038 | AF55: 150000 | AG55: 150000 | AH55: 新竹市 | AI55: 0 | AJ55: 276600 | AK55: 0 | AL55: 0 | AM55: 0 | AN55: 136600 | AO55: 140000
A56: 嘉義市 | B56: 12993053 | C56: 2948161 | D56: 299042 | E56: 168838 | F56: 982183 | G56: 1293606 | H56: 204492 | I56: 嘉義市 | J56: 5077830 | K56: 4758966 | L56: 0 | M56: 318864 | N56: 409622 | O56: 61786 | P56: 90628 | Q56: 87763 | R56: 嘉義市 | S56: 169445 | T56: 2186046 | U56: 62966 | V56: 95409 | W56: 1308677 | X56: 38103 | Y56: 680891 | Z56: 嘉義市 | AA56: 728437 | AB56: 719567 | AC56: 8870 | AD56: 1427557 | AE56: 1427557 | AF56: 7400 | AG56: 7400 | AH56: 嘉義市 | AI56: 0 | AJ56: 208000 | AK56: 0 | AL56: 0 | AM56: 0 | AN56: 193000 | AO56: 15000
A57: 金門縣 | B57: 9496600 | C57: 2146772 | D57: 509686 | E57: 179499 | F57: 696582 | G57: 702768 | H57: 58237 | I57: 金門縣 | J57: 2557915 | K57: 2233157 | L57: 0 | M57: 324758 | N57: 2113104 | O57: 856244 | P57: 277820 | Q57: 364721 | R57: 金門縣 | S57: 614319 | T57: 1525950 | U57: 35084 | V57: 51573 | W57: 752693 | X57: 0 | Y57: 686600 | Z57: 金門縣 | AA57: 367801 | AB57: 356557 | AC57: 11244 | AD57: 667406 | AE57: 667406 | AF57: 0 | AG57: 0 | AH57: 金門縣 | AI57: 0 | AJ57: 117652 | AK57: 0 | AL57: 37852 | AM57: 0 | AN57: 42800 | AO57: 37000
A58: 連江縣 | B58: 2391014 | C58: 662970 | D58: 233822 | E58: 63022 | F58: 165721 | G58: 172335 | H58: 28070 | I58: 連江縣 | J58: 674894 | K58: 604101 | L58: 0 | M58: 70793 | N58: 562457 | O58: 130096 | P58: 16205 | Q58: 382798 | R58: 連江縣 | S58: 33358 | T58: 359404 | U58: 1879 | V58: 9068 | W58: 99558 | X58: 0 | Y58: 248899 | Z58: 連江縣 | AA58: 69073 | AB58: 69073 | AC58: 0 | AD58: 50088 | AE58: 50088 | AF58: 600 | AG58: 600 | AH58: 連江縣 | AI58: 0 | AJ58: 11528 | AK58: 0 | AL58: 0 | AM58: 0 | AN58: 6528 | AO58: 5000
A59: (資本門) | I59: (資本門) | R59: (資本門) | Z59: (資本門) | AH59: (資本門)
A60: 總 計 | B60: 278281469 | C60: 20291354 | D60: 1481293 | E60: 425134 | F60: 13995013 | G60: 4082031 | H60: 307883 | I60: 總 計 | J60: 69599049 | K60: 55344899 | L60: 22430 | M60: 14231720 | N60: 143970732 | O60: 42862643 | P60: 12607575 | Q60: 73549761 | R60: 總 計 | S60: 14950753 | T60: 7643541 | U60: 0 | V60: 3280 | W60: 4723222 | X60: 175566 | Y60: 2741473 | Z60: 總 計 | AA60: 23699287 | AB60: 17441992 | AC60: 6257295 | AD60: 0 | AE60: 0 | AF60: 0 | AG60: 0 | AH60: 總 計 | AI60: 0 | AJ60: 13077506 | AK60: 3000 | AL60: 47855 | AM60: 0 | AN60: 11949984 | AO60: 1076667
A61: 直轄市合計 | B61: 187603308 | C61: 13881763 | D61: 815478 | E61: 207272 | F61: 10013724 | G61: 2674353 | H61: 170936 | I61: 直轄市合計 | J61: 43036436 | K61: 32066484 | L61: 0 | M61: 10969952 | N61: 98755601 | O61: 27045657 | P61: 9451679 | Q61: 53249274 | R61: 直轄市合計 | S61: 9008991 | T61: 5165857 | U61: 0 | V61: 3250 | W61: 3921259 | X61: 109286 | Y61: 1132062 | Z61: 直轄市合計 | AA61: 18457091 | AB61: 13630119 | AC61: 4826972 | AD61: 0 | AE61: 0 | AF61: 0 | AG61: 0 | AH61: 直轄市合計 | AI61: 0 | AJ61: 8306560 | AK61: 0 | AL61: 0 | AM61: 0 | AN61: 7619893 | AO61: 686667
A62: 新北市 | B62: 39176728 | C62: 4465018 | D62: 162891 | E62: 45510 | F62: 3722475 | G62: 489563 | H62: 44579 | I62: 新北市 | J62: 8088831 | K62: 6442556 | L62: 0 | M62: 1646275 | N62: 18505368 | O62: 4007415 | P62: 2920116 | Q62: 11299237 | R62: 新北市 | S62: 278600 | T62: 1254659 | U62: 0 | V62: 0 | W62: 926666 | X62: 745 | Y62: 327248 | Z62: 新北市 | AA62: 5303852 | AB62: 4991623 | AC62: 312229 | AD62: 0 | AE62: 0 | AF62: 0 | AG62: 0 | AH62: 新北市 | AI62: 0 | AJ62: 1559000 | AK62: 0 | AL62: 0 | AM62: 0 | AN62: 1559000 | AO62: 0
A63: 臺北市 | B63: 35717433 | C63: 2227174 | D63: 228006 | E63: 64821 | F63: 1028320 | G63: 840603 | H63: 65424 | I63: 臺北市 | J63: 8146049 | K63: 4415622 | L63: 0 | M63: 3730427 | N63: 17285034 | O63: 5254021 | P63: 167842 | Q63: 11613177 | R63: 臺北市 | S63: 249994 | T63: 1502686 | U63: 0 | V63: 0 | W63: 1354447 | X63: 103370 | Y63: 44869 | Z63: 臺北市 | AA63: 5286490 | AB63: 1655384 | AC63: 3631106 | AD63: 0 | AE63: 0 | AF63: 0 | AG63: 0 | AH63: 臺北市 | AI63: 0 | AJ63: 1270000 | AK63: 0 | AL63: 0 | AM63: 0 | AN63: 1050000 | AO63: 220000
A64: 桃園市 | B64: 40636858 | C64: 2885761 | D64: 207812 | E64: 17080 | F64: 2083962 | G64: 566172 | H64: 10735 | I64: 桃園市 | J64: 8477457 | K64: 6201251 | L64: 0 | M64: 2276206 | N64: 25922553 | O64: 5705482 | P64: 4858033 | Q64: 8136293 | R64: 桃園市 | S64: 7222745 | T64: 902080 | U64: 0 | V64: 3000 | W64: 830818 | X64: 0 | Y64: 68262 | Z64: 桃園市 | AA64: 1062007 | AB64: 791744 | AC64: 270263 | AD64: 0 | AE64: 0 | AF64: 0 | AG64: 0 | AH64: 桃園市 | AI64: 0 | AJ64: 1387000 | AK64: 0 | AL64: 0 | AM64: 0 | AN64: 1387000 | AO64: 0
A65: 臺中市 | B65: 23795466 | C65: 1497066 | D65: 96808 | E65: 6916 | F65: 1164620 | G65: 203165 | H65: 25557 | I65: 臺中市 | J65: 6719486 | K65: 5730010 | L65: 0 | M65: 989476 | N65: 11219983 | O65: 880477 | P65: 1427900 | Q65: 8549202 | R65: 臺中市 | S65: 362404 | T65: 566786 | U65: 0 | V65: 0 | W65: 408814 | X65: 0 | Y65: 157972 | Z65: 臺中市 | AA65: 2302145 | AB65: 1784866 | AC65: 517279 | AD65: 0 | AE65: 0 | AF65: 0 | AG65: 0 | AH65: 臺中市 | AI65: 0 | AJ65: 1490000 | AK65: 0 | AL65: 0 | AM65: 0 | AN65: 1290000 | AO65: 200000
A66: 臺南市 | B66: 23201039 | C66: 1217914 | D66: 64064 | E66: 37909 | F66: 871389 | G66: 232846 | H66: 11706 | I66: 臺南市 | J66: 5639836 | K66: 4224335 | L66: 0 | M66: 1415501 | N66: 14212383 | O66: 8038270 | P66: 51888 | Q66: 5698958 | R66: 臺南市 | S66: 423267 | T66: 258176 | U66: 0 | V66: 0 | W66: 186385 | X66: 1716 | Y66: 70075 | Z66: 臺南市 | AA66: 910437 | AB66: 846799 | AC66: 63638 | AD66: 0 | AE66: 0 | AF66: 0 | AG66: 0 | AH66: 臺南市 | AI66: 0 | AJ66: 962293 | AK66: 0 | AL66: 0 | AM66: 0 | AN66: 962293 | AO66: 0
A67: 高雄市 | B67: 25075784 | C67: 1588830 | D67: 55897 | E67: 35036 | F67: 1142958 | G67: 342004 | H67: 12935 | I67: 高雄市 | J67: 5964777 | K67: 5052710 | L67: 0 | M67: 912067 | N67: 11610280 | O67: 3159992 | P67: 25900 | Q67: 7952407 | R67: 高雄市 | S67: 471981 | T67: 681470 | U67: 0 | V67: 250 | W67: 214129 | X67: 3455 | Y67: 463636 | Z67: 高雄市 | AA67: 3592160 | AB67: 3559703 | AC67: 32457 | AD67: 0 | AE67: 0 | AF67: 0 | AG67: 0 | AH67: 高雄市 | AI67: 0 | AJ67: 1638267 | AK67: 0 | AL67: 0 | AM67: 0 | AN67: 1371600 | AO67: 266667
A68: 縣市合計 | B68: 90678161 | C68: 6409591 | D68: 665815 | E68: 217862 | F68: 3981289 | G68: 1407678 | H68: 136947 | I68: 縣市合計 | J68: 26562613 | K68: 23278415 | L68: 22430 | M68: 3261768 | N68: 45215131 | O68: 15816986 | P68: 3155896 | Q68: 20300487 | R68: 縣市合計 | S68: 5941762 | T68: 2477684 | U68: 0 | V68: 30 | W68: 801963 | X68: 66280 | Y68: 1609411 | Z68: 縣市合計 | AA68: 5242196 | AB68: 3811873 | AC68: 1430323 | AD68: 0 | AE68: 0 | AF68: 0 | AG68: 0 | AH68: 縣市合計 | AI68: 0 | AJ68: 4770946 | AK68: 3000 | AL68: 47855 | AM68: 0 | AN68: 4330091 | AO68: 390000
A69: 宜蘭縣 | B69: 5110639 | C69: 432815 | D69: 38740 | E69: 3435 | F69: 342175 | G69: 45775 | H69: 2690 | I69: 宜蘭縣 | J69: 1557952 | K69: 1400138 | L69: 0 | M69: 157814 | N69: 1789879 | O69: 987706 | P69: 74440 | Q69: 457819 | R69: 宜蘭縣 | S69: 269914 | T69: 104802 | U69: 0 | V69: 0 | W69: 24272 | X69: 1000 | Y69: 79530 | Z69: 宜蘭縣 | AA69: 978017 | AB69: 11017 | AC69: 967000 | AD69: 0 | AE69: 0 | AF69: 0 | AG69: 0 | AH69: 宜蘭縣 | AI69: 0 | AJ69: 247174 | AK69: 0 | AL69: 0 | AM69: 0 | AN69: 247174 | AO69: 0
A70: 新竹縣 | B70: 7868506 | C70: 734977 | D70: 60396 | E70: 6170 | F70: 518731 | G70: 145355 | H70: 4325 | I70: 新竹縣 | J70: 3146564 | K70: 2753703 | L70: 0 | M70: 392861 | N70: 2966474 | O70: 324200 | P70: 23400 | Q70: 2159982 | R70: 新竹縣 | S70: 458892 | T70: 133474 | U70: 0 | V70: 0 | W70: 88615 | X70: 0 | Y70: 44859 | Z70: 新竹縣 | AA70: 583497 | AB70: 583497 | AC70: 0 | AD70: 0 | AE70: 0 | AF70: 0 | AG70: 0 | AH70: 新竹縣 | AI70: 0 | AJ70: 303520 | AK70: 0 | AL70: 0 | AM70: 0 | AN70: 303520 | AO70: 0
A71: 苗栗縣 | B71: 3063636 | C71: 287160 | D71: 26440 | E71: 15980 | F71: 115419 | G71: 126184 | H71: 3137 | I71: 苗栗縣 | J71: 257314 | K71: 223989 | L71: 0 | M71: 33325 | N71: 1363019 | O71: 570632 | P71: 280 | Q71: 677081 | R71: 苗栗縣 | S71: 115026 | T71: 47760 | U71: 0 | V71: 0 | W71: 1000 | X71: 811 | Y71: 45949 | Z71: 苗栗縣 | AA71: 896983 | AB71: 855983 | AC71: 41000 | AD71: 0 | AE71: 0 | AF71: 0 | AG71: 0 | AH71: 苗栗縣 | AI71: 0 | AJ71: 211400 | AK71: 0 | AL71: 0 | AM71: 0 | AN71: 211400 | AO71: 0
A72: 彰化縣 | B72: 10494436 | C72: 170751 | D72: 8082 | E72: 3640 | F72: 47134 | G72: 108221 | H72: 3674 | I72: 彰化縣 | J72: 2911349 | K72: 2810404 | L72: 0 | M72: 100945 | N72: 5674766 | O72: 2128628 | P72: 0 | Q72: 2647278 | R72: 彰化縣 | S72: 898860 | T72: 810866 | U72: 0 | V72: 0 | W72: 90577 | X72: 0 | Y72: 720289 | Z72: 彰化縣 | AA72: 436704 | AB72: 123656 | AC72: 313048 | AD72: 0 | AE72: 0 | AF72: 0 | AG72: 0 | AH72: 彰化縣 | AI72: 0 | AJ72: 490000 | AK72: 0 | AL72: 0 | AM72: 0 | AN72: 490000 | AO72: 0
A73: 南投縣 | B73: 5494120 | C73: 559281 | D73: 169153 | E73: 5950 | F73: 240448 | G73: 140672 | H73: 3058 | I73: 南投縣 | J73: 1491010 | K73: 1485408 | L73: 0 | M73: 5602 | N73: 2997416 | O73: 202425 | P73: 1183438 | Q73: 1604312 | R73: 南投縣 | S73: 7241 | T73: 34372 | U73: 0 | V73: 0 | W73: 0 | X73: 0 | Y73: 34372 | Z73: 南投縣 | AA73: 130291 | AB73: 130291 | AC73: 0 | AD73: 0 | AE73: 0 | AF73: 0 | AG73: 0 | AH73: 南投縣 | AI73: 0 | AJ73: 281750 | AK73: 0 | AL73: 0 | AM73: 0 | AN73: 281750 | AO73: 0
A74: 雲林縣 | B74: 9558894 | C74: 295217 | D74: 4615 | E74: 4850 | F74: 116841 | G74: 160119 | H74: 8792 | I74: 雲林縣 | J74: 2558471 | K74: 1940383 | L74: 0 | M74: 618088 | N74: 5670877 | O74: 2844259 | P74: 40267 | Q74: 1909405 | R74: 雲林縣 | S74: 876946 | T74: 148542 | U74: 0 | V74: 0 | W74: 71672 | X74: 0 | Y74: 76870 | Z74: 雲林縣 | AA74: 57300 | AB74: 55300 | AC74: 2000 | AD74: 0 | AE74: 0 | AF74: 0 | AG74: 0 | AH74: 雲林縣 | AI74: 0 | AJ74: 828487 | AK74: 0 | AL74: 0 | AM74: 0 | AN74: 748487 | AO74: 80000
A75: 嘉義縣 | B75: 8747628 | C75: 339204 | D75: 93152 | E75: 9915 | F75: 94888 | G75: 125651 | H75: 15598 | I75: 嘉義縣 | J75: 1814368 | K75: 1766208 | L75: 0 | M75: 48160 | N75: 5890764 | O75: 4390134 | P75: 18227 | Q75: 1319764 | R75: 嘉義縣 | S75: 162639 | T75: 194548 | U75: 0 | V75: 0 | W75: 126017 | X75: 1435 | Y75: 67096 | Z75: 嘉義縣 | AA75: 127744 | AB75: 127744 | AC75: 0 | AD75: 0 | AE75: 0 | AF75: 0 | AG75: 0 | AH75: 嘉義縣 | AI75: 0 | AJ75: 381000 | AK75: 0 | AL75: 0 | AM75: 0 | AN75: 301000 | AO75: 80000
A76: 屏東縣 | B76: 9674179 | C76: 989555 | D76: 124400 | E76: 17951 | F76: 709394 | G76: 103305 | H76: 34505 | I76: 屏東縣 | J76: 2983663 | K76: 2533127 | L76: 0 | M76: 450536 | N76: 4746934 | O76: 2178161 | P76: 203111 | Q76: 2047143 | R76: 屏東縣 | S76: 318519 | T76: 435038 | U76: 0 | V76: 0 | W76: 83439 | X76: 62824 | Y76: 288775 | Z76: 屏東縣 | AA76: 71989 | AB76: 71989 | AC76: 0 | AD76: 0 | AE76: 0 | AF76: 0 | AG76: 0 | AH76: 屏東縣 | AI76: 0 | AJ76: 447000 | AK76: 0 | AL76: 0 | AM76: 0 | AN76: 447000 | AO76: 0
A77: 臺東縣 | B77: 3723167 | C77: 678027 | D77: 900 | E77: 10500 | F77: 571047 | G77: 69873 | H77: 25707 | I77: 臺東縣 | J77: 1374404 | K77: 1240442 | L77: 0 | M77: 133962 | N77: 1083064 | O77: 531548 | P77: 0 | Q77: 96751 | R77: 臺東縣 | S77: 454765 | T77: 100189 | U77: 0 | V77: 0 | W77: 25489 | X77: 0 | Y77: 74700 | Z77: 臺東縣 | AA77: 217483 | AB77: 217483 | AC77: 0 | AD77: 0 | AE77: 0 | AF77: 0 | AG77: 0 | AH77: 臺東縣 | AI77: 0 | AJ77: 270000 | AK77: 0 | AL77: 0 | AM77: 0 | AN77: 210000 | AO77: 60000
A78: 花蓮縣 | B78: 5142790 | C78: 717560 | D78: 11687 | E78: 14267 | F78: 567811 | G78: 118520 | H78: 5275 | I78: 花蓮縣 | J78: 2065546 | K78: 1705143 | L78: 0 | M78: 360403 | N78: 1867779 | O78: 385381 | P78: 511434 | Q78: 548791 | R78: 花蓮縣 | S78: 422173 | T78: 61757 | U78: 0 | V78: 0 | W78: 16327 | X78: 10 | Y78: 45420 | Z78: 花蓮縣 | AA78: 190148 | AB78: 144321 | AC78: 45827 | AD78: 0 | AE78: 0 | AF78: 0 | AG78: 0 | AH78: 花蓮縣 | AI78: 0 | AJ78: 240000 | AK78: 0 | AL78: 0 | AM78: 0 | AN78: 240000 | AO78: 0
A79: 澎湖縣 | B79: 2877793 | C79: 111919 | D79: 11700 | E79: 3500 | F79: 53160 | G79: 43319 | H79: 240 | I79: 澎湖縣 | J79: 494164 | K79: 405747 | L79: 22430 | M79: 65987 | N79: 1688080 | O79: 254444 | P79: 528655 | Q79: 904981 | R79: 澎湖縣 | S79: 0 | T79: 144363 | U79: 0 | V79: 0 | W79: 101329 | X79: 0 | Y79: 43034 | Z79: 澎湖縣 | AA79: 322157 | AB79: 317157 | AC79: 5000 | AD79: 0 | AE79: 0 | AF79: 0 | AG79: 0 | AH79: 澎湖縣 | AI79: 0 | AJ79: 117110 | AK79: 0 | AL79: 0 | AM79: 0 | AN79: 117110 | AO79: 0
A80: 基隆市 | B80: 4574930 | C80: 213855 | D80: 28035 | E80: 6892 | F80: 137422 | G80: 35959 | H80: 5547 | I80: 基隆市 | J80: 1821841 | K80: 1688322 | L80: 0 | M80: 133519 | N80: 2208749 | O80: 45670 | P80: 304110 | Q80: 1483231 | R80: 基隆市 | S80: 375738 | T80: 58347 | U80: 0 | V80: 0 | W80: 36950 | X80: 0 | Y80: 21397 | Z80: 基隆市 | AA80: 56638 | AB80: 56538 | AC80: 100 | AD80: 0 | AE80: 0 | AF80: 0 | AG80: 0 | AH80: 基隆市 | AI80: 0 | AJ80: 215500 | AK80: 0 | AL80: 0 | AM80: 0 | AN80: 215500 | AO80: 0
A81: 新竹市 | B81: 6086899 | C81: 347629 | D81: 25906 | E81: 31152 | F81: 199325 | G81: 84983 | H81: 6263 | I81: 新竹市 | J81: 2208198 | K81: 1654485 | L81: 0 | M81: 553713 | N81: 2563928 | O81: 382980 | P81: 256900 | Q81: 1278885 | R81: 新竹市 | S81: 645163 | T81: 57080 | U81: 0 | V81: 0 | W81: 40124 | X81: 200 | Y81: 16756 | Z81: 新竹市 | AA81: 496064 | AB81: 450716 | AC81: 45348 | AD81: 0 | AE81: 0 | AF81: 0 | AG81: 0 | AH81: 新竹市 | AI81: 0 | AJ81: 414000 | AK81: 0 | AL81: 0 | AM81: 0 | AN81: 254000 | AO81: 160000
A82: 嘉義市 | B82: 3004194 | C82: 318813 | D82: 10768 | E82: 60920 | F82: 174242 | G82: 61275 | H82: 11608 | I82: 嘉義市 | J82: 715913 | K82: 676332 | L82: 0 | M82: 39581 | N82: 1663708 | O82: 0 | P82: 0 | Q82: 1499048 | R82: 嘉義市 | S82: 164660 | T82: 48315 | U82: 0 | V82: 0 | W82: 12450 | X82: 0 | Y82: 35865 | Z82: 嘉義市 | AA82: 147445 | AB82: 147445 | AC82: 0 | AD82: 0 | AE82: 0 | AF82: 0 | AG82: 0 | AH82: 嘉義市 | AI82: 0 | AJ82: 110000 | AK82: 0 | AL82: 0 | AM82: 0 | AN82: 110000 | AO82: 0
A83: 金門縣 | B83: 4053043 | C83: 163776 | D83: 31953 | E83: 21240 | F83: 74525 | G83: 29655 | H83: 6403 | I83: 金門縣 | J83: 865828 | K83: 722596 | L83: 0 | M83: 143232 | N83: 2240292 | O83: 416653 | P83: 11634 | Q83: 1459618 | R83: 金門縣 | S83: 352387 | T83: 95271 | U83: 0 | V83: 30 | W83: 83158 | X83: 0 | Y83: 12083 | Z83: 金門縣 | AA83: 522021 | AB83: 511021 | AC83: 11000 | AD83: 0 | AE83: 0 | AF83: 0 | AG83: 0 | AH83: 金門縣 | AI83: 0 | AJ83: 165855 | AK83: 0 | AL83: 47855 | AM83: 0 | AN83: 118000 | AO83: 0
A84: 連江縣 | B84: 1203307 | C84: 49052 | D84: 19888 | E84: 1500 | F84: 18727 | G84: 8812 | H84: 125 | I84: 連江縣 | J84: 296028 | K84: 271988 | L84: 0 | M84: 24040 | N84: 799402 | O84: 174165 | P84: 0 | Q84: 206398 | R84: 連江縣 | S84: 418839 | T84: 2960 | U84: 0 | V84: 0 | W84: 544 | X84: 0 | Y84: 2416 | Z84: 連江縣 | AA84: 7715 | AB84: 7715 | AC84: 0 | AD84: 0 | AE84: 0 | AF84: 0 | AG84: 0 | AH84: 連江縣 | AI84: 0 | AJ84: 48150 | AK84: 3000 | AL84: 0 | AM84: 0 | AN84: 35150 | AO84: 10000

Sheet 政事別-經
D1: 各直轄市及縣 | E1: (市)總預算 | M1: 各直轄市及縣 | N1: (市)總預算 | U1: 各直轄市及縣 | V1: (市)總預算 | AC1: 各直轄市及縣 | AD1: (市)總預算 | AK1: 各直轄市及縣 | AL1: (市)總預算
D2: 歲出政事別 | E2: 預算總表 | H2: (續五) | M2: 歲出政事別 | N2: 預算總表 | Q2: (續六) | U2: 歲出政事別 | V2: 預算總表 | Y2: (續七) | AC2: 歲出政事別 | AD2: 預算總表 | AG2: (續八) | AK2: 歲出政事別 | AL2: 預算總表 | AO2: (續九)
D3: 中華民國 | E3: =簡明總!#REF! ->  | H3: 單位：新臺幣千元 | M3: 中華民國 | N3: =E3 ->  | Q3: 單位：新臺幣千元 | U3: 中華民國 | V3: =N3 ->  | Y3: 單位：新臺幣千元 | AC3: 中華民國 | AD3: =V3 ->  | AG3: 單位：新臺幣千元 | AK3: 中華民國 | AL3: =AD3 ->  | AO3: 單位：新臺幣千元
A4: 科 目 | C4: 一般政務支出 | D4: 行政支出 | E4: 立法支出 | F4: 民政支出 | G4: 警政支出 | H4: 財務支出 | I4: 科 目 | J4: 教育科學 文化支出 | K4: 教育支出 | L4: 科學支出 | M4: 文化支出 | N4: 經濟發展支出 | O4: 農業支出 | P4: 工業支出 | Q4: 交通支出 | R4: 科 目 | S4: 其他經濟 服務支出 | T4: 社會福利支出 | U4: 社會保險支出 | V4: 社會救助支出 | W4: 福利服務支出 | X4: 國民就業支出 | Y4: 醫療保健支出 | Z4: 科 目 | AA4: 社區發展及環 境保護支出 | AB4: 環境保護支出 | AC4: 社區發展支出 | AD4: 退休撫 卹支出 | AE4: 退休撫卹 給付支出 | AF4: 債務支出 | AG4: 債務付息支出 | AH4: 科 目 | AI4: 還本付息 事務支出 | AJ4: 補助及其他支出 | AK4: 專案補助支出 | AL4: 平衡預算 補助支出 | AM4: 協助支出 | AN4: 其他支出 | AO4: 第二預備金
A5: 款 | B5: 合 計 | C5: 1 | I5: 款 | J5: 2 | N5: 3 | R5: 款 | T5: 4 | Z5: 款 | AA5: 5 | AD5: 6 | AF5: 7 | AH5: 款 | AJ5: 8
A6: 項 | D6: 1 | E6: 2 | F6: 3 | G6: 4 | H6: 5 | I6: 項 | K6: 1 | L6: 2 | M6: 3 | O6: 1 | P6: 2 | Q6: 3 | R6: 項 | S6: 4 | U6: 1 | V6: 2 | W6: 3 | X6: 4 | Y6: 5 | Z6: 項 | AB6: 1 | AC6: 2 | AE6: 1 | AG6: 1 | AH6: 項 | AI6: 2 | AK6: 1 | AL6: 2 | AM6: 3 | AN6: 4 | AO6: 5
A7: (經資門併計) | I7: (經資門併計) | R7: (經資門併計) | Z7: (經資門併計) | AH7: (經資門併計)
A8: 總 計 | B8: 1286694974 | C8: 219197292 | D8: 14335479 | E8: 8062112 | F8: 92578659 | G8: 93898804 | H8: 10322238 | I8: 總 計 | J8: 477168700 | K8: 441850292 | L8: 66334 | M8: 35252074 | N8: 205722602 | O8: 58451873 | P8: 20875622 | Q8: 101032017 | R8: 總 計 | S8: 25363090 | T8: 215565789 | U8: 18650410 | V8: 20583891 | W8: 129326960 | X8: 1610767 | Y8: 45393761 | Z8: 總 計 | AA8: 73222829 | AB8: 61239660 | AC8: 11983169 | AD8: 61420694 | AE8: 61420694 | AF8: 8358688 | AG8: 8338933 | AH8: 總 計 | AI8: 19755 | AJ8: 26038380 | AK8: 344042 | AL8: 217707 | AM8: 0 | AN8: 21187631 | AO8: 4289000
A9: 直轄市合計 | B9: 884873572 | C9: 148401786 | D9: 7810857 | E9: 4599157 | F9: 66526446 | G9: 62887443 | H9: 6577883 | I9: 直轄市合計 | J9: 331312451 | K9: 303700532 | L9: 0 | M9: 27611919 | N9: 144897944 | O9: 36323301 | P9: 15519731 | Q9: 77683057 | R9: 直轄市合計 | S9: 15371855 | T9: 152605462 | U9: 16210147 | V9: 17307686 | W9: 90534865 | X9: 837439 | Y9: 27715325 | Z9: 直轄市合計 | AA9: 61224122 | AB9: 51089717 | AC9: 10134405 | AD9: 24030301 | AE9: 24030301 | AF9: 5965995 | AG9: 5946240 | AH9: 直轄市合計 | AI9: 19755 | AJ9: 16435511 | AK9: 0 | AL9: 0 | AM9: 0 | AN9: 13745511 | AO9: 2690000
A10: 新北市 | B10: 179392552 | C10: 32846196 | D10: 1493096 | E10: 727660 | F10: 17699878 | G10: 11654515 | H10: 1271047 | I10: 新北市 | J10: 65391992 | K10: 61130009 | L10: 0 | M10: 4261983 | N10: 26338261 | O10: 5690019 | P10: 3562063 | Q10: 15974648 | R10: 新北市 | S10: 1111531 | T10: 30752066 | U10: 1504662 | V10: 1366653 | W10: 21796123 | X10: 128979 | Y10: 5955649 | Z10: 新北市 | AA10: 15186718 | AB10: 14160653 | AC10: 1026065 | AD10: 4002397 | AE10: 4002397 | AF10: 1036000 | AG10: 1036000 | AH10: 新北市 | AI10: 0 | AJ10: 3838922 | AK10: 0 | AL10: 0 | AM10: 0 | AN10: 3438922 | AO10: 400000
A11: 臺北市 | B11: 172769655 | C11: 28227450 | D11: 2108625 | E11: 897710 | F11: 9648173 | G11: 13689010 | H11: 1883932 | I11: 臺北市 | J11: 64654481 | K11: 55330090 | L11: 0 | M11: 9324391 | N11: 30197276 | O11: 7597450 | P11: 1452765 | Q11: 19618004 | R11: 臺北市 | S11: 1529057 | T11: 24974186 | U11: 675380 | V11: 8400147 | W11: 10587492 | X11: 488580 | Y11: 4822587 | Z11: 臺北市 | AA11: 14964235 | AB11: 9668043 | AC11: 5296192 | AD11: 5461873 | AE11: 5461873 | AF11: 845654 | AG11: 837654 | AH11: 臺北市 | AI11: 8000 | AJ11: 3444500 | AK11: 0 | AL11: 0 | AM11: 0 | AN11: 2704500 | AO11: 740000
A12: 桃園市 | B12: 137780000 | C12: 22633558 | D12: 1145149 | E12: 683757 | F12: 10731093 | G12: 9319890 | H12: 753669 | I12: 桃園市 | J12: 49518025 | K12: 44615615 | L12: 0 | M12: 4902410 | N12: 32668627 | O12: 7354046 | P12: 6554437 | Q12: 10517146 | R12: 桃園市 | S12: 8242998 | T12: 21080127 | U12: 1249737 | V12: 3356838 | W12: 14260766 | X12: 0 | Y12: 2212786 | Z12: 桃園市 | AA12: 7843617 | AB12: 6387428 | AC12: 1456189 | AD12: 1523357 | AE12: 1523357 | AF12: 521257 | AG12: 521257 | AH12: 桃園市 | AI12: 0 | AJ12: 1991432 | AK12: 0 | AL12: 0 | AM12: 0 | AN12: 1741432 | AO12: 250000
A13: 臺中市 | B13: 142203175 | C13: 23742368 | D13: 1405270 | E13: 796858 | F13: 10019128 | G13: 10481150 | H13: 1039962 | I13: 臺中市 | J13: 58128546 | K13: 55337135 | L13: 0 | M13: 2791411 | N13: 18962247 | O13: 2008254 | P13: 3071629 | Q13: 12561935 | R13: 臺中市 | S13: 1320429 | T13: 26012187 | U13: 965180 | V13: 2172839 | W13: 16547592 | X13: 19542 | Y13: 6307034 | Z13: 臺中市 | AA13: 8696070 | AB13: 7460727 | AC13: 1235343 | AD13: 3174757 | AE13: 3174757 | AF13: 800000 | AG13: 800000 | AH13: 臺中市 | AI13: 0 | AJ13: 2687000 | AK13: 0 | AL13: 0 | AM13: 0 | AN13: 2187000 | AO13: 500000
A14: 臺南市 | B14: 100628490 | C14: 16903511 | D14: 729187 | E14: 699086 | F14: 7730759 | G14: 7096366 | H14: 648113 | I14: 臺南市 | J14: 38176562 | K14: 35143057 | L14: 0 | M14: 3033505 | N14: 19570997 | O14: 9818079 | P14: 813975 | Q14: 7388562 | R14: 臺南市 | S14: 1550381 | T14: 15500095 | U14: 720367 | V14: 750484 | W14: 12647660 | X14: 95465 | Y14: 1286119 | Z14: 臺南市 | AA14: 4624261 | AB14: 4027535 | AC14: 596726 | AD14: 3602771 | AE14: 3602771 | AF14: 524000 | AG14: 524000 | AH14: 臺南市 | AI14: 0 | AJ14: 1726293 | AK14: 0 | AL14: 0 | AM14: 0 | AN14: 1326293 | AO14: 400000
A15: 高雄市 | B15: 152099700 | C15: 24048703 | D15: 929530 | E15: 794086 | F15: 10697415 | G15: 10646512 | H15: 981160 | I15: 高雄市 | J15: 55442845 | K15: 52144626 | L15: 0 | M15: 3298219 | N15: 17160536 | O15: 3855453 | P15: 64862 | Q15: 11622762 | R15: 高雄市 | S15: 1617459 | T15: 34286801 | U15: 11094821 | V15: 1260725 | W15: 14695232 | X15: 104873 | Y15: 7131150 | Z15: 高雄市 | AA15: 9909221 | AB15: 9385331 | AC15: 523890 | AD15: 6265146 | AE15: 6265146 | AF15: 2239084 | AG15: 2227329 | AH15: 高雄市 | AI15: 11755 | AJ15: 2747364 | AK15: 0 | AL15: 0 | AM15: 0 | AN15: 2347364 | AO15: 400000
A16: 縣市合計 | B16: 401821402 | C16: 70795506 | D16: 6524622 | E16: 3462955 | F16: 26052213 | G16: 31011361 | H16: 3744355 | I16: 縣市合計 | J16: 145856249 | K16: 138149760 | L16: 66334 | M16: 7640155 | N16: 60824658 | O16: 22128572 | P16: 5355891 | Q16: 23348960 | R16: 縣市合計 | S16: 9991235 | T16: 62960327 | U16: 2440263 | V16: 3276205 | W16: 38792095 | X16: 773328 | Y16: 17678436 | Z16: 縣市合計 | AA16: 11998707 | AB16: 10149943 | AC16: 1848764 | AD16: 37390393 | AE16: 37390393 | AF16: 2392693 | AG16: 2392693 | AH16: 縣市合計 | AI16: 0 | AJ16: 9602869 | AK16: 344042 | AL16: 217707 | AM16: 0 | AN16: 7442120 | AO16: 1599000
A17: 宜蘭縣 | B17: 24707387 | C17: 4268921 | D17: 334038 | E17: 190322 | F17: 1557920 | G17: 1973951 | H17: 212690 | I17: 宜蘭縣 | J17: 9598283 | K17: 8984917 | L17: 0 | M17: 613366 | N17: 3024880 | O17: 1650430 | P17: 281095 | Q17: 615956 | R17: 宜蘭縣 | S17: 477399 | T17: 3482939 | U17: 123053 | V17: 158365 | W17: 1691788 | X17: 58319 | Y17: 1451414 | Z17: 宜蘭縣 | AA17: 1555889 | AB17: 457812 | AC17: 1098077 | AD17: 2079329 | AE17: 2079329 | AF17: 101378 | AG17: 101378 | AH17: 宜蘭縣 | AI17: 0 | AJ17: 595768 | AK17: 10217 | AL17: 0 | AM17: 0 | AN17: 535551 | AO17: 50000
A18: 新竹縣 | B18: 30351511 | C18: 4701887 | D18: 416213 | E18: 215297 | F18: 2034571 | G18: 1801575 | H18: 234231 | I18: 新竹縣 | J18: 12727402 | K18: 12136652 | L18: 0 | M18: 590750 | N18: 3803640 | O18: 572054 | P18: 120966 | Q18: 2513690 | R18: 新竹縣 | S18: 596930 | T18: 4530116 | U18: 93352 | V18: 117902 | W18: 3625091 | X18: 38475 | Y18: 655296 | Z18: 新竹縣 | AA18: 1124972 | AB18: 1124972 | AC18: 0 | AD18: 2503504 | AE18: 2503504 | AF18: 200000 | AG18: 200000 | AH18: 新竹縣 | AI18: 0 | AJ18: 759990 | AK18: 0 | AL18: 0 | AM18: 0 | AN18: 359990 | AO18: 400000
A19: 苗栗縣 | B19: 21125487 | C19: 4674017 | D19: 355682 | E19: 221485 | F19: 1749730 | G19: 2093717 | H19: 253403 | I19: 苗栗縣 | J19: 7879065 | K19: 7650159 | L19: 0 | M19: 228906 | N19: 1736524 | O19: 786487 | P19: 45247 | Q19: 721969 | R19: 苗栗縣 | S19: 182821 | T19: 2645680 | U19: 121027 | V19: 221001 | W19: 1220356 | X19: 63368 | Y19: 1019928 | Z19: 苗栗縣 | AA19: 1025621 | AB19: 977203 | AC19: 48418 | AD19: 2208030 | AE19: 2208030 | AF19: 550000 | AG19: 550000 | AH19: 苗栗縣 | AI19: 0 | AJ19: 406550 | AK19: 0 | AL19: 42750 | AM19: 0 | AN19: 313800 | AO19: 50000
A20: 彰化縣 | B20: 49925470 | C20: 7541073 | D20: 405760 | E20: 293321 | F20: 2079307 | G20: 4327184 | H20: 435501 | I20: 彰化縣 | J20: 20286076 | K20: 19912699 | L20: 0 | M20: 373377 | N20: 6865682 | O20: 2728468 | P20: 99503 | Q20: 2836078 | R20: 彰化縣 | S20: 1201633 | T20: 7883724 | U20: 391929 | V20: 342402 | W20: 5338172 | X20: 114364 | Y20: 1696857 | Z20: 彰化縣 | AA20: 733251 | AB20: 376313 | AC20: 356938 | AD20: 5256576 | AE20: 5256576 | AF20: 371274 | AG20: 371274 | AH20: 彰化縣 | AI20: 0 | AJ20: 987814 | AK20: 26186 | AL20: 0 | AM20: 0 | AN20: 861628 | AO20: 100000
A21: 南投縣 | B21: 28175000 | C21: 5241976 | D21: 536603 | E21: 251559 | F21: 1677010 | G21: 2517427 | H21: 259377 | I21: 南投縣 | J21: 10500154 | K21: 10390330 | L21: 0 | M21: 109824 | N21: 3659686 | O21: 475117 | P21: 1362005 | Q21: 1616360 | R21: 南投縣 | S21: 206204 | T21: 4563781 | U21: 135807 | V21: 138734 | W21: 3277242 | X21: 15823 | Y21: 996175 | Z21: 南投縣 | AA21: 530170 | AB21: 498812 | AC21: 31358 | AD21: 2819514 | AE21: 2819514 | AF21: 98431 | AG21: 98431 | AH21: 南投縣 | AI21: 0 | AJ21: 761288 | AK21: 37500 | AL21: 0 | AM21: 0 | AN21: 493788 | AO21: 230000
A22: 雲林縣 | B22: 36591202 | C22: 4858585 | D22: 349880 | E22: 245158 | F22: 1444766 | G22: 2531189 | H22: 287592 | I22: 雲林縣 | J22: 13425205 | K22: 12310980 | L22: 0 | M22: 1114225 | N22: 6804584 | O22: 3668889 | P22: 180145 | Q22: 1959694 | R22: 雲林縣 | S22: 995856 | T22: 6395254 | U22: 225374 | V22: 526237 | W22: 3753589 | X22: 0 | Y22: 1890054 | Z22: 雲林縣 | AA22: 307094 | AB22: 299978 | AC22: 7116 | AD22: 3415323 | AE22: 3415323 | AF22: 184670 | AG22: 184670 | AH22: 雲林縣 | AI22: 0 | AJ22: 1200487 | AK22: 76500 | AL22: 0 | AM22: 0 | AN22: 1043987 | AO22: 80000
A23: 嘉義縣 | B23: 30000000 | C23: 4549058 | D23: 506313 | E23: 221875 | F23: 1465807 | G23: 2100984 | H23: 254079 | I23: 嘉義縣 | J23: 9845987 | K23: 9652522 | L23: 0 | M23: 193465 | N23: 6827175 | O23: 4921336 | P23: 63595 | Q23: 1465463 | R23: 嘉義縣 | S23: 376781 | T23: 5152930 | U23: 150794 | V23: 128167 | W23: 3657187 | X23: 76196 | Y23: 1140586 | Z23: 嘉義縣 | AA23: 261437 | AB23: 261437 | AC23: 0 | AD23: 2356316 | AE23: 2356316 | AF23: 250000 | AG23: 250000 | AH23: 嘉義縣 | AI23: 0 | AJ23: 757097 | AK23: 21847 | AL23: 89250 | AM23: 0 | AN23: 566000 | AO23: 80000
A24: 屏東縣 | B24: 44488000 | C24: 8177972 | D24: 695558 | E24: 320783 | F24: 3665212 | G24: 3131363 | H24: 365056 | I24: 屏東縣 | J24: 15996808 | K24: 15057328 | L24: 0 | M24: 939480 | N24: 6029286 | O24: 2750699 | P24: 337624 | Q24: 2353764 | R24: 屏東縣 | S24: 587199 | T24: 7649479 | U24: 305424 | V24: 398001 | W24: 3543932 | X24: 232497 | Y24: 3169625 | Z24: 屏東縣 | AA24: 586370 | AB24: 524439 | AC24: 61931 | AD24: 5102932 | AE24: 5102932 | AF24: 150000 | AG24: 150000 | AH24: 屏東縣 | AI24: 0 | AJ24: 795153 | AK24: 79292 | AL24: 0 | AM24: 0 | AN24: 665861 | AO24: 50000
A25: 臺東縣 | B25: 20676578 | C25: 4694257 | D25: 537210 | E25: 203527 | F25: 2207649 | G25: 1545838 | H25: 200033 | I25: 臺東縣 | J25: 7042641 | K25: 6667820 | L25: 0 | M25: 374821 | N25: 2292178 | O25: 926511 | P25: 260340 | Q25: 261492 | R25: 臺東縣 | S25: 843835 | T25: 3104119 | U25: 100092 | V25: 286925 | W25: 1302047 | X25: 30186 | Y25: 1384869 | Z25: 臺東縣 | AA25: 457952 | AB25: 451072 | AC25: 6880 | AD25: 2234115 | AE25: 2234115 | AF25: 100000 | AG25: 100000 | AH25: 臺東縣 | AI25: 0 | AJ25: 751316 | AK25: 1000 | AL25: 0 | AM25: 0 | AN25: 690316 | AO25: 60000
A26: 花蓮縣 | B26: 24131869 | C26: 5339081 | D26: 336063 | E26: 218684 | F26: 2508219 | G26: 2010748 | H26: 265367 | I26: 花蓮縣 | J26: 8622719 | K26: 8025428 | L26: 0 | M26: 597291 | N26: 2829123 | O26: 733231 | P26: 789797 | Q26: 627179 | R26: 花蓮縣 | S26: 678916 | T26: 3913272 | U26: 104874 | V26: 242604 | W26: 2753275 | X26: 12999 | Y26: 799520 | Z26: 花蓮縣 | AA26: 490952 | AB26: 430511 | AC26: 60441 | AD26: 2317383 | AE26: 2317383 | AF26: 122200 | AG26: 122200 | AH26: 花蓮縣 | AI26: 0 | AJ26: 497139 | AK26: 0 | AL26: 0 | AM26: 0 | AN26: 437139 | AO26: 60000
A27: 澎湖縣 | B27: 11684058 | C27: 2490210 | D27: 222314 | E27: 153585 | F27: 610026 | G27: 1377542 | H27: 126743 | I27: 澎湖縣 | J27: 2845469 | K27: 2526189 | L27: 66334 | M27: 252946 | N27: 2669417 | O27: 584148 | P27: 630605 | Q27: 904981 | R27: 澎湖縣 | S27: 549683 | T27: 1864327 | U27: 46510 | V27: 99168 | W27: 1111083 | X27: 20248 | Y27: 587318 | Z27: 澎湖縣 | AA27: 607378 | AB27: 597670 | AC27: 9708 | AD27: 841815 | AE27: 841815 | AF27: 16740 | AG27: 16740 | AH27: 澎湖縣 | AI27: 0 | AJ27: 348702 | AK27: 88500 | AL27: 0 | AM27: 0 | AN27: 213202 | AO27: 47000
A28: 基隆市 | B28: 21545849 | C28: 4200287 | D28: 379860 | E28: 208583 | F28: 1558395 | G28: 1773604 | H28: 279845 | I28: 基隆市 | J28: 7471816 | K28: 7153134 | L28: 0 | M28: 318682 | N28: 3073696 | O28: 206662 | P28: 405544 | Q28: 1875591 | R28: 基隆市 | S28: 585899 | T28: 3574472 | U28: 454543 | V28: 309648 | W28: 2309378 | X28: 14556 | Y28: 486347 | Z28: 基隆市 | AA28: 860331 | AB28: 845128 | AC28: 15203 | AD28: 1885467 | AE28: 1885467 | AF28: 90000 | AG28: 90000 | AH28: 基隆市 | AI28: 0 | AJ28: 389780 | AK28: 0 | AL28: 0 | AM28: 0 | AN28: 364780 | AO28: 25000
A29: 新竹市 | B29: 25277780 | C29: 3768638 | D29: 343969 | E29: 223757 | F29: 1381621 | G29: 1557788 | H29: 261503 | I29: 新竹市 | J29: 9426216 | K29: 8414462 | L29: 0 | M29: 1011754 | N29: 3420202 | O29: 485596 | P29: 383138 | Q29: 1596397 | R29: 新竹市 | S29: 955071 | T29: 3982288 | U29: 87555 | V29: 150971 | W29: 2951875 | X29: 58194 | Y29: 733693 | Z29: 新竹市 | AA29: 1614798 | AB29: 1493218 | AC29: 121580 | AD29: 2225038 | AE29: 2225038 | AF29: 150000 | AG29: 150000 | AH29: 新竹市 | AI29: 0 | AJ29: 690600 | AK29: 0 | AL29: 0 | AM29: 0 | AN29: 390600 | AO29: 300000
A30: 嘉義市 | B30: 15997247 | C30: 3266974 | D30: 309810 | E30: 229758 | F30: 1156425 | G30: 1354881 | H30: 216100 | I30: 嘉義市 | J30: 5793743 | K30: 5435298 | L30: 0 | M30: 358445 | N30: 2073330 | O30: 61786 | P30: 90628 | Q30: 1586811 | R30: 嘉義市 | S30: 334105 | T30: 2234361 | U30: 62966 | V30: 95409 | W30: 1321127 | X30: 38103 | Y30: 716756 | Z30: 嘉義市 | AA30: 875882 | AB30: 867012 | AC30: 8870 | AD30: 1427557 | AE30: 1427557 | AF30: 7400 | AG30: 7400 | AH30: 嘉義市 | AI30: 0 | AJ30: 318000 | AK30: 0 | AL30: 0 | AM30: 0 | AN30: 303000 | AO30: 15000
A31: 金門縣 | B31: 13549643 | C31: 2310548 | D31: 541639 | E31: 200739 | F31: 771107 | G31: 732423 | H31: 64640 | I31: 金門縣 | J31: 3423743 | K31: 2955753 | L31: 0 | M31: 467990 | N31: 4353396 | O31: 1272897 | P31: 289454 | Q31: 1824339 | R31: 金門縣 | S31: 966706 | T31: 1621221 | U31: 35084 | V31: 51603 | W31: 835851 | X31: 0 | Y31: 698683 | Z31: 金門縣 | AA31: 889822 | AB31: 867578 | AC31: 22244 | AD31: 667406 | AE31: 667406 | AF31: 0 | AG31: 0 | AH31: 金門縣 | AI31: 0 | AJ31: 283507 | AK31: 0 | AL31: 85707 | AM31: 0 | AN31: 160800 | AO31: 37000
A32: 連江縣 | B32: 3594321 | C32: 712022 | D32: 253710 | E32: 64522 | F32: 184448 | G32: 181147 | H32: 28195 | I32: 連江縣 | J32: 970922 | K32: 876089 | L32: 0 | M32: 94833 | N32: 1361859 | O32: 304261 | P32: 16205 | Q32: 589196 | R32: 連江縣 | S32: 452197 | T32: 362364 | U32: 1879 | V32: 9068 | W32: 100102 | X32: 0 | Y32: 251315 | Z32: 連江縣 | AA32: 76788 | AB32: 76788 | AC32: 0 | AD32: 50088 | AE32: 50088 | AF32: 600 | AG32: 600 | AH32: 連江縣 | AI32: 0 | AJ32: 59678 | AK32: 3000 | AL32: 0 | AM32: 0 | AN32: 41678 | AO32: 15000
A33: (經常門) | I33: (經常門) | R33: (經常門) | Z33: (經常門) | AH33: (經常門)
A34: 總 計 | B34: 1008413505 | C34: 198905938 | D34: 12854186 | E34: 7636978 | F34: 78583646 | G34: 89816773 | H34: 10014355 | I34: 總 計 | J34: 407569651 | K34: 386505393 | L34: 43904 | M34: 21020354 | N34: 61751870 | O34: 15589230 | P34: 8268047 | Q34: 27482256 | R34: 總 計 | S34: 10412337 | T34: 207922248 | U34: 18650410 | V34: 20580611 | W34: 124603738 | X34: 1435201 | Y34: 42652288 | Z34: 總 計 | AA34: 49523542 | AB34: 43797668 | AC34: 5725874 | AD34: 61420694 | AE34: 61420694 | AF34: 8358688 | AG34: 8338933 | AH34: 總 計 | AI34: 19755 | AJ34: 12960874 | AK34: 341042 | AL34: 169852 | AM34: 0 | AN34: 9237647 | AO34: 3212333
A35: 直轄市合計 | B35: 697270264 | C35: 134520023 | D35: 6995379 | E35: 4391885 | F35: 56512722 | G35: 60213090 | H35: 6406947 | I35: 直轄市合計 | J35: 288276015 | K35: 271634048 | L35: 0 | M35: 16641967 | N35: 46142343 | O35: 9277644 | P35: 6068052 | Q35: 24433783 | R35: 直轄市合計 | S35: 6362864 | T35: 147439605 | U35: 16210147 | V35: 17304436 | W35: 86613606 | X35: 728153 | Y35: 26583263 | Z35: 直轄市合計 | AA35: 42767031 | AB35: 37459598 | AC35: 5307433 | AD35: 24030301 | AE35: 24030301 | AF35: 5965995 | AG35: 5946240 | AH35: 直轄市合計 | AI35: 19755 | AJ35: 8128951 | AK35: 0 | AL35: 0 | AM35: 0 | AN35: 6125618 | AO35: 2003333
A36: 新北市 | B36: 140215824 | C36: 28381178 | D36: 1330205 | E36: 682150 | F36: 13977403 | G36: 11164952 | H36: 1226468 | I36: 新北市 | J36: 57303161 | K36: 54687453 | L36: 0 | M36: 2615708 | N36: 7832893 | O36: 1682604 | P36: 641947 | Q36: 4675411 | R36: 新北市 | S36: 832931 | T36: 29497407 | U36: 1504662 | V36: 1366653 | W36: 20869457 | X36: 128234 | Y36: 5628401 | Z36: 新北市 | AA36: 9882866 | AB36: 9169030 | AC36: 713836 | AD36: 4002397 | AE36: 4002397 | AF36: 1036000 | AG36: 1036000 | AH36: 新北市 | AI36: 0 | AJ36: 2279922 | AK36: 0 | AL36: 0 | AM36: 0 | AN36: 1879922 | AO36: 400000
A37: 臺北市 | B37: 137052222 | C37: 26000276 | D37: 1880619 | E37: 832889 | F37: 8619853 | G37: 12848407 | H37: 1818508 | I37: 臺北市 | J37: 56508432 | K37: 50914468 | L37: 0 | M37: 5593964 | N37: 12912242 | O37: 2343429 | P37: 1284923 | Q37: 8004827 | R37: 臺北市 | S37: 1279063 | T37: 23471500 | U37: 675380 | V37: 8400147 | W37: 9233045 | X37: 385210 | Y37: 4777718 | Z37: 臺北市 | AA37: 9677745 | AB37: 8012659 | AC37: 1665086 | AD37: 5461873 | AE37: 5461873 | AF37: 845654 | AG37: 837654 | AH37: 臺北市 | AI37: 8000 | AJ37: 2174500 | AK37: 0 | AL37: 0 | AM37: 0 | AN37: 1654500 | AO37: 520000
A38: 桃園市 | B38: 97143142 | C38: 19747797 | D38: 937337 | E38: 666677 | F38: 8647131 | G38: 8753718 | H38: 742934 | I38: 桃園市 | J38: 41040568 | K38: 38414364 | L38: 0 | M38: 2626204 | N38: 6746074 | O38: 1648564 | P38: 1696404 | Q38: 2380853 | R38: 桃園市 | S38: 1020253 | T38: 20178047 | U38: 1249737 | V38: 3353838 | W38: 13429948 | X38: 0 | Y38: 2144524 | Z38: 桃園市 | AA38: 6781610 | AB38: 5595684 | AC38: 1185926 | AD38: 1523357 | AE38: 1523357 | AF38: 521257 | AG38: 521257 | AH38: 桃園市 | AI38: 0 | AJ38: 604432 | AK38: 0 | AL38: 0 | AM38: 0 | AN38: 354432 | AO38: 250000
A39: 臺中市 | B39: 118407709 | C39: 22245302 | D39: 1308462 | E39: 789942 | F39: 8854508 | G39: 10277985 | H39: 1014405 | I39: 臺中市 | J39: 51409060 | K39: 49607125 | L39: 0 | M39: 1801935 | N39: 7742264 | O39: 1127777 | P39: 1643729 | Q39: 4012733 | R39: 臺中市 | S39: 958025 | T39: 25445401 | U39: 965180 | V39: 2172839 | W39: 16138778 | X39: 19542 | Y39: 6149062 | Z39: 臺中市 | AA39: 6393925 | AB39: 5675861 | AC39: 718064 | AD39: 3174757 | AE39: 3174757 | AF39: 800000 | AG39: 800000 | AH39: 臺中市 | AI39: 0 | AJ39: 1197000 | AK39: 0 | AL39: 0 | AM39: 0 | AN39: 897000 | AO39: 300000
A40: 臺南市 | B40: 77427451 | C40: 15685597 | D40: 665123 | E40: 661177 | F40: 6859370 | G40: 6863520 | H40: 636407 | I40: 臺南市 | J40: 32536726 | K40: 30918722 | L40: 0 | M40: 1618004 | N40: 5358614 | O40: 1779809 | P40: 762087 | Q40: 1689604 | R40: 臺南市 | S40: 1127114 | T40: 15241919 | U40: 720367 | V40: 750484 | W40: 12461275 | X40: 93749 | Y40: 1216044 | Z40: 臺南市 | AA40: 3713824 | AB40: 3180736 | AC40: 533088 | AD40: 3602771 | AE40: 3602771 | AF40: 524000 | AG40: 524000 | AH40: 臺南市 | AI40: 0 | AJ40: 764000 | AK40: 0 | AL40: 0 | AM40: 0 | AN40: 364000 | AO40: 400000
A41: 高雄市 | B41: 127023916 | C41: 22459873 | D41: 873633 | E41: 759050 | F41: 9554457 | G41: 10304508 | H41: 968225 | I41: 高雄市 | J41: 49478068 | K41: 47091916 | L41: 0 | M41: 2386152 | N41: 5550256 | O41: 695461 | P41: 38962 | Q41: 3670355 | R41: 高雄市 | S41: 1145478 | T41: 33605331 | U41: 11094821 | V41: 1260475 | W41: 14481103 | X41: 101418 | Y41: 6667514 | Z41: 高雄市 | AA41: 6317061 | AB41: 5825628 | AC41: 491433 | AD41: 6265146 | AE41: 6265146 | AF41: 2239084 | AG41: 2227329 | AH41: 高雄市 | AI41: 11755 | AJ41: 1109097 | AK41: 0 | AL41: 0 | AM41: 0 | AN41: 975764 | AO41: 133333
A42: 縣市合計 | B42: 311143241 | C42: 64385915 | D42: 5858807 | E42: 3245093 | F42: 22070924 | G42: 29603683 | H42: 3607408 | I42: 縣市合計 | J42: 119293636 | K42: 114871345 | L42: 43904 | M42: 4378387 | N42: 15609527 | O42: 6311586 | P42: 2199995 | Q42: 3048473 | R42: 縣市合計 | S42: 4049473 | T42: 60482643 | U42: 2440263 | V42: 3276175 | W42: 37990132 | X42: 707048 | Y42: 16069025 | Z42: 縣市合計 | AA42: 6756511 | AB42: 6338070 | AC42: 418441 | AD42: 37390393 | AE42: 37390393 | AF42: 2392693 | AG42: 2392693 | AH42: 縣市合計 | AI42: 0 | AJ42: 4831923 | AK42: 341042 | AL42: 169852 | AM42: 0 | AN42: 3112029 | AO42: 1209000
A43: 宜蘭縣 | B43: 19596748 | C43: 3836106 | D43: 295298 | E43: 186887 | F43: 1215745 | G43: 1928176 | H43: 210000 | I43: 宜蘭縣 | J43: 8040331 | K43: 7584779 | L43: 0 | M43: 455552 | N43: 1235001 | O43: 662724 | P43: 206655 | Q43: 158137 | R43: 宜蘭縣 | S43: 207485 | T43: 3378137 | U43: 123053 | V43: 158365 | W43: 1667516 | X43: 57319 | Y43: 1371884 | Z43: 宜蘭縣 | AA43: 577872 | AB43: 446795 | AC43: 131077 | AD43: 2079329 | AE43: 2079329 | AF43: 101378 | AG43: 101378 | AH43: 宜蘭縣 | AI43: 0 | AJ43: 348594 | AK43: 10217 | AL43: 0 | AM43: 0 | AN43: 288377 | AO43: 50000
A44: 新竹縣 | B44: 22483005 | C44: 3966910 | D44: 355817 | E44: 209127 | F44: 1515840 | G44: 1656220 | H44: 229906 | I44: 新竹縣 | J44: 9580838 | K44: 9382949 | L44: 0 | M44: 197889 | N44: 837166 | O44: 247854 | P44: 97566 | Q44: 353708 | R44: 新竹縣 | S44: 138038 | T44: 4396642 | U44: 93352 | V44: 117902 | W44: 3536476 | X44: 38475 | Y44: 610437 | Z44: 新竹縣 | AA44: 541475 | AB44: 541475 | AC44: 0 | AD44: 2503504 | AE44: 2503504 | AF44: 200000 | AG44: 200000 | AH44: 新竹縣 | AI44: 0 | AJ44: 456470 | AK44: 0 | AL44: 0 | AM44: 0 | AN44: 56470 | AO44: 400000
A45: 苗栗縣 | B45: 18061851 | C45: 4386857 | D45: 329242 | E45: 205505 | F45: 1634311 | G45: 1967533 | H45: 250266 | I45: 苗栗縣 | J45: 7621751 | K45: 7426170 | L45: 0 | M45: 195581 | N45: 373505 | O45: 215855 | P45: 44967 | Q45: 44888 | R45: 苗栗縣 | S45: 67795 | T45: 2597920 | U45: 121027 | V45: 221001 | W45: 1219356 | X45: 62557 | Y45: 973979 | Z45: 苗栗縣 | AA45: 128638 | AB45: 121220 | AC45: 7418 | AD45: 2208030 | AE45: 2208030 | AF45: 550000 | AG45: 550000 | AH45: 苗栗縣 | AI45: 0 | AJ45: 195150 | AK45: 0 | AL45: 42750 | AM45: 0 | AN45: 102400 | AO45: 50000
A46: 彰化縣 | B46: 39431034 | C46: 7370322 | D46: 397678 | E46: 289681 | F46: 2032173 | G46: 4218963 | H46: 431827 | I46: 彰化縣 | J46: 17374727 | K46: 17102295 | L46: 0 | M46: 272432 | N46: 1190916 | O46: 599840 | P46: 99503 | Q46: 188800 | R46: 彰化縣 | S46: 302773 | T46: 7072858 | U46: 391929 | V46: 342402 | W46: 5247595 | X46: 114364 | Y46: 976568 | Z46: 彰化縣 | AA46: 296547 | AB46: 252657 | AC46: 43890 | AD46: 5256576 | AE46: 5256576 | AF46: 371274 | AG46: 371274 | AH46: 彰化縣 | AI46: 0 | AJ46: 497814 | AK46: 26186 | AL46: 0 | AM46: 0 | AN46: 371628 | AO46: 100000
A47: 南投縣 | B47: 22680880 | C47: 4682695 | D47: 367450 | E47: 245609 | F47: 1436562 | G47: 2376755 | H47: 256319 | I47: 南投縣 | J47: 9009144 | K47: 8904922 | L47: 0 | M47: 104222 | N47: 662270 | O47: 272692 | P47: 178567 | Q47: 12048 | R47: 南投縣 | S47: 198963 | T47: 4529409 | U47: 135807 | V47: 138734 | W47: 3277242 | X47: 15823 | Y47: 961803 | Z47: 南投縣 | AA47: 399879 | AB47: 368521 | AC47: 31358 | AD47: 2819514 | AE47: 2819514 | AF47: 98431 | AG47: 98431 | AH47: 南投縣 | AI47: 0 | AJ47: 479538 | AK47: 37500 | AL47: 0 | AM47: 0 | AN47: 212038 | AO47: 230000
A48: 雲林縣 | B48: 27032308 | C48: 4563368 | D48: 345265 | E48: 240308 | F48: 1327925 | G48: 2371070 | H48: 278800 | I48: 雲林縣 | J48: 10866734 | K48: 10370597 | L48: 0 | M48: 496137 | N48: 1133707 | O48: 824630 | P48: 139878 | Q48: 50289 | R48: 雲林縣 | S48: 118910 | T48: 6246712 | U48: 225374 | V48: 526237 | W48: 3681917 | X48: 0 | Y48: 1813184 | Z48: 雲林縣 | AA48: 249794 | AB48: 244678 | AC48: 5116 | AD48: 3415323 | AE48: 3415323 | AF48: 184670 | AG48: 184670 | AH48: 雲林縣 | AI48: 0 | AJ48: 372000 | AK48: 76500 | AL48: 0 | AM48: 0 | AN48: 295500 | AO48: 0
A49: 嘉義縣 | B49: 21252372 | C49: 4209854 | D49: 413161 | E49: 211960 | F49: 1370919 | G49: 1975333 | H49: 238481 | I49: 嘉義縣 | J49: 8031619 | K49: 7886314 | L49: 0 | M49: 145305 | N49: 936411 | O49: 531202 | P49: 45368 | Q49: 145699 | R49: 嘉義縣 | S49: 214142 | T49: 4958382 | U49: 150794 | V49: 128167 | W49: 3531170 | X49: 74761 | Y49: 1073490 | Z49: 嘉義縣 | AA49: 133693 | AB49: 133693 | AC49: 0 | AD49: 2356316 | AE49: 2356316 | AF49: 250000 | AG49: 250000 | AH49: 嘉義縣 | AI49: 0 | AJ49: 376097 | AK49: 21847 | AL49: 89250 | AM49: 0 | AN49: 265000 | AO49: 0
A50: 屏東縣 | B50: 34813821 | C50: 7188417 | D50: 571158 | E50: 302832 | F50: 2955818 | G50: 3028058 | H50: 330551 | I50: 屏東縣 | J50: 13013145 | K50: 12524201 | L50: 0 | M50: 488944 | N50: 1282352 | O50: 572538 | P50: 134513 | Q50: 306621 | R50: 屏東縣 | S50: 268680 | T50: 7214441 | U50: 305424 | V50: 398001 | W50: 3460493 | X50: 169673 | Y50: 2880850 | Z50: 屏東縣 | AA50: 514381 | AB50: 452450 | AC50: 61931 | AD50: 5102932 | AE50: 5102932 | AF50: 150000 | AG50: 150000 | AH50: 屏東縣 | AI50: 0 | AJ50: 348153 | AK50: 79292 | AL50: 0 | AM50: 0 | AN50: 218861 | AO50: 50000
A51: 臺東縣 | B51: 16953411 | C51: 4016230 | D51: 536310 | E51: 193027 | F51: 1636602 | G51: 1475965 | H51: 174326 | I51: 臺東縣 | J51: 5668237 | K51: 5427378 | L51: 0 | M51: 240859 | N51: 1209114 | O51: 394963 | P51: 260340 | Q51: 164741 | R51: 臺東縣 | S51: 389070 | T51: 3003930 | U51: 100092 | V51: 286925 | W51: 1276558 | X51: 30186 | Y51: 1310169 | Z51: 臺東縣 | AA51: 240469 | AB51: 233589 | AC51: 6880 | AD51: 2234115 | AE51: 2234115 | AF51: 100000 | AG51: 100000 | AH51: 臺東縣 | AI51: 0 | AJ51: 481316 | AK51: 1000 | AL51: 0 | AM51: 0 | AN51: 480316 | AO51: 0
A52: 花蓮縣 | B52: 18989079 | C52: 4621521 | D52: 324376 | E52: 204417 | F52: 1940408 | G52: 1892228 | H52: 260092 | I52: 花蓮縣 | J52: 6557173 | K52: 6320285 | L52: 0 | M52: 236888 | N52: 961344 | O52: 347850 | P52: 278363 | Q52: 78388 | R52: 花蓮縣 | S52: 256743 | T52: 3851515 | U52: 104874 | V52: 242604 | W52: 2736948 | X52: 12989 | Y52: 754100 | Z52: 花蓮縣 | AA52: 300804 | AB52: 286190 | AC52: 14614 | AD52: 2317383 | AE52: 2317383 | AF52: 122200 | AG52: 122200 | AH52: 花蓮縣 | AI52: 0 | AJ52: 257139 | AK52: 0 | AL52: 0 | AM52: 0 | AN52: 197139 | AO52: 60000
A53: 澎湖縣 | B53: 8806265 | C53: 2378291 | D53: 210614 | E53: 150085 | F53: 556866 | G53: 1334223 | H53: 126503 | I53: 澎湖縣 | J53: 2351305 | K53: 2120442 | L53: 43904 | M53: 186959 | N53: 981337 | O53: 329704 | P53: 101950 | Q53: 0 | R53: 澎湖縣 | S53: 549683 | T53: 1719964 | U53: 46510 | V53: 99168 | W53: 1009754 | X53: 20248 | Y53: 544284 | Z53: 澎湖縣 | AA53: 285221 | AB53: 280513 | AC53: 4708 | AD53: 841815 | AE53: 841815 | AF53: 16740 | AG53: 16740 | AH53: 澎湖縣 | AI53: 0 | AJ53: 231592 | AK53: 88500 | AL53: 0 | AM53: 0 | AN53: 96092 | AO53: 47000
A54: 基隆市 | B54: 16970919 | C54: 3986432 | D54: 351825 | E54: 201691 | F54: 1420973 | G54: 1737645 | H54: 274298 | I54: 基隆市 | J54: 5649975 | K54: 5464812 | L54: 0 | M54: 185163 | N54: 864947 | O54: 160992 | P54: 101434 | Q54: 392360 | R54: 基隆市 | S54: 210161 | T54: 3516125 | U54: 454543 | V54: 309648 | W54: 2272428 | X54: 14556 | Y54: 464950 | Z54: 基隆市 | AA54: 803693 | AB54: 788590 | AC54: 15103 | AD54: 1885467 | AE54: 1885467 | AF54: 90000 | AG54: 90000 | AH54: 基隆市 | AI54: 0 | AJ54: 174280 | AK54: 0 | AL54: 0 | AM54: 0 | AN54: 149280 | AO54: 25000
A55: 新竹市 | B55: 19190881 | C55: 3421009 | D55: 318063 | E55: 192605 | F55: 1182296 | G55: 1472805 | H55: 255240 | I55: 新竹市 | J55: 7218018 | K55: 6759977 | L55: 0 | M55: 458041 | N55: 856274 | O55: 102616 | P55: 126238 | Q55: 317512 | R55: 新竹市 | S55: 309908 | T55: 3925208 | U55: 87555 | V55: 150971 | W55: 2911751 | X55: 57994 | Y55: 716937 | Z55: 新竹市 | AA55: 1118734 | AB55: 1042502 | AC55: 76232 | AD55: 2225038 | AE55: 2225038 | AF55: 150000 | AG55: 150000 | AH55: 新竹市 | AI55: 0 | AJ55: 276600 | AK55: 0 | AL55: 0 | AM55: 0 | AN55: 136600 | AO55: 140000
A56: 嘉義市 | B56: 12993053 | C56: 2948161 | D56: 299042 | E56: 168838 | F56: 982183 | G56: 1293606 | H56: 204492 | I56: 嘉義市 | J56: 5077830 | K56: 4758966 | L56: 0 | M56: 318864 | N56: 409622 | O56: 61786 | P56: 90628 | Q56: 87763 | R56: 嘉義市 | S56: 169445 | T56: 2186046 | U56: 62966 | V56: 95409 | W56: 1308677 | X56: 38103 | Y56: 680891 | Z56: 嘉義市 | AA56: 728437 | AB56: 719567 | AC56: 8870 | AD56: 1427557 | AE56: 1427557 | AF56: 7400 | AG56: 7400 | AH56: 嘉義市 | AI56: 0 | AJ56: 208000 | AK56: 0 | AL56: 0 | AM56: 0 | AN56: 193000 | AO56: 15000
A57: 金門縣 | B57: 9496600 | C57: 2146772 | D57: 509686 | E57: 179499 | F57: 696582 | G57: 702768 | H57: 58237 | I57: 金門縣 | J57: 2557915 | K57: 2233157 | L57: 0 | M57: 324758 | N57: 2113104 | O57: 856244 | P57: 277820 | Q57: 364721 | R57: 金門縣 | S57: 614319 | T57: 1525950 | U57: 35084 | V57: 51573 | W57: 752693 | X57: 0 | Y57: 686600 | Z57: 金門縣 | AA57: 367801 | AB57: 356557 | AC57: 11244 | AD57: 667406 | AE57: 667406 | AF57: 0 | AG57: 0 | AH57: 金門縣 | AI57: 0 | AJ57: 117652 | AK57: 0 | AL57: 37852 | AM57: 0 | AN57: 42800 | AO57: 37000
A58: 連江縣 | B58: 2391014 | C58: 662970 | D58: 233822 | E58: 63022 | F58: 165721 | G58: 172335 | H58: 28070 | I58: 連江縣 | J58: 674894 | K58: 604101 | L58: 0 | M58: 70793 | N58: 562457 | O58: 130096 | P58: 16205 | Q58: 382798 | R58: 連江縣 | S58: 33358 | T58: 359404 | U58: 1879 | V58: 9068 | W58: 99558 | X58: 0 | Y58: 248899 | Z58: 連江縣 | AA58: 69073 | AB58: 69073 | AC58: 0 | AD58: 50088 | AE58: 50088 | AF58: 600 | AG58: 600 | AH58: 連江縣 | AI58: 0 | AJ58: 11528 | AK58: 0 | AL58: 0 | AM58: 0 | AN58: 6528 | AO58: 5000
A59: (資本門) | I59: (資本門) | R59: (資本門) | Z59: (資本門) | AH59: (資本門)
A60: 總 計 | B60: 278281469 | C60: 20291354 | D60: 1481293 | E60: 425134 | F60: 13995013 | G60: 4082031 | H60: 307883 | I60: 總 計 | J60: 69599049 | K60: 55344899 | L60: 22430 | M60: 14231720 | N60: 143970732 | O60: 42862643 | P60: 12607575 | Q60: 73549761 | R60: 總 計 | S60: 14950753 | T60: 7643541 | U60: 0 | V60: 3280 | W60: 4723222 | X60: 175566 | Y60: 2741473 | Z60: 總 計 | AA60: 23699287 | AB60: 17441992 | AC60: 6257295 | AD60: 0 | AE60: 0 | AF60: 0 | AG60: 0 | AH60: 總 計 | AI60: 0 | AJ60: 13077506 | AK60: 3000 | AL60: 47855 | AM60: 0 | AN60: 11949984 | AO60: 1076667
A61: 直轄市合計 | B61: 187603308 | C61: 13881763 | D61: 815478 | E61: 207272 | F61: 10013724 | G61: 2674353 | H61: 170936 | I61: 直轄市合計 | J61: 43036436 | K61: 32066484 | L61: 0 | M61: 10969952 | N61: 98755601 | O61: 27045657 | P61: 9451679 | Q61: 53249274 | R61: 直轄市合計 | S61: 9008991 | T61: 5165857 | U61: 0 | V61: 3250 | W61: 3921259 | X61: 109286 | Y61: 1132062 | Z61: 直轄市合計 | AA61: 18457091 | AB61: 13630119 | AC61: 4826972 | AD61: 0 | AE61: 0 | AF61: 0 | AG61: 0 | AH61: 直轄市合計 | AI61: 0 | AJ61: 8306560 | AK61: 0 | AL61: 0 | AM61: 0 | AN61: 7619893 | AO61: 686667
A62: 新北市 | B62: 39176728 | C62: 4465018 | D62: 162891 | E62: 45510 | F62: 3722475 | G62: 489563 | H62: 44579 | I62: 新北市 | J62: 8088831 | K62: 6442556 | L62: 0 | M62: 1646275 | N62: 18505368 | O62: 4007415 | P62: 2920116 | Q62: 11299237 | R62: 新北市 | S62: 278600 | T62: 1254659 | U62: 0 | V62: 0 | W62: 926666 | X62: 745 | Y62: 327248 | Z62: 新北市 | AA62: 5303852 | AB62: 4991623 | AC62: 312229 | AD62: 0 | AE62: 0 | AF62: 0 | AG62: 0 | AH62: 新北市 | AI62: 0 | AJ62: 1559000 | AK62: 0 | AL62: 0 | AM62: 0 | AN62: 1559000 | AO62: 0
A63: 臺北市 | B63: 35717433 | C63: 2227174 | D63: 228006 | E63: 64821 | F63: 1028320 | G63: 840603 | H63: 65424 | I63: 臺北市 | J63: 8146049 | K63: 4415622 | L63: 0 | M63: 3730427 | N63: 17285034 | O63: 5254021 | P63: 167842 | Q63: 11613177 | R63: 臺北市 | S63: 249994 | T63: 1502686 | U63: 0 | V63: 0 | W63: 1354447 | X63: 103370 | Y63: 44869 | Z63: 臺北市 | AA63: 5286490 | AB63: 1655384 | AC63: 3631106 | AD63: 0 | AE63: 0 | AF63: 0 | AG63: 0 | AH63: 臺北市 | AI63: 0 | AJ63: 1270000 | AK63: 0 | AL63: 0 | AM63: 0 | AN63: 1050000 | AO63: 220000
A64: 桃園市 | B64: 40636858 | C64: 2885761 | D64: 207812 | E64: 17080 | F64: 2083962 | G64: 566172 | H64: 10735 | I64: 桃園市 | J64: 8477457 | K64: 6201251 | L64: 0 | M64: 2276206 | N64: 25922553 | O64: 5705482 | P64: 4858033 | Q64: 8136293 | R64: 桃園市 | S64: 7222745 | T64: 902080 | U64: 0 | V64: 3000 | W64: 830818 | X64: 0 | Y64: 68262 | Z64: 桃園市 | AA64: 1062007 | AB64: 791744 | AC64: 270263 | AD64: 0 | AE64: 0 | AF64: 0 | AG64: 0 | AH64: 桃園市 | AI64: 0 | AJ64: 1387000 | AK64: 0 | AL64: 0 | AM64: 0 | AN64: 1387000 | AO64: 0
A65: 臺中市 | B65: 23795466 | C65: 1497066 | D65: 96808 | E65: 6916 | F65: 1164620 | G65: 203165 | H65: 25557 | I65: 臺中市 | J65: 6719486 | K65: 5730010 | L65: 0 | M65: 989476 | N65: 11219983 | O65: 880477 | P65: 1427900 | Q65: 8549202 | R65: 臺中市 | S65: 362404 | T65: 566786 | U65: 0 | V65: 0 | W65: 408814 | X65: 0 | Y65: 157972 | Z65: 臺中市 | AA65: 2302145 | AB65: 1784866 | AC65: 517279 | AD65: 0 | AE65: 0 | AF65: 0 | AG65: 0 | AH65: 臺中市 | AI65: 0 | AJ65: 1490000 | AK65: 0 | AL65: 0 | AM65: 0 | AN65: 1290000 | AO65: 200000
A66: 臺南市 | B66: 23201039 | C66: 1217914 | D66: 64064 | E66: 37909 | F66: 871389 | G66: 232846 | H66: 11706 | I66: 臺南市 | J66: 5639836 | K66: 4224335 | L66: 0 | M66: 1415501 | N66: 14212383 | O66: 8038270 | P66: 51888 | Q66: 5698958 | R66: 臺南市 | S66: 423267 | T66: 258176 | U66: 0 | V66: 0 | W66: 186385 | X66: 1716 | Y66: 70075 | Z66: 臺南市 | AA66: 910437 | AB66: 846799 | AC66: 63638 | AD66: 0 | AE66: 0 | AF66: 0 | AG66: 0 | AH66: 臺南市 | AI66: 0 | AJ66: 962293 | AK66: 0 | AL66: 0 | AM66: 0 | AN66: 962293 | AO66: 0
A67: 高雄市 | B67: 25075784 | C67: 1588830 | D67: 55897 | E67: 35036 | F67: 1142958 | G67: 342004 | H67: 12935 | I67: 高雄市 | J67: 5964777 | K67: 5052710 | L67: 0 | M67: 912067 | N67: 11610280 | O67: 3159992 | P67: 25900 | Q67: 7952407 | R67: 高雄市 | S67: 471981 | T67: 681470 | U67: 0 | V67: 250 | W67: 214129 | X67: 3455 | Y67: 463636 | Z67: 高雄市 | AA67: 3592160 | AB67: 3559703 | AC67: 32457 | AD67: 0 | AE67: 0 | AF67: 0 | AG67: 0 | AH67: 高雄市 | AI67: 0 | AJ67: 1638267 | AK67: 0 | AL67: 0 | AM67: 0 | AN67: 1371600 | AO67: 266667
A68: 縣市合計 | B68: 90678161 | C68: 6409591 | D68: 665815 | E68: 217862 | F68: 3981289 | G68: 1407678 | H68: 136947 | I68: 縣市合計 | J68: 26562613 | K68: 23278415 | L68: 22430 | M68: 3261768 | N68: 45215131 | O68: 15816986 | P68: 3155896 | Q68: 20300487 | R68: 縣市合計 | S68: 5941762 | T68: 2477684 | U68: 0 | V68: 30 | W68: 801963 | X68: 66280 | Y68: 1609411 | Z68: 縣市合計 | AA68: 5242196 | AB68: 3811873 | AC68: 1430323 | AD68: 0 | AE68: 0 | AF68: 0 | AG68: 0 | AH68: 縣市合計 | AI68: 0 | AJ68: 4770946 | AK68: 3000 | AL68: 47855 | AM68: 0 | AN68: 4330091 | AO68: 390000
A69: 宜蘭縣 | B69: 5110639 | C69: 432815 | D69: 38740 | E69: 3435 | F69: 342175 | G69: 45775 | H69: 2690 | I69: 宜蘭縣 | J69: 1557952 | K69: 1400138 | L69: 0 | M69: 157814 | N69: 1789879 | O69: 987706 | P69: 74440 | Q69: 457819 | R69: 宜蘭縣 | S69: 269914 | T69: 104802 | U69: 0 | V69: 0 | W69: 24272 | X69: 1000 | Y69: 79530 | Z69: 宜蘭縣 | AA69: 978017 | AB69: 11017 | AC69: 967000 | AD69: 0 | AE69: 0 | AF69: 0 | AG69: 0 | AH69: 宜蘭縣 | AI69: 0 | AJ69: 247174 | AK69: 0 | AL69: 0 | AM69: 0 | AN69: 247174 | AO69: 0
A70: 新竹縣 | B70: 7868506 | C70: 734977 | D70: 60396 | E70: 6170 | F70: 518731 | G70: 145355 | H70: 4325 | I70: 新竹縣 | J70: 3146564 | K70: 2753703 | L70: 0 | M70: 392861 | N70: 2966474 | O70: 324200 | P70: 23400 | Q70: 2159982 | R70: 新竹縣 | S70: 458892 | T70: 133474 | U70: 0 | V70: 0 | W70: 88615 | X70: 0 | Y70: 44859 | Z70: 新竹縣 | AA70: 583497 | AB70: 583497 | AC70: 0 | AD70: 0 | AE70: 0 | AF70: 0 | AG70: 0 | AH70: 新竹縣 | AI70: 0 | AJ70: 303520 | AK70: 0 | AL70: 0 | AM70: 0 | AN70: 303520 | AO70: 0
A71: 苗栗縣 | B71: 3063636 | C71: 287160 | D71: 26440 | E71: 15980 | F71: 115419 | G71: 126184 | H71: 3137 | I71: 苗栗縣 | J71: 257314 | K71: 223989 | L71: 0 | M71: 33325 | N71: 1363019 | O71: 570632 | P71: 280 | Q71: 677081 | R71: 苗栗縣 | S71: 115026 | T71: 47760 | U71: 0 | V71: 0 | W71: 1000 | X71: 811 | Y71: 45949 | Z71: 苗栗縣 | AA71: 896983 | AB71: 855983 | AC71: 41000 | AD71: 0 | AE71: 0 | AF71: 0 | AG71: 0 | AH71: 苗栗縣 | AI71: 0 | AJ71: 211400 | AK71: 0 | AL71: 0 | AM71: 0 | AN71: 211400 | AO71: 0
A72: 彰化縣 | B72: 10494436 | C72: 170751 | D72: 8082 | E72: 3640 | F72: 47134 | G72: 108221 | H72: 3674 | I72: 彰化縣 | J72: 2911349 | K72: 2810404 | L72: 0 | M72: 100945 | N72: 5674766 | O72: 2128628 | P72: 0 | Q72: 2647278 | R72: 彰化縣 | S72: 898860 | T72: 810866 | U72: 0 | V72: 0 | W72: 90577 | X72: 0 | Y72: 720289 | Z72: 彰化縣 | AA72: 436704 | AB72: 123656 | AC72: 313048 | AD72: 0 | AE72: 0 | AF72: 0 | AG72: 0 | AH72: 彰化縣 | AI72: 0 | AJ72: 490000 | AK72: 0 | AL72: 0 | AM72: 0 | AN72: 490000 | AO72: 0
A73: 南投縣 | B73: 5494120 | C73: 559281 | D73: 169153 | E73: 5950 | F73: 240448 | G73: 140672 | H73: 3058 | I73: 南投縣 | J73: 1491010 | K73: 1485408 | L73: 0 | M73: 5602 | N73: 2997416 | O73: 202425 | P73: 1183438 | Q73: 1604312 | R73: 南投縣 | S73: 7241 | T73: 34372 | U73: 0 | V73: 0 | W73: 0 | X73: 0 | Y73: 34372 | Z73: 南投縣 | AA73: 130291 | AB73: 130291 | AC73: 0 | AD73: 0 | AE73: 0 | AF73: 0 | AG73: 0 | AH73: 南投縣 | AI73: 0 | AJ73: 281750 | AK73: 0 | AL73: 0 | AM73: 0 | AN73: 281750 | AO73: 0
A74: 雲林縣 | B74: 9558894 | C74: 295217 | D74: 4615 | E74: 4850 | F74: 116841 | G74: 160119 | H74: 8792 | I74: 雲林縣 | J74: 2558471 | K74: 1940383 | L74: 0 | M74: 618088 | N74: 5670877 | O74: 2844259 | P74: 40267 | Q74: 1909405 | R74: 雲林縣 | S74: 876946 | T74: 148542 | U74: 0 | V74: 0 | W74: 71672 | X74: 0 | Y74: 76870 | Z74: 雲林縣 | AA74: 57300 | AB74: 55300 | AC74: 2000 | AD74: 0 | AE74: 0 | AF74: 0 | AG74: 0 | AH74: 雲林縣 | AI74: 0 | AJ74: 828487 | AK74: 0 | AL74: 0 | AM74: 0 | AN74: 748487 | AO74: 80000
A75: 嘉義縣 | B75: 8747628 | C75: 339204 | D75: 93152 | E75: 9915 | F75: 94888 | G75: 125651 | H75: 15598 | I75: 嘉義縣 | J75: 1814368 | K75: 1766208 | L75: 0 | M75: 48160 | N75: 5890764 | O75: 4390134 | P75: 18227 | Q75: 1319764 | R75: 嘉義縣 | S75: 162639 | T75: 194548 | U75: 0 | V75: 0 | W75: 126017 | X75: 1435 | Y75: 67096 | Z75: 嘉義縣 | AA75: 127744 | AB75: 127744 | AC75: 0 | AD75: 0 | AE75: 0 | AF75: 0 | AG75: 0 | AH75: 嘉義縣 | AI75: 0 | AJ75: 381000 | AK75: 0 | AL75: 0 | AM75: 0 | AN75: 301000 | AO75: 80000
A76: 屏東縣 | B76: 9674179 | C76: 989555 | D76: 124400 | E76: 17951 | F76: 709394 | G76: 103305 | H76: 34505 | I76: 屏東縣 | J76: 2983663 | K76: 2533127 | L76: 0 | M76: 450536 | N76: 4746934 | O76: 2178161 | P76: 203111 | Q76: 2047143 | R76: 屏東縣 | S76: 318519 | T76: 435038 | U76: 0 | V76: 0 | W76: 83439 | X76: 62824 | Y76: 288775 | Z76: 屏東縣 | AA76: 71989 | AB76: 71989 | AC76: 0 | AD76: 0 | AE76: 0 | AF76: 0 | AG76: 0 | AH76: 屏東縣 | AI76: 0 | AJ76: 447000 | AK76: 0 | AL76: 0 | AM76: 0 | AN76: 447000 | AO76: 0
A77: 臺東縣 | B77: 3723167 | C77: 678027 | D77: 900 | E77: 10500 | F77: 571047 | G77: 69873 | H77: 25707 | I77: 臺東縣 | J77: 1374404 | K77: 1240442 | L77: 0 | M77: 133962 | N77: 1083064 | O77: 531548 | P77: 0 | Q77: 96751 | R77: 臺東縣 | S77: 454765 | T77: 100189 | U77: 0 | V77: 0 | W77: 25489 | X77: 0 | Y77: 74700 | Z77: 臺東縣 | AA77: 217483 | AB77: 217483 | AC77: 0 | AD77: 0 | AE77: 0 | AF77: 0 | AG77: 0 | AH77: 臺東縣 | AI77: 0 | AJ77: 270000 | AK77: 0 | AL77: 0 | AM77: 0 | AN77: 210000 | AO77: 60000
A78: 花蓮縣 | B78: 5142790 | C78: 717560 | D78: 11687 | E78: 14267 | F78: 567811 | G78: 118520 | H78: 5275 | I78: 花蓮縣 | J78: 2065546 | K78: 1705143 | L78: 0 | M78: 360403 | N78: 1867779 | O78: 385381 | P78: 511434 | Q78: 548791 | R78: 花蓮縣 | S78: 422173 | T78: 61757 | U78: 0 | V78: 0 | W78: 16327 | X78: 10 | Y78: 45420 | Z78: 花蓮縣 | AA78: 190148 | AB78: 144321 | AC78: 45827 | AD78: 0 | AE78: 0 | AF78: 0 | AG78: 0 | AH78: 花蓮縣 | AI78: 0 | AJ78: 240000 | AK78: 0 | AL78: 0 | AM78: 0 | AN78: 240000 | AO78: 0
A79: 澎湖縣 | B79: 2877793 | C79: 111919 | D79: 11700 | E79: 3500 | F79: 53160 | G79: 43319 | H79: 240 | I79: 澎湖縣 | J79: 494164 | K79: 405747 | L79: 22430 | M79: 65987 | N79: 1688080 | O79: 254444 | P79: 528655 | Q79: 904981 | R79: 澎湖縣 | S79: 0 | T79: 144363 | U79: 0 | V79: 0 | W79: 101329 | X79: 0 | Y79: 43034 | Z79: 澎湖縣 | AA79: 322157 | AB79: 317157 | AC79: 5000 | AD79: 0 | AE79: 0 | AF79: 0 | AG79: 0 | AH79: 澎湖縣 | AI79: 0 | AJ79: 117110 | AK79: 0 | AL79: 0 | AM79: 0 | AN79: 117110 | AO79: 0
A80: 基隆市 | B80: 4574930 | C80: 213855 | D80: 28035 | E80: 6892 | F80: 137422 | G80: 35959 | H80: 5547 | I80: 基隆市 | J80: 1821841 | K80: 1688322 | L80: 0 | M80: 133519 | N80: 2208749 | O80: 45670 | P80: 304110 | Q80: 1483231 | R80: 基隆市 | S80: 375738 | T80: 58347 | U80: 0 | V80: 0 | W80: 36950 | X80: 0 | Y80: 21397 | Z80: 基隆市 | AA80: 56638 | AB80: 56538 | AC80: 100 | AD80: 0 | AE80: 0 | AF80: 0 | AG80: 0 | AH80: 基隆市 | AI80: 0 | AJ80: 215500 | AK80: 0 | AL80: 0 | AM80: 0 | AN80: 215500 | AO80: 0
A81: 新竹市 | B81: 6086899 | C81: 347629 | D81: 25906 | E81: 31152 | F81: 199325 | G81: 84983 | H81: 6263 | I81: 新竹市 | J81: 2208198 | K81: 1654485 | L81: 0 | M81: 553713 | N81: 2563928 | O81: 382980 | P81: 256900 | Q81: 1278885 | R81: 新竹市 | S81: 645163 | T81: 57080 | U81: 0 | V81: 0 | W81: 40124 | X81: 200 | Y81: 16756 | Z81: 新竹市 | AA81: 496064 | AB81: 450716 | AC81: 45348 | AD81: 0 | AE81: 0 | AF81: 0 | AG81: 0 | AH81: 新竹市 | AI81: 0 | AJ81: 414000 | AK81: 0 | AL81: 0 | AM81: 0 | AN81: 254000 | AO81: 160000
A82: 嘉義市 | B82: 3004194 | C82: 318813 | D82: 10768 | E82: 60920 | F82: 174242 | G82: 61275 | H82: 11608 | I82: 嘉義市 | J82: 715913 | K82: 676332 | L82: 0 | M82: 39581 | N82: 1663708 | O82: 0 | P82: 0 | Q82: 1499048 | R82: 嘉義市 | S82: 164660 | T82: 48315 | U82: 0 | V82: 0 | W82: 12450 | X82: 0 | Y82: 35865 | Z82: 嘉義市 | AA82: 147445 | AB82: 147445 | AC82: 0 | AD82: 0 | AE82: 0 | AF82: 0 | AG82: 0 | AH82: 嘉義市 | AI82: 0 | AJ82: 110000 | AK82: 0 | AL82: 0 | AM82: 0 | AN82: 110000 | AO82: 0
A83: 金門縣 | B83: 4053043 | C83: 163776 | D83: 31953 | E83: 21240 | F83: 74525 | G83: 29655 | H83: 6403 | I83: 金門縣 | J83: 865828 | K83: 722596 | L83: 0 | M83: 143232 | N83: 2240292 | O83: 416653 | P83: 11634 | Q83: 1459618 | R83: 金門縣 | S83: 352387 | T83: 95271 | U83: 0 | V83: 30 | W83: 83158 | X83: 0 | Y83: 12083 | Z83: 金門縣 | AA83: 522021 | AB83: 511021 | AC83: 11000 | AD83: 0 | AE83: 0 | AF83: 0 | AG83: 0 | AH83: 金門縣 | AI83: 0 | AJ83: 165855 | AK83: 0 | AL83: 47855 | AM83: 0 | AN83: 118000 | AO83: 0
A84: 連江縣 | B84: 1203307 | C84: 49052 | D84: 19888 | E84: 1500 | F84: 18727 | G84: 8812 | H84: 125 | I84: 連江縣 | J84: 296028 | K84: 271988 | L84: 0 | M84: 24040 | N84: 799402 | O84: 174165 | P84: 0 | Q84: 206398 | R84: 連江縣 | S84: 418839 | T84: 2960 | U84: 0 | V84: 0 | W84: 544 | X84: 0 | Y84: 2416 | Z84: 連江縣 | AA84: 7715 | AB84: 7715 | AC84: 0 | AD84: 0 | AE84: 0 | AF84: 0 | AG84: 0 | AH84: 連江縣 | AI84: 0 | AJ84: 48150 | AK84: 3000 | AL84: 0 | AM84: 0 | AN84: 35150 | AO84: 10000

Sheet 政事別-資
D1: 各直轄市及縣 | E1: (市)總預算 | M1: 各直轄市及縣 | N1: (市)總預算 | U1: 各直轄市及縣 | V1: (市)總預算 | AC1: 各直轄市及縣 | AD1: (市)總預算 | AK1: 各直轄市及縣 | AL1: (市)總預算
D2: 歲出政事別 | E2: 預算總表 | H2: (續十) | M2: 歲出政事別 | N2: 預算總表 | Q2: (續十一) | U2: 歲出政事別 | V2: 預算總表 | Y2: (續十二) | AC2: 歲出政事別 | AD2: 預算總表 | AG2: (續十三) | AK2: 歲出政事別 | AL2: 預算總表 | AO2: (續十四)
D3: 中華民國 | E3: =簡明總!E3 -> 110 年 度 | H3: 單位：新臺幣千元 | M3: 中華民國 | N3: =E3 -> 110 年 度 | Q3: 單位：新臺幣千元 | U3: 中華民國 | V3: =N3 -> 110 年 度 | Y3: 單位：新臺幣千元 | AC3: 中華民國 | AD3: =簡明總!#REF! ->  | AG3: 單位：新臺幣千元 | AK3: 中華民國 | AL3: =AD3 ->  | AO3: 單位：新臺幣千元
A4: 科 目 | C4: 一般政務支出 | D4: 行政支出 | E4: 立法支出 | F4: 民政支出 | G4: 警政支出 | H4: 財務支出 | I4: 科 目 | J4: 教育科學 文化支出 | K4: 教育支出 | L4: 科學支出 | M4: 文化支出 | N4: 經濟發展支出 | O4: 農業支出 | P4: 工業支出 | Q4: 交通支出 | R4: 科 目 | S4: 其他經濟 服務支出 | T4: 社會福利支出 | U4: 社會保險支出 | V4: 社會救助支出 | W4: 福利服務支出 | X4: 國民就業支出 | Y4: 醫療保健支出 | Z4: 科 目 | AA4: 社區發展及環 境保護支出 | AB4: 環境保護支出 | AC4: 社區發展支出 | AD4: 退休撫 卹支出 | AE4: 退休撫卹 給付支出 | AF4: 債務支出 | AG4: 債務付息支出 | AH4: 科 目 | AI4: 還本付息 事務支出 | AJ4: 補助及其他支出 | AK4: 專案補助支出 | AL4: 平衡預算 補助支出 | AM4: 協助支出 | AN4: 其他支出 | AO4: 第二預備金
A5: 款 | B5: 合 計 | C5: 1 | I5: 款 | J5: 2 | N5: 3 | R5: 款 | T5: 4 | Z5: 款 | AA5: 5 | AD5: 6 | AF5: 7 | AH5: 款 | AJ5: 8
A6: 項 | D6: 1 | E6: 2 | F6: 3 | G6: 4 | H6: 5 | I6: 項 | K6: 1 | L6: 2 | M6: 3 | O6: 1 | P6: 2 | Q6: 3 | R6: 項 | S6: 4 | U6: 1 | V6: 2 | W6: 3 | X6: 4 | Y6: 5 | Z6: 項 | AB6: 1 | AC6: 2 | AE6: 1 | AG6: 1 | AH6: 項 | AI6: 2 | AK6: 1 | AL6: 2 | AM6: 3 | AN6: 4 | AO6: 5
A7: (經資門併計) | I7: (經資門併計) | R7: (經資門併計) | Z7: (經資門併計) | AH7: (經資門併計)
A8: 總 計 | B8: 1286694974 | C8: 219197292 | D8: 14335479 | E8: 8062112 | F8: 92578659 | G8: 93898804 | H8: 10322238 | I8: 總 計 | J8: 477168700 | K8: 441850292 | L8: 66334 | M8: 35252074 | N8: 205722602 | O8: 58451873 | P8: 20875622 | Q8: 101032017 | R8: 總 計 | S8: 25363090 | T8: 215565789 | U8: 18650410 | V8: 20583891 | W8: 129326960 | X8: 1610767 | Y8: 45393761 | Z8: 總 計 | AA8: 73222829 | AB8: 61239660 | AC8: 11983169 | AD8: 61420694 | AE8: 61420694 | AF8: 8358688 | AG8: 8338933 | AH8: 總 計 | AI8: 19755 | AJ8: 26038380 | AK8: 344042 | AL8: 217707 | AM8: 0 | AN8: 21187631 | AO8: 4289000
A9: 直轄市合計 | B9: 884873572 | C9: 148401786 | D9: 7810857 | E9: 4599157 | F9: 66526446 | G9: 62887443 | H9: 6577883 | I9: 直轄市合計 | J9: 331312451 | K9: 303700532 | L9: 0 | M9: 27611919 | N9: 144897944 | O9: 36323301 | P9: 15519731 | Q9: 77683057 | R9: 直轄市合計 | S9: 15371855 | T9: 152605462 | U9: 16210147 | V9: 17307686 | W9: 90534865 | X9: 837439 | Y9: 27715325 | Z9: 直轄市合計 | AA9: 61224122 | AB9: 51089717 | AC9: 10134405 | AD9: 24030301 | AE9: 24030301 | AF9: 5965995 | AG9: 5946240 | AH9: 直轄市合計 | AI9: 19755 | AJ9: 16435511 | AK9: 0 | AL9: 0 | AM9: 0 | AN9: 13745511 | AO9: 2690000
A10: 新北市 | B10: 179392552 | C10: 32846196 | D10: 1493096 | E10: 727660 | F10: 17699878 | G10: 11654515 | H10: 1271047 | I10: 新北市 | J10: 65391992 | K10: 61130009 | L10: 0 | M10: 4261983 | N10: 26338261 | O10: 5690019 | P10: 3562063 | Q10: 15974648 | R10: 新北市 | S10: 1111531 | T10: 30752066 | U10: 1504662 | V10: 1366653 | W10: 21796123 | X10: 128979 | Y10: 5955649 | Z10: 新北市 | AA10: 15186718 | AB10: 14160653 | AC10: 1026065 | AD10: 4002397 | AE10: 4002397 | AF10: 1036000 | AG10: 1036000 | AH10: 新北市 | AI10: 0 | AJ10: 3838922 | AK10: 0 | AL10: 0 | AM10: 0 | AN10: 3438922 | AO10: 400000
A11: 臺北市 | B11: 172769655 | C11: 28227450 | D11: 2108625 | E11: 897710 | F11: 9648173 | G11: 13689010 | H11: 1883932 | I11: 臺北市 | J11: 64654481 | K11: 55330090 | L11: 0 | M11: 9324391 | N11: 30197276 | O11: 7597450 | P11: 1452765 | Q11: 19618004 | R11: 臺北市 | S11: 1529057 | T11: 24974186 | U11: 675380 | V11: 8400147 | W11: 10587492 | X11: 488580 | Y11: 4822587 | Z11: 臺北市 | AA11: 14964235 | AB11: 9668043 | AC11: 5296192 | AD11: 5461873 | AE11: 5461873 | AF11: 845654 | AG11: 837654 | AH11: 臺北市 | AI11: 8000 | AJ11: 3444500 | AK11: 0 | AL11: 0 | AM11: 0 | AN11: 2704500 | AO11: 740000
A12: 桃園市 | B12: 137780000 | C12: 22633558 | D12: 1145149 | E12: 683757 | F12: 10731093 | G12: 9319890 | H12: 753669 | I12: 桃園市 | J12: 49518025 | K12: 44615615 | L12: 0 | M12: 4902410 | N12: 32668627 | O12: 7354046 | P12: 6554437 | Q12: 10517146 | R12: 桃園市 | S12: 8242998 | T12: 21080127 | U12: 1249737 | V12: 3356838 | W12: 14260766 | X12: 0 | Y12: 2212786 | Z12: 桃園市 | AA12: 7843617 | AB12: 6387428 | AC12: 1456189 | AD12: 1523357 | AE12: 1523357 | AF12: 521257 | AG12: 521257 | AH12: 桃園市 | AI12: 0 | AJ12: 1991432 | AK12: 0 | AL12: 0 | AM12: 0 | AN12: 1741432 | AO12: 250000
A13: 臺中市 | B13: 142203175 | C13: 23742368 | D13: 1405270 | E13: 796858 | F13: 10019128 | G13: 10481150 | H13: 1039962 | I13: 臺中市 | J13: 58128546 | K13: 55337135 | L13: 0 | M13: 2791411 | N13: 18962247 | O13: 2008254 | P13: 3071629 | Q13: 12561935 | R13: 臺中市 | S13: 1320429 | T13: 26012187 | U13: 965180 | V13: 2172839 | W13: 16547592 | X13: 19542 | Y13: 6307034 | Z13: 臺中市 | AA13: 8696070 | AB13: 7460727 | AC13: 1235343 | AD13: 3174757 | AE13: 3174757 | AF13: 800000 | AG13: 800000 | AH13: 臺中市 | AI13: 0 | AJ13: 2687000 | AK13: 0 | AL13: 0 | AM13: 0 | AN13: 2187000 | AO13: 500000
A14: 臺南市 | B14: 100628490 | C14: 16903511 | D14: 729187 | E14: 699086 | F14: 7730759 | G14: 7096366 | H14: 648113 | I14: 臺南市 | J14: 38176562 | K14: 35143057 | L14: 0 | M14: 3033505 | N14: 19570997 | O14: 9818079 | P14: 813975 | Q14: 7388562 | R14: 臺南市 | S14: 1550381 | T14: 15500095 | U14: 720367 | V14: 750484 | W14: 12647660 | X14: 95465 | Y14: 1286119 | Z14: 臺南市 | AA14: 4624261 | AB14: 4027535 | AC14: 596726 | AD14: 3602771 | AE14: 3602771 | AF14: 524000 | AG14: 524000 | AH14: 臺南市 | AI14: 0 | AJ14: 1726293 | AK14: 0 | AL14: 0 | AM14: 0 | AN14: 1326293 | AO14: 400000
A15: 高雄市 | B15: 152099700 | C15: 24048703 | D15: 929530 | E15: 794086 | F15: 10697415 | G15: 10646512 | H15: 981160 | I15: 高雄市 | J15: 55442845 | K15: 52144626 | L15: 0 | M15: 3298219 | N15: 17160536 | O15: 3855453 | P15: 64862 | Q15: 11622762 | R15: 高雄市 | S15: 1617459 | T15: 34286801 | U15: 11094821 | V15: 1260725 | W15: 14695232 | X15: 104873 | Y15: 7131150 | Z15: 高雄市 | AA15: 9909221 | AB15: 9385331 | AC15: 523890 | AD15: 6265146 | AE15: 6265146 | AF15: 2239084 | AG15: 2227329 | AH15: 高雄市 | AI15: 11755 | AJ15: 2747364 | AK15: 0 | AL15: 0 | AM15: 0 | AN15: 2347364 | AO15: 400000
A16: 縣市合計 | B16: 401821402 | C16: 70795506 | D16: 6524622 | E16: 3462955 | F16: 26052213 | G16: 31011361 | H16: 3744355 | I16: 縣市合計 | J16: 145856249 | K16: 138149760 | L16: 66334 | M16: 7640155 | N16: 60824658 | O16: 22128572 | P16: 5355891 | Q16: 23348960 | R16: 縣市合計 | S16: 9991235 | T16: 62960327 | U16: 2440263 | V16: 3276205 | W16: 38792095 | X16: 773328 | Y16: 17678436 | Z16: 縣市合計 | AA16: 11998707 | AB16: 10149943 | AC16: 1848764 | AD16: 37390393 | AE16: 37390393 | AF16: 2392693 | AG16: 2392693 | AH16: 縣市合計 | AI16: 0 | AJ16: 9602869 | AK16: 344042 | AL16: 217707 | AM16: 0 | AN16: 7442120 | AO16: 1599000
A17: 宜蘭縣 | B17: 24707387 | C17: 4268921 | D17: 334038 | E17: 190322 | F17: 1557920 | G17: 1973951 | H17: 212690 | I17: 宜蘭縣 | J17: 9598283 | K17: 8984917 | L17: 0 | M17: 613366 | N17: 3024880 | O17: 1650430 | P17: 281095 | Q17: 615956 | R17: 宜蘭縣 | S17: 477399 | T17: 3482939 | U17: 123053 | V17: 158365 | W17: 1691788 | X17: 58319 | Y17: 1451414 | Z17: 宜蘭縣 | AA17: 1555889 | AB17: 457812 | AC17: 1098077 | AD17: 2079329 | AE17: 2079329 | AF17: 101378 | AG17: 101378 | AH17: 宜蘭縣 | AI17: 0 | AJ17: 595768 | AK17: 10217 | AL17: 0 | AM17: 0 | AN17: 535551 | AO17: 50000
A18: 新竹縣 | B18: 30351511 | C18: 4701887 | D18: 416213 | E18: 215297 | F18: 2034571 | G18: 1801575 | H18: 234231 | I18: 新竹縣 | J18: 12727402 | K18: 12136652 | L18: 0 | M18: 590750 | N18: 3803640 | O18: 572054 | P18: 120966 | Q18: 2513690 | R18: 新竹縣 | S18: 596930 | T18: 4530116 | U18: 93352 | V18: 117902 | W18: 3625091 | X18: 38475 | Y18: 655296 | Z18: 新竹縣 | AA18: 1124972 | AB18: 1124972 | AC18: 0 | AD18: 2503504 | AE18: 2503504 | AF18: 200000 | AG18: 200000 | AH18: 新竹縣 | AI18: 0 | AJ18: 759990 | AK18: 0 | AL18: 0 | AM18: 0 | AN18: 359990 | AO18: 400000
A19: 苗栗縣 | B19: 21125487 | C19: 4674017 | D19: 355682 | E19: 221485 | F19: 1749730 | G19: 2093717 | H19: 253403 | I19: 苗栗縣 | J19: 7879065 | K19: 7650159 | L19: 0 | M19: 228906 | N19: 1736524 | O19: 786487 | P19: 45247 | Q19: 721969 | R19: 苗栗縣 | S19: 182821 | T19: 2645680 | U19: 121027 | V19: 221001 | W19: 1220356 | X19: 63368 | Y19: 1019928 | Z19: 苗栗縣 | AA19: 1025621 | AB19: 977203 | AC19: 48418 | AD19: 2208030 | AE19: 2208030 | AF19: 550000 | AG19: 550000 | AH19: 苗栗縣 | AI19: 0 | AJ19: 406550 | AK19: 0 | AL19: 42750 | AM19: 0 | AN19: 313800 | AO19: 50000
A20: 彰化縣 | B20: 49925470 | C20: 7541073 | D20: 405760 | E20: 293321 | F20: 2079307 | G20: 4327184 | H20: 435501 | I20: 彰化縣 | J20: 20286076 | K20: 19912699 | L20: 0 | M20: 373377 | N20: 6865682 | O20: 2728468 | P20: 99503 | Q20: 2836078 | R20: 彰化縣 | S20: 1201633 | T20: 7883724 | U20: 391929 | V20: 342402 | W20: 5338172 | X20: 114364 | Y20: 1696857 | Z20: 彰化縣 | AA20: 733251 | AB20: 376313 | AC20: 356938 | AD20: 5256576 | AE20: 5256576 | AF20: 371274 | AG20: 371274 | AH20: 彰化縣 | AI20: 0 | AJ20: 987814 | AK20: 26186 | AL20: 0 | AM20: 0 | AN20: 861628 | AO20: 100000
A21: 南投縣 | B21: 28175000 | C21: 5241976 | D21: 536603 | E21: 251559 | F21: 1677010 | G21: 2517427 | H21: 259377 | I21: 南投縣 | J21: 10500154 | K21: 10390330 | L21: 0 | M21: 109824 | N21: 3659686 | O21: 475117 | P21: 1362005 | Q21: 1616360 | R21: 南投縣 | S21: 206204 | T21: 4563781 | U21: 135807 | V21: 138734 | W21: 3277242 | X21: 15823 | Y21: 996175 | Z21: 南投縣 | AA21: 530170 | AB21: 498812 | AC21: 31358 | AD21: 2819514 | AE21: 2819514 | AF21: 98431 | AG21: 98431 | AH21: 南投縣 | AI21: 0 | AJ21: 761288 | AK21: 37500 | AL21: 0 | AM21: 0 | AN21: 493788 | AO21: 230000
A22: 雲林縣 | B22: 36591202 | C22: 4858585 | D22: 349880 | E22: 245158 | F22: 1444766 | G22: 2531189 | H22: 287592 | I22: 雲林縣 | J22: 13425205 | K22: 12310980 | L22: 0 | M22: 1114225 | N22: 6804584 | O22: 3668889 | P22: 180145 | Q22: 1959694 | R22: 雲林縣 | S22: 995856 | T22: 6395254 | U22: 225374 | V22: 526237 | W22: 3753589 | X22: 0 | Y22: 1890054 | Z22: 雲林縣 | AA22: 307094 | AB22: 299978 | AC22: 7116 | AD22: 3415323 | AE22: 3415323 | AF22: 184670 | AG22: 184670 | AH22: 雲林縣 | AI22: 0 | AJ22: 1200487 | AK22: 76500 | AL22: 0 | AM22: 0 | AN22: 1043987 | AO22: 80000
A23: 嘉義縣 | B23: 30000000 | C23: 4549058 | D23: 506313 | E23: 221875 | F23: 1465807 | G23: 2100984 | H23: 254079 | I23: 嘉義縣 | J23: 9845987 | K23: 9652522 | L23: 0 | M23: 193465 | N23: 6827175 | O23: 4921336 | P23: 63595 | Q23: 1465463 | R23: 嘉義縣 | S23: 376781 | T23: 5152930 | U23: 150794 | V23: 128167 | W23: 3657187 | X23: 76196 | Y23: 1140586 | Z23: 嘉義縣 | AA23: 261437 | AB23: 261437 | AC23: 0 | AD23: 2356316 | AE23: 2356316 | AF23: 250000 | AG23: 250000 | AH23: 嘉義縣 | AI23: 0 | AJ23: 757097 | AK23: 21847 | AL23: 89250 | AM23: 0 | AN23: 566000 | AO23: 80000
A24: 屏東縣 | B24: 44488000 | C24: 8177972 | D24: 695558 | E24: 320783 | F24: 3665212 | G24: 3131363 | H24: 365056 | I24: 屏東縣 | J24: 15996808 | K24: 15057328 | L24: 0 | M24: 939480 | N24: 6029286 | O24: 2750699 | P24: 337624 | Q24: 2353764 | R24: 屏東縣 | S24: 587199 | T24: 7649479 | U24: 305424 | V24: 398001 | W24: 3543932 | X24: 232497 | Y24: 3169625 | Z24: 屏東縣 | AA24: 586370 | AB24: 524439 | AC24: 61931 | AD24: 5102932 | AE24: 5102932 | AF24: 150000 | AG24: 150000 | AH24: 屏東縣 | AI24: 0 | AJ24: 795153 | AK24: 79292 | AL24: 0 | AM24: 0 | AN24: 665861 | AO24: 50000
A25: 臺東縣 | B25: 20676578 | C25: 4694257 | D25: 537210 | E25: 203527 | F25: 2207649 | G25: 1545838 | H25: 200033 | I25: 臺東縣 | J25: 7042641 | K25: 6667820 | L25: 0 | M25: 374821 | N25: 2292178 | O25: 926511 | P25: 260340 | Q25: 261492 | R25: 臺東縣 | S25: 843835 | T25: 3104119 | U25: 100092 | V25: 286925 | W25: 1302047 | X25: 30186 | Y25: 1384869 | Z25: 臺東縣 | AA25: 457952 | AB25: 451072 | AC25: 6880 | AD25: 2234115 | AE25: 2234115 | AF25: 100000 | AG25: 100000 | AH25: 臺東縣 | AI25: 0 | AJ25: 751316 | AK25: 1000 | AL25: 0 | AM25: 0 | AN25: 690316 | AO25: 60000
A26: 花蓮縣 | B26: 24131869 | C26: 5339081 | D26: 336063 | E26: 218684 | F26: 2508219 | G26: 2010748 | H26: 265367 | I26: 花蓮縣 | J26: 8622719 | K26: 8025428 | L26: 0 | M26: 597291 | N26: 2829123 | O26: 733231 | P26: 789797 | Q26: 627179 | R26: 花蓮縣 | S26: 678916 | T26: 3913272 | U26: 104874 | V26: 242604 | W26: 2753275 | X26: 12999 | Y26: 799520 | Z26: 花蓮縣 | AA26: 490952 | AB26: 430511 | AC26: 60441 | AD26: 2317383 | AE26: 2317383 | AF26: 122200 | AG26: 122200 | AH26: 花蓮縣 | AI26: 0 | AJ26: 497139 | AK26: 0 | AL26: 0 | AM26: 0 | AN26: 437139 | AO26: 60000
A27: 澎湖縣 | B27: 11684058 | C27: 2490210 | D27: 222314 | E27: 153585 | F27: 610026 | G27: 1377542 | H27: 126743 | I27: 澎湖縣 | J27: 2845469 | K27: 2526189 | L27: 66334 | M27: 252946 | N27: 2669417 | O27: 584148 | P27: 630605 | Q27: 904981 | R27: 澎湖縣 | S27: 549683 | T27: 1864327 | U27: 46510 | V27: 99168 | W27: 1111083 | X27: 20248 | Y27: 587318 | Z27: 澎湖縣 | AA27: 607378 | AB27: 597670 | AC27: 9708 | AD27: 841815 | AE27: 841815 | AF27: 16740 | AG27: 16740 | AH27: 澎湖縣 | AI27: 0 | AJ27: 348702 | AK27: 88500 | AL27: 0 | AM27: 0 | AN27: 213202 | AO27: 47000
A28: 基隆市 | B28: 21545849 | C28: 4200287 | D28: 379860 | E28: 208583 | F28: 1558395 | G28: 1773604 | H28: 279845 | I28: 基隆市 | J28: 7471816 | K28: 7153134 | L28: 0 | M28: 318682 | N28: 3073696 | O28: 206662 | P28: 405544 | Q28: 1875591 | R28: 基隆市 | S28: 585899 | T28: 3574472 | U28: 454543 | V28: 309648 | W28: 2309378 | X28: 14556 | Y28: 486347 | Z28: 基隆市 | AA28: 860331 | AB28: 845128 | AC28: 15203 | AD28: 1885467 | AE28: 1885467 | AF28: 90000 | AG28: 90000 | AH28: 基隆市 | AI28: 0 | AJ28: 389780 | AK28: 0 | AL28: 0 | AM28: 0 | AN28: 364780 | AO28: 25000
A29: 新竹市 | B29: 25277780 | C29: 3768638 | D29: 343969 | E29: 223757 | F29: 1381621 | G29: 1557788 | H29: 261503 | I29: 新竹市 | J29: 9426216 | K29: 8414462 | L29: 0 | M29: 1011754 | N29: 3420202 | O29: 485596 | P29: 383138 | Q29: 1596397 | R29: 新竹市 | S29: 955071 | T29: 3982288 | U29: 87555 | V29: 150971 | W29: 2951875 | X29: 58194 | Y29: 733693 | Z29: 新竹市 | AA29: 1614798 | AB29: 1493218 | AC29: 121580 | AD29: 2225038 | AE29: 2225038 | AF29: 150000 | AG29: 150000 | AH29: 新竹市 | AI29: 0 | AJ29: 690600 | AK29: 0 | AL29: 0 | AM29: 0 | AN29: 390600 | AO29: 300000
A30: 嘉義市 | B30: 15997247 | C30: 3266974 | D30: 309810 | E30: 229758 | F30: 1156425 | G30: 1354881 | H30: 216100 | I30: 嘉義市 | J30: 5793743 | K30: 5435298 | L30: 0 | M30: 358445 | N30: 2073330 | O30: 61786 | P30: 90628 | Q30: 1586811 | R30: 嘉義市 | S30: 334105 | T30: 2234361 | U30: 62966 | V30: 95409 | W30: 1321127 | X30: 38103 | Y30: 716756 | Z30: 嘉義市 | AA30: 875882 | AB30: 867012 | AC30: 8870 | AD30: 1427557 | AE30: 1427557 | AF30: 7400 | AG30: 7400 | AH30: 嘉義市 | AI30: 0 | AJ30: 318000 | AK30: 0 | AL30: 0 | AM30: 0 | AN30: 303000 | AO30: 15000
A31: 金門縣 | B31: 13549643 | C31: 2310548 | D31: 541639 | E31: 200739 | F31: 771107 | G31: 732423 | H31: 64640 | I31: 金門縣 | J31: 3423743 | K31: 2955753 | L31: 0 | M31: 467990 | N31: 4353396 | O31: 1272897 | P31: 289454 | Q31: 1824339 | R31: 金門縣 | S31: 966706 | T31: 1621221 | U31: 35084 | V31: 51603 | W31: 835851 | X31: 0 | Y31: 698683 | Z31: 金門縣 | AA31: 889822 | AB31: 867578 | AC31: 22244 | AD31: 667406 | AE31: 667406 | AF31: 0 | AG31: 0 | AH31: 金門縣 | AI31: 0 | AJ31: 283507 | AK31: 0 | AL31: 85707 | AM31: 0 | AN31: 160800 | AO31: 37000
A32: 連江縣 | B32: 3594321 | C32: 712022 | D32: 253710 | E32: 64522 | F32: 184448 | G32: 181147 | H32: 28195 | I32: 連江縣 | J32: 970922 | K32: 876089 | L32: 0 | M32: 94833 | N32: 1361859 | O32: 304261 | P32: 16205 | Q32: 589196 | R32: 連江縣 | S32: 452197 | T32: 362364 | U32: 1879 | V32: 9068 | W32: 100102 | X32: 0 | Y32: 251315 | Z32: 連江縣 | AA32: 76788 | AB32: 76788 | AC32: 0 | AD32: 50088 | AE32: 50088 | AF32: 600 | AG32: 600 | AH32: 連江縣 | AI32: 0 | AJ32: 59678 | AK32: 3000 | AL32: 0 | AM32: 0 | AN32: 41678 | AO32: 15000
A33: (經常門) | I33: (經常門) | R33: (經常門) | Z33: (經常門) | AH33: (經常門)
A34: 總 計 | B34: 1008413505 | C34: 198905938 | D34: 12854186 | E34: 7636978 | F34: 78583646 | G34: 89816773 | H34: 10014355 | I34: 總 計 | J34: 407569651 | K34: 386505393 | L34: 43904 | M34: 21020354 | N34: 61751870 | O34: 15589230 | P34: 8268047 | Q34: 27482256 | R34: 總 計 | S34: 10412337 | T34: 207922248 | U34: 18650410 | V34: 20580611 | W34: 124603738 | X34: 1435201 | Y34: 42652288 | Z34: 總 計 | AA34: 49523542 | AB34: 43797668 | AC34: 5725874 | AD34: 61420694 | AE34: 61420694 | AF34: 8358688 | AG34: 8338933 | AH34: 總 計 | AI34: 19755 | AJ34: 12960874 | AK34: 341042 | AL34: 169852 | AM34: 0 | AN34: 9237647 | AO34: 3212333
A35: 直轄市合計 | B35: 697270264 | C35: 134520023 | D35: 6995379 | E35: 4391885 | F35: 56512722 | G35: 60213090 | H35: 6406947 | I35: 直轄市合計 | J35: 288276015 | K35: 271634048 | L35: 0 | M35: 16641967 | N35: 46142343 | O35: 9277644 | P35: 6068052 | Q35: 24433783 | R35: 直轄市合計 | S35: 6362864 | T35: 147439605 | U35: 16210147 | V35: 17304436 | W35: 86613606 | X35: 728153 | Y35: 26583263 | Z35: 直轄市合計 | AA35: 42767031 | AB35: 37459598 | AC35: 5307433 | AD35: 24030301 | AE35: 24030301 | AF35: 5965995 | AG35: 5946240 | AH35: 直轄市合計 | AI35: 19755 | AJ35: 8128951 | AK35: 0 | AL35: 0 | AM35: 0 | AN35: 6125618 | AO35: 2003333
A36: 新北市 | B36: 140215824 | C36: 28381178 | D36: 1330205 | E36: 682150 | F36: 13977403 | G36: 11164952 | H36: 1226468 | I36: 新北市 | J36: 57303161 | K36: 54687453 | L36: 0 | M36: 2615708 | N36: 7832893 | O36: 1682604 | P36: 641947 | Q36: 4675411 | R36: 新北市 | S36: 832931 | T36: 29497407 | U36: 1504662 | V36: 1366653 | W36: 20869457 | X36: 128234 | Y36: 5628401 | Z36: 新北市 | AA36: 9882866 | AB36: 9169030 | AC36: 713836 | AD36: 4002397 | AE36: 4002397 | AF36: 1036000 | AG36: 1036000 | AH36: 新北市 | AI36: 0 | AJ36: 2279922 | AK36: 0 | AL36: 0 | AM36: 0 | AN36: 1879922 | AO36: 400000
A37: 臺北市 | B37: 137052222 | C37: 26000276 | D37: 1880619 | E37: 832889 | F37: 8619853 | G37: 12848407 | H37: 1818508 | I37: 臺北市 | J37: 56508432 | K37: 50914468 | L37: 0 | M37: 5593964 | N37: 12912242 | O37: 2343429 | P37: 1284923 | Q37: 8004827 | R37: 臺北市 | S37: 1279063 | T37: 23471500 | U37: 675380 | V37: 8400147 | W37: 9233045 | X37: 385210 | Y37: 4777718 | Z37: 臺北市 | AA37: 9677745 | AB37: 8012659 | AC37: 1665086 | AD37: 5461873 | AE37: 5461873 | AF37: 845654 | AG37: 837654 | AH37: 臺北市 | AI37: 8000 | AJ37: 2174500 | AK37: 0 | AL37: 0 | AM37: 0 | AN37: 1654500 | AO37: 520000
A38: 桃園市 | B38: 97143142 | C38: 19747797 | D38: 937337 | E38: 666677 | F38: 8647131 | G38: 8753718 | H38: 742934 | I38: 桃園市 | J38: 41040568 | K38: 38414364 | L38: 0 | M38: 2626204 | N38: 6746074 | O38: 1648564 | P38: 1696404 | Q38: 2380853 | R38: 桃園市 | S38: 1020253 | T38: 20178047 | U38: 1249737 | V38: 3353838 | W38: 13429948 | X38: 0 | Y38: 2144524 | Z38: 桃園市 | AA38: 6781610 | AB38: 5595684 | AC38: 1185926 | AD38: 1523357 | AE38: 1523357 | AF38: 521257 | AG38: 521257 | AH38: 桃園市 | AI38: 0 | AJ38: 604432 | AK38: 0 | AL38: 0 | AM38: 0 | AN38: 354432 | AO38: 250000
A39: 臺中市 | B39: 118407709 | C39: 22245302 | D39: 1308462 | E39: 789942 | F39: 8854508 | G39: 10277985 | H39: 1014405 | I39: 臺中市 | J39: 51409060 | K39: 49607125 | L39: 0 | M39: 1801935 | N39: 7742264 | O39: 1127777 | P39: 1643729 | Q39: 4012733 | R39: 臺中市 | S39: 958025 | T39: 25445401 | U39: 965180 | V39: 2172839 | W39: 16138778 | X39: 19542 | Y39: 6149062 | Z39: 臺中市 | AA39: 6393925 | AB39: 5675861 | AC39: 718064 | AD39: 3174757 | AE39: 3174757 | AF39: 800000 | AG39: 800000 | AH39: 臺中市 | AI39: 0 | AJ39: 1197000 | AK39: 0 | AL39: 0 | AM39: 0 | AN39: 897000 | AO39: 300000
A40: 臺南市 | B40: 77427451 | C40: 15685597 | D40: 665123 | E40: 661177 | F40: 6859370 | G40: 6863520 | H40: 636407 | I40: 臺南市 | J40: 32536726 | K40: 30918722 | L40: 0 | M40: 1618004 | N40: 5358614 | O40: 1779809 | P40: 762087 | Q40: 1689604 | R40: 臺南市 | S40: 1127114 | T40: 15241919 | U40: 720367 | V40: 750484 | W40: 12461275 | X40: 93749 | Y40: 1216044 | Z40: 臺南市 | AA40: 3713824 | AB40: 3180736 | AC40: 533088 | AD40: 3602771 | AE40: 3602771 | AF40: 524000 | AG40: 524000 | AH40: 臺南市 | AI40: 0 | AJ40: 764000 | AK40: 0 | AL40: 0 | AM40: 0 | AN40: 364000 | AO40: 400000
A41: 高雄市 | B41: 127023916 | C41: 22459873 | D41: 873633 | E41: 759050 | F41: 9554457 | G41: 10304508 | H41: 968225 | I41: 高雄市 | J41: 49478068 | K41: 47091916 | L41: 0 | M41: 2386152 | N41: 5550256 | O41: 695461 | P41: 38962 | Q41: 3670355 | R41: 高雄市 | S41: 1145478 | T41: 33605331 | U41: 11094821 | V41: 1260475 | W41: 14481103 | X41: 101418 | Y41: 6667514 | Z41: 高雄市 | AA41: 6317061 | AB41: 5825628 | AC41: 491433 | AD41: 6265146 | AE41: 6265146 | AF41: 2239084 | AG41: 2227329 | AH41: 高雄市 | AI41: 11755 | AJ41: 1109097 | AK41: 0 | AL41: 0 | AM41: 0 | AN41: 975764 | AO41: 133333
A42: 縣市合計 | B42: 311143241 | C42: 64385915 | D42: 5858807 | E42: 3245093 | F42: 22070924 | G42: 29603683 | H42: 3607408 | I42: 縣市合計 | J42: 119293636 | K42: 114871345 | L42: 43904 | M42: 4378387 | N42: 15609527 | O42: 6311586 | P42: 2199995 | Q42: 3048473 | R42: 縣市合計 | S42: 4049473 | T42: 60482643 | U42: 2440263 | V42: 3276175 | W42: 37990132 | X42: 707048 | Y42: 16069025 | Z42: 縣市合計 | AA42: 6756511 | AB42: 6338070 | AC42: 418441 | AD42: 37390393 | AE42: 37390393 | AF42: 2392693 | AG42: 2392693 | AH42: 縣市合計 | AI42: 0 | AJ42: 4831923 | AK42: 341042 | AL42: 169852 | AM42: 0 | AN42: 3112029 | AO42: 1209000
A43: 宜蘭縣 | B43: 19596748 | C43: 3836106 | D43: 295298 | E43: 186887 | F43: 1215745 | G43: 1928176 | H43: 210000 | I43: 宜蘭縣 | J43: 8040331 | K43: 7584779 | L43: 0 | M43: 455552 | N43: 1235001 | O43: 662724 | P43: 206655 | Q43: 158137 | R43: 宜蘭縣 | S43: 207485 | T43: 3378137 | U43: 123053 | V43: 158365 | W43: 1667516 | X43: 57319 | Y43: 1371884 | Z43: 宜蘭縣 | AA43: 577872 | AB43: 446795 | AC43: 131077 | AD43: 2079329 | AE43: 2079329 | AF43: 101378 | AG43: 101378 | AH43: 宜蘭縣 | AI43: 0 | AJ43: 348594 | AK43: 10217 | AL43: 0 | AM43: 0 | AN43: 288377 | AO43: 50000
A44: 新竹縣 | B44: 22483005 | C44: 3966910 | D44: 355817 | E44: 209127 | F44: 1515840 | G44: 1656220 | H44: 229906 | I44: 新竹縣 | J44: 9580838 | K44: 9382949 | L44: 0 | M44: 197889 | N44: 837166 | O44: 247854 | P44: 97566 | Q44: 353708 | R44: 新竹縣 | S44: 138038 | T44: 4396642 | U44: 93352 | V44: 117902 | W44: 3536476 | X44: 38475 | Y44: 610437 | Z44: 新竹縣 | AA44: 541475 | AB44: 541475 | AC44: 0 | AD44: 2503504 | AE44: 2503504 | AF44: 200000 | AG44: 200000 | AH44: 新竹縣 | AI44: 0 | AJ44: 456470 | AK44: 0 | AL44: 0 | AM44: 0 | AN44: 56470 | AO44: 400000
A45: 苗栗縣 | B45: 18061851 | C45: 4386857 | D45: 329242 | E45: 205505 | F45: 1634311 | G45: 1967533 | H45: 250266 | I45: 苗栗縣 | J45: 7621751 | K45: 7426170 | L45: 0 | M45: 195581 | N45: 373505 | O45: 215855 | P45: 44967 | Q45: 44888 | R45: 苗栗縣 | S45: 67795 | T45: 2597920 | U45: 121027 | V45: 221001 | W45: 1219356 | X45: 62557 | Y45: 973979 | Z45: 苗栗縣 | AA45: 128638 | AB45: 121220 | AC45: 7418 | AD45: 2208030 | AE45: 2208030 | AF45: 550000 | AG45: 550000 | AH45: 苗栗縣 | AI45: 0 | AJ45: 195150 | AK45: 0 | AL45: 42750 | AM45: 0 | AN45: 102400 | AO45: 50000
A46: 彰化縣 | B46: 39431034 | C46: 7370322 | D46: 397678 | E46: 289681 | F46: 2032173 | G46: 4218963 | H46: 431827 | I46: 彰化縣 | J46: 17374727 | K46: 17102295 | L46: 0 | M46: 272432 | N46: 1190916 | O46: 599840 | P46: 99503 | Q46: 188800 | R46: 彰化縣 | S46: 302773 | T46: 7072858 | U46: 391929 | V46: 342402 | W46: 5247595 | X46: 114364 | Y46: 976568 | Z46: 彰化縣 | AA46: 296547 | AB46: 252657 | AC46: 43890 | AD46: 5256576 | AE46: 5256576 | AF46: 371274 | AG46: 371274 | AH46: 彰化縣 | AI46: 0 | AJ46: 497814 | AK46: 26186 | AL46: 0 | AM46: 0 | AN46: 371628 | AO46: 100000
A47: 南投縣 | B47: 22680880 | C47: 4682695 | D47: 367450 | E47: 245609 | F47: 1436562 | G47: 2376755 | H47: 256319 | I47: 南投縣 | J47: 9009144 | K47: 8904922 | L47: 0 | M47: 104222 | N47: 662270 | O47: 272692 | P47: 178567 | Q47: 12048 | R47: 南投縣 | S47: 198963 | T47: 4529409 | U47: 135807 | V47: 138734 | W47: 3277242 | X47: 15823 | Y47: 961803 | Z47: 南投縣 | AA47: 399879 | AB47: 368521 | AC47: 31358 | AD47: 2819514 | AE47: 2819514 | AF47: 98431 | AG47: 98431 | AH47: 南投縣 | AI47: 0 | AJ47: 479538 | AK47: 37500 | AL47: 0 | AM47: 0 | AN47: 212038 | AO47: 230000
A48: 雲林縣 | B48: 27032308 | C48: 4563368 | D48: 345265 | E48: 240308 | F48: 1327925 | G48: 2371070 | H48: 278800 | I48: 雲林縣 | J48: 10866734 | K48: 10370597 | L48: 0 | M48: 496137 | N48: 1133707 | O48: 824630 | P48: 139878 | Q48: 50289 | R48: 雲林縣 | S48: 118910 | T48: 6246712 | U48: 225374 | V48: 526237 | W48: 3681917 | X48: 0 | Y48: 1813184 | Z48: 雲林縣 | AA48: 249794 | AB48: 244678 | AC48: 5116 | AD48: 3415323 | AE48: 3415323 | AF48: 184670 | AG48: 184670 | AH48: 雲林縣 | AI48: 0 | AJ48: 372000 | AK48: 76500 | AL48: 0 | AM48: 0 | AN48: 295500 | AO48: 0
A49: 嘉義縣 | B49: 21252372 | C49: 4209854 | D49: 413161 | E49: 211960 | F49: 1370919 | G49: 1975333 | H49: 238481 | I49: 嘉義縣 | J49: 8031619 | K49: 7886314 | L49: 0 | M49: 145305 | N49: 936411 | O49: 531202 | P49: 45368 | Q49: 145699 | R49: 嘉義縣 | S49: 214142 | T49: 4958382 | U49: 150794 | V49: 128167 | W49: 3531170 | X49: 74761 | Y49: 1073490 | Z49: 嘉義縣 | AA49: 133693 | AB49: 133693 | AC49: 0 | AD49: 2356316 | AE49: 2356316 | AF49: 250000 | AG49: 250000 | AH49: 嘉義縣 | AI49: 0 | AJ49: 376097 | AK49: 21847 | AL49: 89250 | AM49: 0 | AN49: 265000 | AO49: 0
A50: 屏東縣 | B50: 34813821 | C50: 7188417 | D50: 571158 | E50: 302832 | F50: 2955818 | G50: 3028058 | H50: 330551 | I50: 屏東縣 | J50: 13013145 | K50: 12524201 | L50: 0 | M50: 488944 | N50: 1282352 | O50: 572538 | P50: 134513 | Q50: 306621 | R50: 屏東縣 | S50: 268680 | T50: 7214441 | U50: 305424 | V50: 398001 | W50: 3460493 | X50: 169673 | Y50: 2880850 | Z50: 屏東縣 | AA50: 514381 | AB50: 452450 | AC50: 61931 | AD50: 5102932 | AE50: 5102932 | AF50: 150000 | AG50: 150000 | AH50: 屏東縣 | AI50: 0 | AJ50: 348153 | AK50: 79292 | AL50: 0 | AM50: 0 | AN50: 218861 | AO50: 50000
A51: 臺東縣 | B51: 16953411 | C51: 4016230 | D51: 536310 | E51: 193027 | F51: 1636602 | G51: 1475965 | H51: 174326 | I51: 臺東縣 | J51: 5668237 | K51: 5427378 | L51: 0 | M51: 240859 | N51: 1209114 | O51: 394963 | P51: 260340 | Q51: 164741 | R51: 臺東縣 | S51: 389070 | T51: 3003930 | U51: 100092 | V51: 286925 | W51: 1276558 | X51: 30186 | Y51: 1310169 | Z51: 臺東縣 | AA51: 240469 | AB51: 233589 | AC51: 6880 | AD51: 2234115 | AE51: 2234115 | AF51: 100000 | AG51: 100000 | AH51: 臺東縣 | AI51: 0 | AJ51: 481316 | AK51: 1000 | AL51: 0 | AM51: 0 | AN51: 480316 | AO51: 0
A52: 花蓮縣 | B52: 18989079 | C52: 4621521 | D52: 324376 | E52: 204417 | F52: 1940408 | G52: 1892228 | H52: 260092 | I52: 花蓮縣 | J52: 6557173 | K52: 6320285 | L52: 0 | M52: 236888 | N52: 961344 | O52: 347850 | P52: 278363 | Q52: 78388 | R52: 花蓮縣 | S52: 256743 | T52: 3851515 | U52: 104874 | V52: 242604 | W52: 2736948 | X52: 12989 | Y52: 754100 | Z52: 花蓮縣 | AA52: 300804 | AB52: 286190 | AC52: 14614 | AD52: 2317383 | AE52: 2317383 | AF52: 122200 | AG52: 122200 | AH52: 花蓮縣 | AI52: 0 | AJ52: 257139 | AK52: 0 | AL52: 0 | AM52: 0 | AN52: 197139 | AO52: 60000
A53: 澎湖縣 | B53: 8806265 | C53: 2378291 | D53: 210614 | E53: 150085 | F53: 556866 | G53: 1334223 | H53: 126503 | I53: 澎湖縣 | J53: 2351305 | K53: 2120442 | L53: 43904 | M53: 186959 | N53: 981337 | O53: 329704 | P53: 101950 | Q53: 0 | R53: 澎湖縣 | S53: 549683 | T53: 1719964 | U53: 46510 | V53: 99168 | W53: 1009754 | X53: 20248 | Y53: 544284 | Z53: 澎湖縣 | AA53: 285221 | AB53: 280513 | AC53: 4708 | AD53: 841815 | AE53: 841815 | AF53: 16740 | AG53: 16740 | AH53: 澎湖縣 | AI53: 0 | AJ53: 231592 | AK53: 88500 | AL53: 0 | AM53: 0 | AN53: 96092 | AO53: 47000
A54: 基隆市 | B54: 16970919 | C54: 3986432 | D54: 351825 | E54: 201691 | F54: 1420973 | G54: 1737645 | H54: 274298 | I54: 基隆市 | J54: 5649975 | K54: 5464812 | L54: 0 | M54: 185163 | N54: 864947 | O54: 160992 | P54: 101434 | Q54: 392360 | R54: 基隆市 | S54: 210161 | T54: 3516125 | U54: 454543 | V54: 309648 | W54: 2272428 | X54: 14556 | Y54: 464950 | Z54: 基隆市 | AA54: 803693 | AB54: 788590 | AC54: 15103 | AD54: 1885467 | AE54: 1885467 | AF54: 90000 | AG54: 90000 | AH54: 基隆市 | AI54: 0 | AJ54: 174280 | AK54: 0 | AL54: 0 | AM54: 0 | AN54: 149280 | AO54: 25000
A55: 新竹市 | B55: 19190881 | C55: 3421009 | D55: 318063 | E55: 192605 | F55: 1182296 | G55: 1472805 | H55: 255240 | I55: 新竹市 | J55: 7218018 | K55: 6759977 | L55: 0 | M55: 458041 | N55: 856274 | O55: 102616 | P55: 126238 | Q55: 317512 | R55: 新竹市 | S55: 309908 | T55: 3925208 | U55: 87555 | V55: 150971 | W55: 2911751 | X55: 57994 | Y55: 716937 | Z55: 新竹市 | AA55: 1118734 | AB55: 1042502 | AC55: 76232 | AD55: 2225038 | AE55: 2225038 | AF55: 150000 | AG55: 150000 | AH55: 新竹市 | AI55: 0 | AJ55: 276600 | AK55: 0 | AL55: 0 | AM55: 0 | AN55: 136600 | AO55: 140000
A56: 嘉義市 | B56: 12993053 | C56: 2948161 | D56: 299042 | E56: 168838 | F56: 982183 | G56: 1293606 | H56: 204492 | I56: 嘉義市 | J56: 5077830 | K56: 4758966 | L56: 0 | M56: 318864 | N56: 409622 | O56: 61786 | P56: 90628 | Q56: 87763 | R56: 嘉義市 | S56: 169445 | T56: 2186046 | U56: 62966 | V56: 95409 | W56: 1308677 | X56: 38103 | Y56: 680891 | Z56: 嘉義市 | AA56: 728437 | AB56: 719567 | AC56: 8870 | AD56: 1427557 | AE56: 1427557 | AF56: 7400 | AG56: 7400 | AH56: 嘉義市 | AI56: 0 | AJ56: 208000 | AK56: 0 | AL56: 0 | AM56: 0 | AN56: 193000 | AO56: 15000
A57: 金門縣 | B57: 9496600 | C57: 2146772 | D57: 509686 | E57: 179499 | F57: 696582 | G57: 702768 | H57: 58237 | I57: 金門縣 | J57: 2557915 | K57: 2233157 | L57: 0 | M57: 324758 | N57: 2113104 | O57: 856244 | P57: 277820 | Q57: 364721 | R57: 金門縣 | S57: 614319 | T57: 1525950 | U57: 35084 | V57: 51573 | W57: 752693 | X57: 0 | Y57: 686600 | Z57: 金門縣 | AA57: 367801 | AB57: 356557 | AC57: 11244 | AD57: 667406 | AE57: 667406 | AF57: 0 | AG57: 0 | AH57: 金門縣 | AI57: 0 | AJ57: 117652 | AK57: 0 | AL57: 37852 | AM57: 0 | AN57: 42800 | AO57: 37000
A58: 連江縣 | B58: 2391014 | C58: 662970 | D58: 233822 | E58: 63022 | F58: 165721 | G58: 172335 | H58: 28070 | I58: 連江縣 | J58: 674894 | K58: 604101 | L58: 0 | M58: 70793 | N58: 562457 | O58: 130096 | P58: 16205 | Q58: 382798 | R58: 連江縣 | S58: 33358 | T58: 359404 | U58: 1879 | V58: 9068 | W58: 99558 | X58: 0 | Y58: 248899 | Z58: 連江縣 | AA58: 69073 | AB58: 69073 | AC58: 0 | AD58: 50088 | AE58: 50088 | AF58: 600 | AG58: 600 | AH58: 連江縣 | AI58: 0 | AJ58: 11528 | AK58: 0 | AL58: 0 | AM58: 0 | AN58: 6528 | AO58: 5000
A59: (資本門) | I59: (資本門) | R59: (資本門) | Z59: (資本門) | AH59: (資本門)
A60: 總 計 | B60: 278281469 | C60: 20291354 | D60: 1481293 | E60: 425134 | F60: 13995013 | G60: 4082031 | H60: 307883 | I60: 總 計 | J60: 69599049 | K60: 55344899 | L60: 22430 | M60: 14231720 | N60: 143970732 | O60: 42862643 | P60: 12607575 | Q60: 73549761 | R60: 總 計 | S60: 14950753 | T60: 7643541 | U60: 0 | V60: 3280 | W60: 4723222 | X60: 175566 | Y60: 2741473 | Z60: 總 計 | AA60: 23699287 | AB60: 17441992 | AC60: 6257295 | AD60: 0 | AE60: 0 | AF60: 0 | AG60: 0 | AH60: 總 計 | AI60: 0 | AJ60: 13077506 | AK60: 3000 | AL60: 47855 | AM60: 0 | AN60: 11949984 | AO60: 1076667
A61: 直轄市合計 | B61: 187603308 | C61: 13881763 | D61: 815478 | E61: 207272 | F61: 10013724 | G61: 2674353 | H61: 170936 | I61: 直轄市合計 | J61: 43036436 | K61: 32066484 | L61: 0 | M61: 10969952 | N61: 98755601 | O61: 27045657 | P61: 9451679 | Q61: 53249274 | R61: 直轄市合計 | S61: 9008991 | T61: 5165857 | U61: 0 | V61: 3250 | W61: 3921259 | X61: 109286 | Y61: 1132062 | Z61: 直轄市合計 | AA61: 18457091 | AB61: 13630119 | AC61: 4826972 | AD61: 0 | AE61: 0 | AF61: 0 | AG61: 0 | AH61: 直轄市合計 | AI61: 0 | AJ61: 8306560 | AK61: 0 | AL61: 0 | AM61: 0 | AN61: 7619893 | AO61: 686667
A62: 新北市 | B62: 39176728 | C62: 4465018 | D62: 162891 | E62: 45510 | F62: 3722475 | G62: 489563 | H62: 44579 | I62: 新北市 | J62: 8088831 | K62: 6442556 | L62: 0 | M62: 1646275 | N62: 18505368 | O62: 4007415 | P62: 2920116 | Q62: 11299237 | R62: 新北市 | S62: 278600 | T62: 1254659 | U62: 0 | V62: 0 | W62: 926666 | X62: 745 | Y62: 327248 | Z62: 新北市 | AA62: 5303852 | AB62: 4991623 | AC62: 312229 | AD62: 0 | AE62: 0 | AF62: 0 | AG62: 0 | AH62: 新北市 | AI62: 0 | AJ62: 1559000 | AK62: 0 | AL62: 0 | AM62: 0 | AN62: 1559000 | AO62: 0
A63: 臺北市 | B63: 35717433 | C63: 2227174 | D63: 228006 | E63: 64821 | F63: 1028320 | G63: 840603 | H63: 65424 | I63: 臺北市 | J63: 8146049 | K63: 4415622 | L63: 0 | M63: 3730427 | N63: 17285034 | O63: 5254021 | P63: 167842 | Q63: 11613177 | R63: 臺北市 | S63: 249994 | T63: 1502686 | U63: 0 | V63: 0 | W63: 1354447 | X63: 103370 | Y63: 44869 | Z63: 臺北市 | AA63: 5286490 | AB63: 1655384 | AC63: 3631106 | AD63: 0 | AE63: 0 | AF63: 0 | AG63: 0 | AH63: 臺北市 | AI63: 0 | AJ63: 1270000 | AK63: 0 | AL63: 0 | AM63: 0 | AN63: 1050000 | AO63: 220000
A64: 桃園市 | B64: 40636858 | C64: 2885761 | D64: 207812 | E64: 17080 | F64: 2083962 | G64: 566172 | H64: 10735 | I64: 桃園市 | J64: 8477457 | K64: 6201251 | L64: 0 | M64: 2276206 | N64: 25922553 | O64: 5705482 | P64: 4858033 | Q64: 8136293 | R64: 桃園市 | S64: 7222745 | T64: 902080 | U64: 0 | V64: 3000 | W64: 830818 | X64: 0 | Y64: 68262 | Z64: 桃園市 | AA64: 1062007 | AB64: 791744 | AC64: 270263 | AD64: 0 | AE64: 0 | AF64: 0 | AG64: 0 | AH64: 桃園市 | AI64: 0 | AJ64: 1387000 | AK64: 0 | AL64: 0 | AM64: 0 | AN64: 1387000 | AO64: 0
A65: 臺中市 | B65: 23795466 | C65: 1497066 | D65: 96808 | E65: 6916 | F65: 1164620 | G65: 203165 | H65: 25557 | I65: 臺中市 | J65: 6719486 | K65: 5730010 | L65: 0 | M65: 989476 | N65: 11219983 | O65: 880477 | P65: 1427900 | Q65: 8549202 | R65: 臺中市 | S65: 362404 | T65: 566786 | U65: 0 | V65: 0 | W65: 408814 | X65: 0 | Y65: 157972 | Z65: 臺中市 | AA65: 2302145 | AB65: 1784866 | AC65: 517279 | AD65: 0 | AE65: 0 | AF65: 0 | AG65: 0 | AH65: 臺中市 | AI65: 0 | AJ65: 1490000 | AK65: 0 | AL65: 0 | AM65: 0 | AN65: 1290000 | AO65: 200000
A66: 臺南市 | B66: 23201039 | C66: 1217914 | D66: 64064 | E66: 37909 | F66: 871389 | G66: 232846 | H66: 11706 | I66: 臺南市 | J66: 5639836 | K66: 4224335 | L66: 0 | M66: 1415501 | N66: 14212383 | O66: 8038270 | P66: 51888 | Q66: 5698958 | R66: 臺南市 | S66: 423267 | T66: 258176 | U66: 0 | V66: 0 | W66: 186385 | X66: 1716 | Y66: 70075 | Z66: 臺南市 | AA66: 910437 | AB66: 846799 | AC66: 63638 | AD66: 0 | AE66: 0 | AF66: 0 | AG66: 0 | AH66: 臺南市 | AI66: 0 | AJ66: 962293 | AK66: 0 | AL66: 0 | AM66: 0 | AN66: 962293 | AO66: 0
A67: 高雄市 | B67: 25075784 | C67: 1588830 | D67: 55897 | E67: 35036 | F67: 1142958 | G67: 342004 | H67: 12935 | I67: 高雄市 | J67: 5964777 | K67: 5052710 | L67: 0 | M67: 912067 | N67: 11610280 | O67: 3159992 | P67: 25900 | Q67: 7952407 | R67: 高雄市 | S67: 471981 | T67: 681470 | U67: 0 | V67: 250 | W67: 214129 | X67: 3455 | Y67: 463636 | Z67: 高雄市 | AA67: 3592160 | AB67: 3559703 | AC67: 32457 | AD67: 0 | AE67: 0 | AF67: 0 | AG67: 0 | AH67: 高雄市 | AI67: 0 | AJ67: 1638267 | AK67: 0 | AL67: 0 | AM67: 0 | AN67: 1371600 | AO67: 266667
A68: 縣市合計 | B68: 90678161 | C68: 6409591 | D68: 665815 | E68: 217862 | F68: 3981289 | G68: 1407678 | H68: 136947 | I68: 縣市合計 | J68: 26562613 | K68: 23278415 | L68: 22430 | M68: 3261768 | N68: 45215131 | O68: 15816986 | P68: 3155896 | Q68: 20300487 | R68: 縣市合計 | S68: 5941762 | T68: 2477684 | U68: 0 | V68: 30 | W68: 801963 | X68: 66280 | Y68: 1609411 | Z68: 縣市合計 | AA68: 5242196 | AB68: 3811873 | AC68: 1430323 | AD68: 0 | AE68: 0 | AF68: 0 | AG68: 0 | AH68: 縣市合計 | AI68: 0 | AJ68: 4770946 | AK68: 3000 | AL68: 47855 | AM68: 0 | AN68: 4330091 | AO68: 390000
A69: 宜蘭縣 | B69: 5110639 | C69: 432815 | D69: 38740 | E69: 3435 | F69: 342175 | G69: 45775 | H69: 2690 | I69: 宜蘭縣 | J69: 1557952 | K69: 1400138 | L69: 0 | M69: 157814 | N69: 1789879 | O69: 987706 | P69: 74440 | Q69: 457819 | R69: 宜蘭縣 | S69: 269914 | T69: 104802 | U69: 0 | V69: 0 | W69: 24272 | X69: 1000 | Y69: 79530 | Z69: 宜蘭縣 | AA69: 978017 | AB69: 11017 | AC69: 967000 | AD69: 0 | AE69: 0 | AF69: 0 | AG69: 0 | AH69: 宜蘭縣 | AI69: 0 | AJ69: 247174 | AK69: 0 | AL69: 0 | AM69: 0 | AN69: 247174 | AO69: 0
A70: 新竹縣 | B70: 7868506 | C70: 734977 | D70: 60396 | E70: 6170 | F70: 518731 | G70: 145355 | H70: 4325 | I70: 新竹縣 | J70: 3146564 | K70: 2753703 | L70: 0 | M70: 392861 | N70: 2966474 | O70: 324200 | P70: 23400 | Q70: 2159982 | R70: 新竹縣 | S70: 458892 | T70: 133474 | U70: 0 | V70: 0 | W70: 88615 | X70: 0 | Y70: 44859 | Z70: 新竹縣 | AA70: 583497 | AB70: 583497 | AC70: 0 | AD70: 0 | AE70: 0 | AF70: 0 | AG70: 0 | AH70: 新竹縣 | AI70: 0 | AJ70: 303520 | AK70: 0 | AL70: 0 | AM70: 0 | AN70: 303520 | AO70: 0
A71: 苗栗縣 | B71: 3063636 | C71: 287160 | D71: 26440 | E71: 15980 | F71: 115419 | G71: 126184 | H71: 3137 | I71: 苗栗縣 | J71: 257314 | K71: 223989 | L71: 0 | M71: 33325 | N71: 1363019 | O71: 570632 | P71: 280 | Q71: 677081 | R71: 苗栗縣 | S71: 115026 | T71: 47760 | U71: 0 | V71: 0 | W71: 1000 | X71: 811 | Y71: 45949 | Z71: 苗栗縣 | AA71: 896983 | AB71: 855983 | AC71: 41000 | AD71: 0 | AE71: 0 | AF71: 0 | AG71: 0 | AH71: 苗栗縣 | AI71: 0 | AJ71: 211400 | AK71: 0 | AL71: 0 | AM71: 0 | AN71: 211400 | AO71: 0
A72: 彰化縣 | B72: 10494436 | C72: 170751 | D72: 8082 | E72: 3640 | F72: 47134 | G72: 108221 | H72: 3674 | I72: 彰化縣 | J72: 2911349 | K72: 2810404 | L72: 0 | M72: 100945 | N72: 5674766 | O72: 2128628 | P72: 0 | Q72: 2647278 | R72: 彰化縣 | S72: 898860 | T72: 810866 | U72: 0 | V72: 0 | W72: 90577 | X72: 0 | Y72: 720289 | Z72: 彰化縣 | AA72: 436704 | AB72: 123656 | AC72: 313048 | AD72: 0 | AE72: 0 | AF72: 0 | AG72: 0 | AH72: 彰化縣 | AI72: 0 | AJ72: 490000 | AK72: 0 | AL72: 0 | AM72: 0 | AN72: 490000 | AO72: 0
A73: 南投縣 | B73: 5494120 | C73: 559281 | D73: 169153 | E73: 5950 | F73: 240448 | G73: 140672 | H73: 3058 | I73: 南投縣 | J73: 1491010 | K73: 1485408 | L73: 0 | M73: 5602 | N73: 2997416 | O73: 202425 | P73: 1183438 | Q73: 1604312 | R73: 南投縣 | S73: 7241 | T73: 34372 | U73: 0 | V73: 0 | W73: 0 | X73: 0 | Y73: 34372 | Z73: 南投縣 | AA73: 130291 | AB73: 130291 | AC73: 0 | AD73: 0 | AE73: 0 | AF73: 0 | AG73: 0 | AH73: 南投縣 | AI73: 0 | AJ73: 281750 | AK73: 0 | AL73: 0 | AM73: 0 | AN73: 281750 | AO73: 0
A74: 雲林縣 | B74: 9558894 | C74: 295217 | D74: 4615 | E74: 4850 | F74: 116841 | G74: 160119 | H74: 8792 | I74: 雲林縣 | J74: 2558471 | K74: 1940383 | L74: 0 | M74: 618088 | N74: 5670877 | O74: 2844259 | P74: 40267 | Q74: 1909405 | R74: 雲林縣 | S74: 876946 | T74: 148542 | U74: 0 | V74: 0 | W74: 71672 | X74: 0 | Y74: 76870 | Z74: 雲林縣 | AA74: 57300 | AB74: 55300 | AC74: 2000 | AD74: 0 | AE74: 0 | AF74: 0 | AG74: 0 | AH74: 雲林縣 | AI74: 0 | AJ74: 828487 | AK74: 0 | AL74: 0 | AM74: 0 | AN74: 748487 | AO74: 80000
A75: 嘉義縣 | B75: 8747628 | C75: 339204 | D75: 93152 | E75: 9915 | F75: 94888 | G75: 125651 | H75: 15598 | I75: 嘉義縣 | J75: 1814368 | K75: 1766208 | L75: 0 | M75: 48160 | N75: 5890764 | O75: 4390134 | P75: 18227 | Q75: 1319764 | R75: 嘉義縣 | S75: 162639 | T75: 194548 | U75: 0 | V75: 0 | W75: 126017 | X75: 1435 | Y75: 67096 | Z75: 嘉義縣 | AA75: 127744 | AB75: 127744 | AC75: 0 | AD75: 0 | AE75: 0 | AF75: 0 | AG75: 0 | AH75: 嘉義縣 | AI75: 0 | AJ75: 381000 | AK75: 0 | AL75: 0 | AM75: 0 | AN75: 301000 | AO75: 80000
A76: 屏東縣 | B76: 9674179 | C76: 989555 | D76: 124400 | E76: 17951 | F76: 709394 | G76: 103305 | H76: 34505 | I76: 屏東縣 | J76: 2983663 | K76: 2533127 | L76: 0 | M76: 450536 | N76: 4746934 | O76: 2178161 | P76: 203111 | Q76: 2047143 | R76: 屏東縣 | S76: 318519 | T76: 435038 | U76: 0 | V76: 0 | W76: 83439 | X76: 62824 | Y76: 288775 | Z76: 屏東縣 | AA76: 71989 | AB76: 71989 | AC76: 0 | AD76: 0 | AE76: 0 | AF76: 0 | AG76: 0 | AH76: 屏東縣 | AI76: 0 | AJ76: 447000 | AK76: 0 | AL76: 0 | AM76: 0 | AN76: 447000 | AO76: 0
A77: 臺東縣 | B77: 3723167 | C77: 678027 | D77: 900 | E77: 10500 | F77: 571047 | G77: 69873 | H77: 25707 | I77: 臺東縣 | J77: 1374404 | K77: 1240442 | L77: 0 | M77: 133962 | N77: 1083064 | O77: 531548 | P77: 0 | Q77: 96751 | R77: 臺東縣 | S77: 454765 | T77: 100189 | U77: 0 | V77: 0 | W77: 25489 | X77: 0 | Y77: 74700 | Z77: 臺東縣 | AA77: 217483 | AB77: 217483 | AC77: 0 | AD77: 0 | AE77: 0 | AF77: 0 | AG77: 0 | AH77: 臺東縣 | AI77: 0 | AJ77: 270000 | AK77: 0 | AL77: 0 | AM77: 0 | AN77: 210000 | AO77: 60000
A78: 花蓮縣 | B78: 5142790 | C78: 717560 | D78: 11687 | E78: 14267 | F78: 567811 | G78: 118520 | H78: 5275 | I78: 花蓮縣 | J78: 2065546 | K78: 1705143 | L78: 0 | M78: 360403 | N78: 1867779 | O78: 385381 | P78: 511434 | Q78: 548791 | R78: 花蓮縣 | S78: 422173 | T78: 61757 | U78: 0 | V78: 0 | W78: 16327 | X78: 10 | Y78: 45420 | Z78: 花蓮縣 | AA78: 190148 | AB78: 144321 | AC78: 45827 | AD78: 0 | AE78: 0 | AF78: 0 | AG78: 0 | AH78: 花蓮縣 | AI78: 0 | AJ78: 240000 | AK78: 0 | AL78: 0 | AM78: 0 | AN78: 240000 | AO78: 0
A79: 澎湖縣 | B79: 2877793 | C79: 111919 | D79: 11700 | E79: 3500 | F79: 53160 | G79: 43319 | H79: 240 | I79: 澎湖縣 | J79: 494164 | K79: 405747 | L79: 22430 | M79: 65987 | N79: 1688080 | O79: 254444 | P79: 528655 | Q79: 904981 | R79: 澎湖縣 | S79: 0 | T79: 144363 | U79: 0 | V79: 0 | W79: 101329 | X79: 0 | Y79: 43034 | Z79: 澎湖縣 | AA79: 322157 | AB79: 317157 | AC79: 5000 | AD79: 0 | AE79: 0 | AF79: 0 | AG79: 0 | AH79: 澎湖縣 | AI79: 0 | AJ79: 117110 | AK79: 0 | AL79: 0 | AM79: 0 | AN79: 117110 | AO79: 0
A80: 基隆市 | B80: 4574930 | C80: 213855 | D80: 28035 | E80: 6892 | F80: 137422 | G80: 35959 | H80: 5547 | I80: 基隆市 | J80: 1821841 | K80: 1688322 | L80: 0 | M80: 133519 | N80: 2208749 | O80: 45670 | P80: 304110 | Q80: 1483231 | R80: 基隆市 | S80: 375738 | T80: 58347 | U80: 0 | V80: 0 | W80: 36950 | X80: 0 | Y80: 21397 | Z80: 基隆市 | AA80: 56638 | AB80: 56538 | AC80: 100 | AD80: 0 | AE80: 0 | AF80: 0 | AG80: 0 | AH80: 基隆市 | AI80: 0 | AJ80: 215500 | AK80: 0 | AL80: 0 | AM80: 0 | AN80: 215500 | AO80: 0
A81: 新竹市 | B81: 6086899 | C81: 347629 | D81: 25906 | E81: 31152 | F81: 199325 | G81: 84983 | H81: 6263 | I81: 新竹市 | J81: 2208198 | K81: 1654485 | L81: 0 | M81: 553713 | N81: 2563928 | O81: 382980 | P81: 256900 | Q81: 1278885 | R81: 新竹市 | S81: 645163 | T81: 57080 | U81: 0 | V81: 0 | W81: 40124 | X81: 200 | Y81: 16756 | Z81: 新竹市 | AA81: 496064 | AB81: 450716 | AC81: 45348 | AD81: 0 | AE81: 0 | AF81: 0 | AG81: 0 | AH81: 新竹市 | AI81: 0 | AJ81: 414000 | AK81: 0 | AL81: 0 | AM81: 0 | AN81: 254000 | AO81: 160000
A82: 嘉義市 | B82: 3004194 | C82: 318813 | D82: 10768 | E82: 60920 | F82: 174242 | G82: 61275 | H82: 11608 | I82: 嘉義市 | J82: 715913 | K82: 676332 | L82: 0 | M82: 39581 | N82: 1663708 | O82: 0 | P82: 0 | Q82: 1499048 | R82: 嘉義市 | S82: 164660 | T82: 48315 | U82: 0 | V82: 0 | W82: 12450 | X82: 0 | Y82: 35865 | Z82: 嘉義市 | AA82: 147445 | AB82: 147445 | AC82: 0 | AD82: 0 | AE82: 0 | AF82: 0 | AG82: 0 | AH82: 嘉義市 | AI82: 0 | AJ82: 110000 | AK82: 0 | AL82: 0 | AM82: 0 | AN82: 110000 | AO82: 0
A83: 金門縣 | B83: 4053043 | C83: 163776 | D83: 31953 | E83: 21240 | F83: 74525 | G83: 29655 | H83: 6403 | I83: 金門縣 | J83: 865828 | K83: 722596 | L83: 0 | M83: 143232 | N83: 2240292 | O83: 416653 | P83: 11634 | Q83: 1459618 | R83: 金門縣 | S83: 352387 | T83: 95271 | U83: 0 | V83: 30 | W83: 83158 | X83: 0 | Y83: 12083 | Z83: 金門縣 | AA83: 522021 | AB83: 511021 | AC83: 11000 | AD83: 0 | AE83: 0 | AF83: 0 | AG83: 0 | AH83: 金門縣 | AI83: 0 | AJ83: 165855 | AK83: 0 | AL83: 47855 | AM83: 0 | AN83: 118000 | AO83: 0
A84: 連江縣 | B84: 1203307 | C84: 49052 | D84: 19888 | E84: 1500 | F84: 18727 | G84: 8812 | H84: 125 | I84: 連江縣 | J84: 296028 | K84: 271988 | L84: 0 | M84: 24040 | N84: 799402 | O84: 174165 | P84: 0 | Q84: 206398 | R84: 連江縣 | S84: 418839 | T84: 2960 | U84: 0 | V84: 0 | W84: 544 | X84: 0 | Y84: 2416 | Z84: 連江縣 | AA84: 7715 | AB84: 7715 | AC84: 0 | AD84: 0 | AE84: 0 | AF84: 0 | AG84: 0 | AH84: 連江縣 | AI84: 0 | AJ84: 48150 | AK84: 3000 | AL84: 0 | AM84: 0 | AN84: 35150 | AO84: 10000

Sheet 機關別
D1: 各直轄市及縣 | E1: (市)總預算 | K1: 各直轄市及縣 | L1: (市)總預算 | R1: 各直轄市及縣 | S1: (市)總預算
D2: 歲出機關別 | E2: 預算總表 | K2: 歲出機關別 | L2: 預算總表 | N2: (續一) | R2: 歲出機關別 | S2: 預算總表 | V2: (續二)
D3: 中華民國 | E3: =簡明總!#REF! ->  | G3: 單位：新臺幣千元 | K3: 中華民國 | L3: =$E$3 ->  | N3: 單位：新臺幣千元 | R3: 中華民國 | S3: =$E$3 ->  | V3: 單位：新臺幣千元
A4: 主管別 市縣別 | B4: 合 計 | C4: 縣(市)議會主管 | D4: 縣(市)政府主管 | E4: 行政(管理)處 、新聞（局）處主管 | F4: 民政局(處)主管 | G4: 教育局(處)主管 | H4: 主管別 市縣別 | I4: 農(產)(經濟)業(發展)、漁業局(處)主管 | J4: 社會(勞工)局(處)主管 | K4: 地政局(處)主管 | L4: 稅捐稽徵處((地方、財政)稅務局)主管 | M4: 警察局主管 | N4: 消防局主管 | O4: 主管別 市縣別 | P4: 環境保護局主管 | Q4: 衛生局主管 | R4: 文化(觀光)(傳播)局(處)主管 | S4: 其他局(處)主管 | T4: 統籌支撥科目(其他支出) | U4: 調整公務員工待遇準備 | V4: 第二預備金
C5: 1 | D5: 2 | E5: 3 | F5: 4 | G5: 5 | I5: 6 | J5: 7 | K5: 8 | L5: 9 | M5: 10 | N5: 11 | P5: 12 | Q5: 13 | R5: 14 | S5: 15 | T5: 16 | U5: 17 | V5: 18
A6: 總 計 | B6: 1286694974 | C6: 8062112 | D6: 323399220 | E6: 531237 | F6: 20266637 | G6: 308514983 | H6: 總 計 | I6: 31257997 | J6: 118759001 | K6: 11269469 | L6: 16051780 | M6: 93900004 | N6: 27154468 | O6: 總 計 | P6: 44806968 | Q6: 45814396 | R6: 23011896 | S6: 149840921 | T6: 59764885 | U6: 0 | V6: 4289000
A7: 直轄市合計 | B7: 884873572 | C7: 4599157 | D7: 40899524 | E7: 491957 | F7: 16140154 | G7: 308145410 | H7: 直轄市合計 | I7: 28870520 | J7: 114771965 | K7: 7781224 | L7: 12297172 | M7: 62887443 | N7: 17069568 | O7: 直轄市合計 | P7: 36758789 | Q7: 28032191 | R7: 17533628 | S7: 148595724 | T7: 37309146 | U7: 0 | V7: 2690000
A8: 新北市 | B8: 179392552 | C8: 727660 | D8: 11768985 | E8: 0 | F8: 2511488 | G8: 62466487 | H8: 新北市 | I8: 3010805 | J8: 23862481 | K8: 1392006 | L8: 2307047 | M8: 11654515 | N8: 3897132 | O8: 新北市 | P8: 8899727 | Q8: 5955649 | R8: 3453531 | S8: 30013570 | T8: 7071469 | U8: 0 | V8: 400000
A9: 臺北市 | B9: 172769655 | C9: 897710 | D9: 4681102 | E9: 0 | F9: 3044031 | G9: 57026654 | H9: 臺北市 | I9: 4259473 | J9: 18894673 | K9: 1202328 | L9: 2595357 | M9: 13689010 | N9: 3495879 | O9: 臺北市 | P9: 6959986 | Q9: 5245858 | R9: 5370620 | S9: 36535601 | T9: 8131373 | U9: 0 | V9: 740000
A10: 桃園市 | B10: 137780000 | C10: 683757 | D10: 9042417 | E10: 0 | F10: 1662606 | G10: 44615615 | H10: 桃園市 | I10: 10488531 | J10: 17662879 | K10: 1347050 | L10: 1274926 | M10: 9319890 | N10: 2697852 | O10: 桃園市 | P10: 6387428 | Q10: 2212786 | R10: 2609803 | S10: 24267671 | T10: 3256789 | U10: 0 | V10: 250000
A11: 臺中市 | B11: 142203175 | C11: 796858 | D11: 7444933 | E11: 279053 | F11: 1552816 | G11: 55348604 | H11: 臺中市 | I11: 3085972 | J11: 16668871 | K11: 1312302 | L11: 1839962 | M11: 10481150 | N11: 2674901 | O11: 臺中市 | P11: 5690888 | Q11: 6307034 | R11: 1832915 | S11: 21062159 | T11: 5324757 | U11: 0 | V11: 500000
A12: 臺南市 | B12: 100628490 | C12: 699086 | D12: 1012053 | E12: 0 | F12: 5382688 | G12: 36501950 | H12: 臺南市 | I12: 4613274 | J12: 12032520 | K12: 1373136 | L12: 1176613 | M12: 7096366 | N12: 2061282 | O12: 臺南市 | P12: 4027535 | Q12: 1286119 | R12: 1785573 | S12: 16251231 | T12: 4929064 | U12: 0 | V12: 400000
A13: 高雄市 | B13: 152099700 | C13: 794086 | D13: 6950034 | E13: 212904 | F13: 1986525 | G13: 52186100 | H13: 高雄市 | I13: 3412465 | J13: 25650541 | K13: 1154402 | L13: 3103267 | M13: 10646512 | N13: 2242522 | O13: 高雄市 | P13: 4793225 | Q13: 7024745 | R13: 2481186 | S13: 20465492 | T13: 8595694 | U13: 0 | V13: 400000
A14: 縣市合計 | B14: 401821402 | C14: 3462955 | D14: 282499696 | E14: 39280 | F14: 4126483 | G14: 369573 | H14: 縣市合計 | I14: 2387477 | J14: 3987036 | K14: 3488245 | L14: 3754608 | M14: 31012561 | N14: 10084900 | O14: 縣市合計 | P14: 8048179 | Q14: 17782205 | R14: 5478268 | S14: 1245197 | T14: 22455739 | U14: 0 | V14: 1599000
A15: 宜蘭縣 | B15: 24707387 | C15: 190322 | D15: 17213419 | E15: 0 | F15: 498518 | G15: 58811 | H15: 宜蘭縣 | I15: 227561 | J15: 0 | K15: 220405 | L15: 314068 | M15: 1973951 | N15: 509259 | O15: 宜蘭縣 | P15: 457812 | Q15: 1451414 | R15: 529536 | S15: 0 | T15: 1012311 | U15: 0 | V15: 50000
A16: 新竹縣 | B16: 30351511 | C16: 215297 | D16: 23494672 | E16: 0 | F16: 130959 | G16: 49884 | H16: 新竹縣 | I16: 115843 | J16: 0 | K16: 265749 | L16: 184468 | M16: 1801575 | N16: 781956 | O16: 新竹縣 | P16: 593831 | Q16: 655296 | R16: 588393 | S16: 0 | T16: 1073588 | U16: 0 | V16: 400000
A17: 苗栗縣 | B17: 21125487 | C17: 221485 | D17: 14377667 | E17: 17610 | F17: 184336 | G17: 16228 | H17: 苗栗縣 | I17: 35927 | J17: 0 | K17: 372654 | L17: 210892 | M17: 2093717 | N17: 775441 | O17: 苗栗縣 | P17: 201360 | Q17: 1019928 | R17: 212678 | S17: 258482 | T17: 1077082 | U17: 0 | V17: 50000
A18: 彰化縣 | B18: 49925470 | C18: 293321 | D18: 38221047 | E18: 0 | F18: 346456 | G18: 0 | H18: 彰化縣 | I18: 135626 | J18: 0 | K18: 501816 | L18: 376437 | M18: 4327184 | N18: 1005086 | O18: 彰化縣 | P18: 376313 | Q18: 1696857 | R18: 369397 | S18: 0 | T18: 2175930 | U18: 0 | V18: 100000
A19: 南投縣 | B19: 28175000 | C19: 251559 | D19: 18427279 | E19: 0 | F19: 181539 | G19: 0 | H19: 南投縣 | I19: 57801 | J19: 0 | K19: 284292 | L19: 211262 | M19: 2517427 | N19: 782037 | O19: 南投縣 | P19: 498812 | Q19: 996175 | R19: 170547 | S19: 218468 | T19: 3347802 | U19: 0 | V19: 230000
A20: 雲林縣 | B20: 36591202 | C20: 245158 | D20: 27982242 | E20: 0 | F20: 0 | G20: 18799 | H20: 雲林縣 | I20: 177956 | J20: 0 | K20: 349492 | L20: 256550 | M20: 2531189 | N20: 734142 | O20: 雲林縣 | P20: 299978 | Q20: 1890054 | R20: 0 | S20: 0 | T20: 2025642 | U20: 0 | V20: 80000
A21: 嘉義縣 | B21: 30000000 | C21: 221875 | D21: 18612170 | E21: 0 | F21: 174515 | G21: 0 | H21: 嘉義縣 | I21: 78051 | J21: 3904857 | K21: 278677 | L21: 593329 | M21: 2100984 | N21: 745515 | O21: 嘉義縣 | P21: 261437 | Q21: 1140586 | R21: 368427 | S21: 18691 | T21: 1420886 | U21: 0 | V21: 80000
A22: 屏東縣 | B22: 44488000 | C22: 320783 | D22: 32105643 | E22: 0 | F22: 322416 | G22: 0 | H22: 屏東縣 | I22: 374981 | J22: 0 | K22: 384067 | L22: 515056 | M22: 3131363 | N22: 1093471 | O22: 屏東縣 | P22: 524439 | Q22: 3169625 | R22: 239434 | S22: 0 | T22: 2256722 | U22: 0 | V22: 50000
A23: 臺東縣 | B23: 20676578 | C23: 203527 | D23: 14559472 | E23: 0 | F23: 110688 | G23: 14877 | H23: 臺東縣 | I23: 34263 | J23: 0 | K23: 165579 | L23: 119223 | M23: 1545838 | N23: 606224 | O23: 臺東縣 | P23: 451072 | Q23: 1384869 | R23: 0 | S23: 0 | T23: 1420946 | U23: 0 | V23: 60000
A24: 花蓮縣 | B24: 24131869 | C24: 218684 | D24: 15974391 | E24: 0 | F24: 145113 | G24: 39461 | H24: 花蓮縣 | I24: 66859 | J24: 0 | K24: 199811 | L24: 150922 | M24: 2010748 | N24: 760431 | O24: 花蓮縣 | P24: 430511 | Q24: 799520 | R24: 526896 | S24: 0 | T24: 2748522 | U24: 0 | V24: 60000
A25: 澎湖縣 | B25: 11684058 | C25: 153585 | D25: 7358463 | E25: 0 | F25: 0 | G25: 0 | H25: 澎湖縣 | I25: 436469 | J25: 0 | K25: 0 | L25: 140532 | M25: 1377542 | N25: 370243 | O25: 澎湖縣 | P25: 343792 | Q25: 587318 | R25: 211616 | S25: 0 | T25: 657498 | U25: 0 | V25: 47000
A26: 基隆市 | B26: 21545849 | C26: 208583 | D26: 15204543 | E26: 0 | F26: 854943 | G26: 28916 | H26: 基隆市 | I26: 25652 | J26: 7249 | K26: 103758 | L26: 181818 | M26: 1773604 | N26: 464009 | O26: 基隆市 | P26: 845128 | Q26: 486347 | R26: 289766 | S26: 0 | T26: 1046533 | U26: 0 | V26: 25000
A27: 新竹市 | B27: 25277780 | C27: 223757 | D27: 17868562 | E27: 0 | F27: 565391 | G27: 31146 | H27: 新竹市 | I27: 79727 | J27: 0 | K27: 113182 | L27: 191979 | M27: 1557788 | N27: 554699 | O27: 新竹市 | P27: 1205722 | Q27: 733693 | R27: 824144 | S27: 0 | T27: 1027990 | U27: 0 | V27: 300000
A28: 嘉義市 | B28: 15997247 | C28: 229758 | D28: 10496428 | E28: 0 | F28: 477985 | G28: 34034 | H28: 嘉義市 | I28: 0 | J28: 0 | K28: 95968 | L28: 223500 | M28: 1354881 | N28: 475226 | O28: 嘉義市 | P28: 867012 | Q28: 716756 | R28: 324411 | S28: 0 | T28: 686288 | U28: 0 | V28: 15000
A29: 金門縣 | B29: 13549643 | C29: 200739 | D29: 8867222 | E29: 21670 | F29: 115379 | G29: 77417 | H29: 金門縣 | I29: 540761 | J29: 74930 | K29: 121895 | L29: 52777 | M29: 733623 | N29: 315747 | O29: 金門縣 | P29: 333167 | Q29: 698683 | R29: 823023 | S29: 149377 | T29: 386233 | U29: 0 | V29: 37000
A30: 連江縣 | B30: 3594321 | C30: 64522 | D30: 1736476 | E30: 0 | F30: 18245 | G30: 0 | H30: 連江縣 | I30: 0 | J30: 0 | K30: 30900 | L30: 31795 | M30: 181147 | N30: 111414 | O30: 連江縣 | P30: 357793 | Q30: 355084 | R30: 0 | S30: 600179 | T30: 91766 | U30: 0 | V30: 15000

Sheet 用途別
D1: 各直轄市及縣 | E1: (市)總預算 | L1: 各直轄市及縣 | M1: (市)總預算
D2: 歲 出 一 級 用 途 別 | E2: 科 目 分 析 總 表 | L2: 歲 出 一 級 用 途 別 | M2: 科 目 分 析 總 表 | O2: （續一）
D3: 中 華 民 國 | E3: =簡明總!E3 -> 110 年 度 | H3: 單位：新臺幣千元 | L3: 中 華 民 國 | M3: =E3 -> 110 年 度 | O3: 單位：新臺幣千元
A4: 市縣別 | B4: 合 計 | D4: 經常支出 | I4: 市縣別 | K4: 資本支出
C5: 人事費 | D5: 業務費 | E5: 獎補助費 | F5: 債務費 | G5: 預備金 | H5: 小計 | J5: 人事費 | K5: 業務費 | L5: 設備及投資 | M5: 獎補助費 | N5: 預備金 | O5: 小計
A6: 總 計 | B6: 1286694974 | C6: 239524882 | D6: 110201435 | E6: 645067503 | F6: 8255875 | G6: 5363810 | H6: 1008413505 | I6: 總 計 | J6: 21051 | K6: 850079 | L6: 186279544 | M6: 78545717 | N6: 12585078 | O6: 278281469
A7: 直轄市合計 | B7: 884873572 | C7: 167217446 | D7: 78322071 | E7: 442057585 | F7: 5863182 | G7: 3809980 | H7: 697270264 | I7: 直轄市合計 | J7: 0 | K7: 78294 | L7: 132088951 | M7: 47188503 | N7: 8247560 | O7: 187603308
A8: 新北市 | B8: 179392552 | C8: 30455691 | D8: 19161866 | E8: 88788370 | F8: 1036000 | G8: 773897 | H8: 140215824 | I8: 新北市 | J8: 0 | K8: 350 | L8: 27239130 | M8: 10437248 | N8: 1500000 | O8: 39176728
A9: 臺北市 | B9: 172769655 | C9: 39167727 | D9: 14816683 | E9: 80827426 | F9: 845654 | G9: 1394732 | H9: 137052222 | I9: 臺北市 | J9: 0 | K9: 0 | L9: 27233285 | M9: 7214148 | N9: 1270000 | O9: 35717433
A10: 桃園市 | B10: 137780000 | C10: 21385473 | D10: 12946961 | E10: 62039451 | F10: 521257 | G10: 250000 | H10: 97143142 | I10: 桃園市 | J10: 0 | K10: 52700 | L10: 30320442 | M10: 8876716 | N10: 1387000 | O10: 40636858
A11: 臺中市 | B11: 142203175 | C11: 26072337 | D11: 12300070 | E11: 78693094 | F11: 800000 | G11: 542208 | H11: 118407709 | I11: 臺中市 | J11: 0 | K11: 0 | L11: 16124867 | M11: 6180599 | N11: 1490000 | O11: 23795466
A12: 臺南市 | B12: 100628490 | C12: 19818741 | D12: 9503494 | E12: 47037356 | F12: 524000 | G12: 543860 | H12: 77427451 | I12: 臺南市 | J12: 0 | K12: 25244 | L12: 17322596 | M12: 4890906 | N12: 962293 | O12: 23201039
A13: 高雄市 | B13: 152099700 | C13: 30317477 | D13: 9592997 | E13: 84671888 | F13: 2136271 | G13: 305283 | H13: 127023916 | I13: 高雄市 | J13: 0 | K13: 0 | L13: 13848631 | M13: 9588886 | N13: 1638267 | O13: 25075784
A14: 縣市合計 | B14: 401821402 | C14: 72307436 | D14: 31879364 | E14: 203009918 | F14: 2392693 | G14: 1553830 | H14: 311143241 | I14: 縣市合計 | J14: 21051 | K14: 771785 | L14: 54190593 | M14: 31357214 | N14: 4337518 | O14: 90678161
A15: 宜蘭縣 | B15: 24707387 | C15: 4420266 | D15: 2203910 | E15: 12821194 | F15: 101378 | G15: 50000 | H15: 19596748 | I15: 宜蘭縣 | J15: 0 | K15: 0 | L15: 2998689 | M15: 1864776 | N15: 247174 | O15: 5110639
A16: 新竹縣 | B16: 30351511 | C16: 4098151 | D16: 1917039 | E16: 15855745 | F16: 200000 | G16: 412070 | H16: 22483005 | I16: 新竹縣 | J16: 0 | K16: 338 | L16: 3903617 | M16: 3661031 | N16: 303520 | O16: 7868506
A17: 苗栗縣 | B17: 21125487 | C17: 4861923 | D17: 1144271 | E17: 11455657 | F17: 550000 | G17: 50000 | H17: 18061851 | I17: 苗栗縣 | J17: 0 | K17: 34432 | L17: 2381885 | M17: 435919 | N17: 211400 | O17: 3063636
A18: 彰化縣 | B18: 49925470 | C18: 8824403 | D18: 2419202 | E18: 27676155 | F18: 371274 | G18: 140000 | H18: 39431034 | I18: 彰化縣 | J18: 0 | K18: 82025 | L18: 5998945 | M18: 3923466 | N18: 490000 | O18: 10494436
A19: 南投縣 | B19: 28175000 | C19: 5234293 | D19: 1914891 | E19: 15203265 | F19: 98431 | G19: 230000 | H19: 22680880 | I19: 南投縣 | J19: 0 | K19: 0 | L19: 3288668 | M19: 1923702 | N19: 281750 | O19: 5494120
A20: 雲林縣 | B20: 36591202 | C20: 5696003 | D20: 1970728 | E20: 19166948 | F20: 184670 | G20: 13959 | H20: 27032308 | I20: 雲林縣 | J20: 0 | K20: 114007 | L20: 6314608 | M20: 2684365 | N20: 445914 | O20: 9558894
A21: 嘉義縣 | B21: 30000000 | C21: 5121524 | D21: 2352946 | E21: 13521855 | F21: 250000 | G21: 6047 | H21: 21252372 | I21: 嘉義縣 | J21: 0 | K21: 369311 | L21: 5827866 | M21: 2169451 | N21: 381000 | O21: 8747628
A22: 屏東縣 | B22: 44488000 | C22: 7731727 | D22: 2877428 | E22: 23994666 | F22: 150000 | G22: 60000 | H22: 34813821 | I22: 屏東縣 | J22: 0 | K22: 0 | L22: 5656571 | M22: 3570608 | N22: 447000 | O22: 9674179
A23: 臺東縣 | B23: 20676578 | C23: 4064334 | D23: 2303730 | E23: 10445347 | F23: 100000 | G23: 40000 | H23: 16953411 | I23: 臺東縣 | J23: 0 | K23: 0 | L23: 1519020 | M23: 1934147 | N23: 270000 | O23: 3723167
A24: 花蓮縣 | B24: 24131869 | C24: 4243723 | D24: 2336680 | E24: 12209276 | F24: 122200 | G24: 77200 | H24: 18989079 | I24: 花蓮縣 | J24: 0 | K24: 5144 | L24: 2440555 | M24: 2457091 | N24: 240000 | O24: 5142790
A25: 澎湖縣 | B25: 11684058 | C25: 2802714 | D25: 1283205 | E25: 4640606 | F25: 16740 | G25: 63000 | H25: 8806265 | I25: 澎湖縣 | J25: 0 | K25: 100329 | L25: 2037674 | M25: 622680 | N25: 117110 | O25: 2877793
A26: 基隆市 | B26: 21545849 | C26: 4804236 | D26: 1928009 | E26: 10108174 | F26: 90000 | G26: 40500 | H26: 16970919 | I26: 基隆市 | J26: 0 | K26: 31263 | L26: 2582825 | M26: 1745342 | N26: 215500 | O26: 4574930
A27: 新竹市 | B27: 25277780 | C27: 4069344 | D27: 2558408 | E27: 12254589 | F27: 150000 | G27: 158540 | H27: 19190881 | I27: 新竹市 | J27: 0 | K27: 0 | L27: 3917957 | M27: 1754942 | N27: 414000 | O27: 6086899
A28: 嘉義市 | B28: 15997247 | C28: 3426989 | D28: 1851189 | E28: 7626475 | F28: 7400 | G28: 81000 | H28: 12993053 | I28: 嘉義市 | J28: 21051 | K28: 31936 | L28: 1746136 | M28: 1095071 | N28: 110000 | O28: 3004194
A29: 金門縣 | B29: 13549643 | C29: 2202587 | D29: 2284880 | E29: 4888921 | F29: 0 | G29: 120212 | H29: 9496600 | I29: 金門縣 | J29: 0 | K29: 3000 | L29: 2699077 | M29: 1232966 | N29: 118000 | O29: 4053043
A30: 連江縣 | B30: 3594321 | C30: 705219 | D30: 532848 | E30: 1141045 | F30: 600 | G30: 11302 | H30: 2391014 | I30: 連江縣 | J30: 0 | K30: 0 | L30: 876500 | M30: 281657 | N30: 45150 | O30: 1203307

Sheet 資本支出
F1: 各直轄市及縣 | G1: (市)總預算
F2: 資 本 支 出 | G2: 分 析 總 表
F3: 中 華 民 國 | G3: =簡明總!E3 -> 110 年 度 | L3: 單位：新臺幣千元
A4: 市縣別 | B4: 合 計 | C4: 設 備 及 投 資 | L4: 其他資本支出
C5: 土地 | D5: 房屋建築 及設備 | E5: 公共建設 及設施 | F5: 機械設備 | G5: 運輸設備 | H5: 資訊軟硬 體設備 | I5: 雜項設備 | J5: 權利 | K5: 投資
A7: 總 計 | B7: 278281469 | C7: 16574034 | D7: 18308051 | E7: 112002128 | F7: 1647228 | G7: 4428753 | H7: 2351764 | I7: 3589109 | J7: 16 | K7: 27378461 | L7: 92001925
A8: 直轄市合計 | B8: 187603308 | C8: 12550191 | D8: 12781361 | E8: 71631700 | F8: 1097390 | G8: 2750269 | H8: 1700942 | I8: 2309581 | J8: 16 | K8: 27267501 | L8: 55514357
A9: 新北市 | B9: 39176728 | C9: 363698 | D9: 2263703 | E9: 13855662 | F9: 81000 | G9: 639371 | H9: 397919 | I9: 574943 | J9: 0 | K9: 9062834 | L9: 11937598
A10: 臺北市 | B10: 35717433 | C10: 5954045 | D10: 4921557 | E10: 10194938 | F10: 179267 | G10: 303553 | H10: 527273 | I10: 548460 | J10: 0 | K10: 4604192 | L10: 8484148
A11: 桃園市 | B11: 40636858 | C11: 1041413 | D11: 3218564 | E11: 11781391 | F11: 337352 | G11: 664007 | H11: 299940 | I11: 398639 | J11: 0 | K11: 12579136 | L11: 10316416
A12: 臺中市 | B12: 23795466 | C12: 3499395 | D12: 1043020 | E12: 9790797 | F12: 146574 | G12: 333018 | H12: 201732 | I12: 359315 | J12: 16 | K12: 751000 | L12: 7670599
A13: 臺南市 | B13: 23201039 | C13: 629638 | D13: 848942 | E13: 14715916 | F13: 247122 | G13: 406831 | H13: 155453 | I13: 317694 | J13: 0 | K13: 1000 | L13: 5878443
A14: 高雄市 | B14: 25075784 | C14: 1062002 | D14: 485575 | E14: 11292996 | F14: 106075 | G14: 403489 | H14: 118625 | I14: 110530 | J14: 0 | K14: 269339 | L14: 11227153
A15: 縣市合計 | B15: 90678161 | C15: 4023843 | D15: 5526690 | E15: 40370428 | F15: 549838 | G15: 1678484 | H15: 650822 | I15: 1279528 | J15: 0 | K15: 110960 | L15: 36487568
A16: 宜蘭縣 | B16: 5110639 | C16: 227697 | D16: 198839 | E16: 2435330 | F16: 17475 | G16: 45403 | H16: 27798 | I16: 46147 | J16: 0 | K16: 0 | L16: 2111950
A17: 新竹縣 | B17: 7868506 | C17: 5046 | D17: 631323 | E17: 2865672 | F17: 67389 | G17: 157863 | H17: 36344 | I17: 139980 | J17: 0 | K17: 0 | L17: 3964889
A18: 苗栗縣 | B18: 3063636 | C18: 5000 | D18: 64416 | E18: 2080330 | F18: 6656 | G18: 104355 | H18: 48297 | I18: 72831 | J18: 0 | K18: 0 | L18: 681751
A19: 彰化縣 | B19: 10494436 | C19: 1656352 | D19: 916273 | E19: 3101456 | F19: 34009 | G19: 175544 | H19: 27595 | I19: 87716 | J19: 0 | K19: 0 | L19: 4495491
A20: 南投縣 | B20: 5494120 | C20: 0 | D20: 158503 | E20: 2827922 | F20: 38172 | G20: 185056 | H20: 23721 | I20: 55294 | J20: 0 | K20: 0 | L20: 2205452
A21: 雲林縣 | B21: 9558894 | C21: 434165 | D21: 227334 | E21: 5405354 | F21: 50026 | G21: 91130 | H21: 22948 | I21: 83651 | J21: 0 | K21: 0 | L21: 3244286
A22: 嘉義縣 | B22: 8747628 | C22: 289649 | D22: 181456 | E22: 5071334 | F22: 66589 | G22: 100212 | H22: 63320 | I22: 50146 | J22: 0 | K22: 5160 | L22: 2919762
A23: 屏東縣 | B23: 9674179 | C23: 651365 | D23: 740069 | E23: 3851986 | F23: 32103 | G23: 200505 | H23: 79313 | I23: 101230 | J23: 0 | K23: 0 | L23: 4017608
A24: 臺東縣 | B24: 3723167 | C24: 138752 | D24: 394096 | E24: 738699 | F24: 38826 | G24: 101780 | H24: 39763 | I24: 67104 | J24: 0 | K24: 0 | L24: 2204147
A25: 花蓮縣 | B25: 5142790 | C25: 17440 | D25: 625771 | E25: 1523841 | F25: 62435 | G25: 70848 | H25: 27673 | I25: 112547 | J25: 0 | K25: 0 | L25: 2702235
A26: 澎湖縣 | B26: 2877793 | C26: 0 | D26: 196572 | E26: 1655884 | F26: 31080 | G26: 77061 | H26: 26625 | I26: 49652 | J26: 0 | K26: 800 | L26: 840119
A27: 基隆市 | B27: 4574930 | C27: 6105 | D27: 134051 | E27: 2193022 | F27: 26597 | G27: 68952 | H27: 54908 | I27: 99190 | J27: 0 | K27: 0 | L27: 1992105
A28: 新竹市 | B28: 6086899 | C28: 396533 | D28: 625206 | E28: 2505213 | F28: 24883 | G28: 182818 | H28: 65132 | I28: 118172 | J28: 0 | K28: 0 | L28: 2168942
A29: 嘉義市 | B29: 3004194 | C29: 113500 | D29: 200860 | E29: 1142766 | F29: 7232 | G29: 70181 | H29: 75579 | I29: 136018 | J29: 0 | K29: 0 | L29: 1258058
A30: 金門縣 | B30: 4053043 | C30: 81000 | D30: 223750 | E30: 2133992 | F30: 43076 | G30: 29179 | H30: 28920 | I30: 54160 | J30: 0 | K30: 105000 | L30: 1353966
A31: 連江縣 | B31: 1203307 | C31: 1239 | D31: 8171 | E31: 837627 | F31: 3290 | G31: 17597 | H31: 2886 | I31: 5690 | J31: 0 | K31: 0 | L31: 326807

Sheet 人事費-員額
F1: 各直轄市及縣 | G1: (市) 總預算
F2: 歲 出 人 事 | G2: 費 彙 計 表
F3: 中 華 民 國 | G3: =簡明總!E3 -> 110 年 度 | L3: 單位：人
B4: 預 算 | H4: 員 | J4: 額 | L4: 退休人員
A5: 市縣別 | B5: 民意代表 | C5: 職 | F5: 員 | H5: 技工 | I5: 駕 駛 | J5: 工友 | K5: 合 計
C6: 正 式 員 額 | F6: 臨時 編制 | G6: 約聘(僱) 人員
C7: 職員 | D7: 警察人員 | E7: 消防人員
A8: 總 計 | B8: 904 | C8: 72768 | D8: 57718 | E8: 16030 | F8: 4 | G8: 12544 | H8: 27473 | I8: 4295 | J8: 4697 | K8: 196433 | L8: 72283
A9: 直轄市合計 | B9: 375 | C9: 52729 | D9: 38177 | E9: 10219 | F9: 4 | G9: 8388 | H9: 24836 | I9: 3589 | J9: 2954 | K9: 141271 | L9: 44697
A10: 新北市 | B10: 66 | C10: 9774 | D10: 7632 | E10: 2455 | F10: 0 | G10: 1842 | H10: 5793 | I10: 24 | J10: 361 | K10: 27947 | L10: 5005
A11: 臺北市 | B11: 61 | C11: 13080 | D11: 7800 | E11: 1757 | F11: 4 | G11: 1799 | H11: 7000 | I11: 1459 | J11: 828 | K11: 33788 | L11: 11470
A12: 桃園市 | B12: 61 | C12: 6662 | D12: 4846 | E12: 1611 | F12: 0 | G12: 1359 | H12: 2012 | I12: 1004 | J12: 171 | K12: 17726 | L12: 3471
A13: 臺中市 | B13: 65 | C13: 7753 | D13: 6558 | E13: 1746 | F13: 0 | G13: 1092 | H13: 3152 | I13: 59 | J13: 385 | K13: 20810 | L13: 5975
A14: 臺南市 | B14: 57 | C14: 6248 | D14: 4243 | E14: 1116 | F14: 0 | G14: 949 | H14: 2445 | I14: 57 | J14: 413 | K14: 15528 | L14: 6150
A15: 高雄市 | B15: 65 | C15: 9212 | D15: 7098 | E15: 1534 | F15: 0 | G15: 1347 | H15: 4434 | I15: 986 | J15: 796 | K15: 25472 | L15: 12626
A16: 縣市合計 | B16: 529 | C16: 20039 | D16: 19541 | E16: 5811 | F16: 0 | G16: 4156 | H16: 2637 | I16: 706 | J16: 1743 | K16: 55162 | L16: 27586
A17: 宜蘭縣 | B17: 34 | C17: 1271 | D17: 1334 | E17: 338 | F17: 0 | G17: 375 | H17: 102 | I17: 34 | J17: 119 | K17: 3607 | L17: 1204
A18: 新竹縣 | B18: 36 | C18: 1219 | D18: 1127 | E18: 388 | F18: 0 | G18: 308 | H18: 135 | I18: 27 | J18: 142 | K18: 3382 | L18: 1434
A19: 苗栗縣 | B19: 38 | C19: 1473 | D19: 1287 | E19: 550 | F19: 0 | G19: 158 | H19: 191 | I19: 25 | J19: 172 | K19: 3894 | L19: 1886
A20: 彰化縣 | B20: 53 | C20: 2177 | D20: 2891 | E20: 725 | F20: 0 | G20: 407 | H20: 203 | I20: 23 | J20: 153 | K20: 6632 | L20: 2623
A21: 南投縣 | B21: 37 | C21: 1398 | D21: 1449 | E21: 414 | F21: 0 | G21: 266 | H21: 116 | I21: 28 | J21: 89 | K21: 3797 | L21: 1869
A22: 雲林縣 | B22: 43 | C22: 1687 | D22: 1587 | E22: 477 | F22: 0 | G22: 281 | H22: 164 | I22: 32 | J22: 156 | K22: 4427 | L22: 2298
A23: 嘉義縣 | B23: 37 | C23: 1513 | D23: 1348 | E23: 414 | F23: 0 | G23: 174 | H23: 115 | I23: 14 | J23: 122 | K23: 3737 | L23: 2288
A24: 屏東縣 | B24: 55 | C24: 2071 | D24: 1986 | E24: 586 | F24: 0 | G24: 501 | H24: 133 | I24: 25 | J24: 188 | K24: 5545 | L24: 3108
A25: 臺東縣 | B25: 30 | C25: 1109 | D25: 1066 | E25: 369 | F25: 0 | G25: 210 | H25: 93 | I25: 25 | J25: 92 | K25: 2994 | L25: 1813
A26: 花蓮縣 | B26: 33 | C26: 1236 | D26: 1295 | E26: 373 | F26: 0 | G26: 195 | H26: 98 | I26: 13 | J26: 96 | K26: 3339 | L26: 3833
A27: 澎湖縣 | B27: 19 | C27: 654 | D27: 751 | E27: 177 | F27: 0 | G27: 83 | H27: 31 | I27: 14 | J27: 51 | K27: 1780 | L27: 626
A28: 基隆市 | B28: 31 | C28: 1345 | D28: 1185 | E28: 266 | F28: 0 | G28: 392 | H28: 566 | I28: 88 | J28: 115 | K28: 3988 | L28: 1776
A29: 新竹市 | B29: 33 | C29: 1144 | D29: 996 | E29: 282 | F29: 0 | G29: 275 | H29: 454 | I29: 74 | J29: 82 | K29: 3340 | L29: 1217
A30: 嘉義市 | B30: 23 | C30: 970 | D30: 808 | E30: 273 | F30: 0 | G30: 177 | H30: 71 | I30: 277 | J30: 96 | K30: 2695 | L30: 1113
A31: 金門縣 | B31: 18 | C31: 552 | D31: 344 | E31: 133 | F31: 0 | G31: 277 | H31: 145 | I31: 7 | J31: 57 | K31: 1533 | L31: 391
A32: 連江縣 | B32: 9 | C32: 220 | D32: 87 | E32: 46 | F32: 0 | G32: 77 | H32: 20 | I32: 0 | J32: 13 | K32: 472 | L32: 107

Sheet 人事費彙計
G1: 各直轄市及縣 | H1: (市) 總預算
G2: 歲 出 人 事 | H2: 費 彙 計 表 | N2: （續一）
G3: 中 華 民 國 | H3: =簡明總!E3 -> 110 年 度 | N3: 單位：元
C4: 全 | D4: 年 | F4: 度 | I4: 人 | K4: 事
A5: 市縣別 | B5: 民意代表 待遇 | C5: 政務人員 待遇 | D5: 法定編制人員 待遇 | E5: 約聘僱人員 待遇 | F5: 技工及工友 待遇 | G5: 獎金 | H5: 其他給與 | I5: 加班值班費 | J5: 退休退職給付 | K5: 退休離職儲金 | L5: 保險 | M5: 調待 準備 | N5: 合 計
A7: 總 計 | B7: 2873187084 | C7: 418946967 | D7: 111949977880 | E7: 6057990969 | F7: 14303354586 | G7: 30727758778 | H7: 6356155330 | I7: 18899317285 | J7: 23449058059 | K7: 11795106089 | L7: 12715079973 | M7: 0 | N7: 239545933000
A8: 直轄市合計 | B8: 1786707671 | C8: 280784308 | D8: 76814197550 | E8: 4049599119 | F8: 12195109392 | G8: 21873505565 | H8: 4453013579 | I8: 13248432523 | J8: 14916178545 | K8: 8524161044 | L8: 9075756704 | M8: 0 | N8: 167217446000
A9: 新北市 | B9: 296468400 | C9: 45425376 | D9: 14031329765 | E9: 847297920 | F9: 2256799760 | G9: 4048518128 | H9: 721937925 | I9: 2487718067 | J9: 1889797000 | K9: 2074046124 | L9: 1756352535 | M9: 0 | N9: 30455691000
A10: 臺北市 | B10: 308366116 | C10: 46728474 | D10: 16309362194 | E10: 852055242 | F10: 3707470336 | G10: 5203482638 | H10: 1451140444 | I10: 3213796842 | J10: 4335488545 | K10: 1684322161 | L10: 2055514008 | M10: 0 | N10: 39167727000
A11: 桃園市 | B11: 274102800 | C11: 52200176 | D11: 10465757179 | E11: 822366115 | F11: 1320369483 | G11: 2817420954 | H11: 462037417 | I11: 1880879992 | J11: 1080632000 | K11: 1031851807 | L11: 1177855077 | M11: 0 | N11: 21385473000
A12: 臺中市 | B12: 328873680 | C12: 47526005 | D12: 12807449038 | E12: 524302684 | F12: 1460055568 | G12: 3423258587 | H12: 688914672 | I12: 2067193990 | J12: 2264728000 | K12: 1132405932 | L12: 1327628844 | M12: 0 | N12: 26072337000
A13: 臺南市 | B13: 286901395 | C13: 38375409 | D13: 9624263303 | E13: 434159886 | F13: 1187972800 | G13: 2365875047 | H13: 440346400 | I13: 1402177708 | J13: 1915000000 | K13: 1011538384 | L13: 1112130668 | M13: 0 | N13: 19818741000
A14: 高雄市 | B14: 291995280 | C14: 50528868 | D14: 13576036071 | E14: 569417272 | F14: 2262441445 | G14: 4014950211 | H14: 688636721 | I14: 2196665924 | J14: 3430533000 | K14: 1589996636 | L14: 1646275572 | M14: 0 | N14: 30317477000
A15: 縣市合計 | B15: 1086479413 | C15: 138162659 | D15: 35135780330 | E15: 2008391850 | F15: 2108245194 | G15: 8854253213 | H15: 1903141751 | I15: 5650884762 | J15: 8532879514 | K15: 3270945045 | L15: 3639323269 | M15: 0 | N15: 72328487000
A16: 宜蘭縣 | B16: 69668419 | C16: 6515160 | D16: 2186946480 | E16: 175403520 | F16: 99960013 | G16: 568210030 | H16: 105964294 | I16: 383044657 | J16: 385558000 | K16: 212288389 | L16: 226707038 | M16: 0 | N16: 4420266000
A17: 新竹縣 | B17: 75943000 | C17: 4831800 | D17: 1973764173 | E17: 147551296 | F17: 121412098 | G17: 532680429 | H17: 115142178 | I17: 358282529 | J17: 383134000 | K17: 182286532 | L17: 203122965 | M17: 0 | N17: 4098151000
A18: 苗栗縣 | B18: 79479072 | C18: 7558000 | D18: 2369581093 | E18: 70706828 | F18: 156092234 | G18: 599736361 | H18: 128209500 | I18: 445597434 | J18: 533593000 | K18: 228522793 | L18: 242846685 | M18: 0 | N18: 4861923000
A19: 彰化縣 | B19: 117502020 | C19: 6022000 | D19: 4437610000 | E19: 216442881 | F19: 152664000 | G19: 1029399691 | H19: 255712203 | I19: 750933720 | J19: 1114698000 | K19: 369497512 | L19: 373920973 | M19: 0 | N19: 8824403000
A20: 南投縣 | B20: 77055280 | C20: 6549000 | D20: 2600899171 | E20: 121323837 | F20: 94030474 | G20: 670699112 | H20: 148051606 | I20: 440762682 | J20: 583200000 | K20: 247639174 | L20: 244082664 | M20: 0 | N20: 5234293000
A21: 雲林縣 | B21: 81902220 | C21: 10548360 | D21: 3082391652 | E21: 141456452 | F21: 140557440 | G21: 459276255 | H21: 100895592 | I21: 305923838 | J21: 763656235 | K21: 288049861 | L21: 321345095 | M21: 0 | N21: 5696003000
A22: 嘉義縣 | B22: 77393076 | C22: 6515040 | D22: 2526547612 | E22: 87005512 | F22: 99725604 | G22: 615788810 | H22: 143990700 | I22: 386505115 | J22: 710339000 | K22: 217217665 | L22: 250495866 | M22: 0 | N22: 5121524000
A23: 屏東縣 | B23: 104261820 | C23: 18542952 | D23: 3575815114 | E23: 217963802 | F23: 140755712 | G23: 955611010 | H23: 208868021 | I23: 571538919 | J23: 1225984000 | K23: 348688375 | L23: 363697275 | M23: 0 | N23: 7731727000
A24: 臺東縣 | B24: 57679320 | C24: 9187000 | D24: 1919670000 | E24: 100523744 | F24: 98970000 | G24: 476584510 | H24: 139565600 | I24: 275787333 | J24: 608134000 | K24: 192467671 | L24: 185764822 | M24: 0 | N24: 4064334000
A25: 花蓮縣 | B25: 69112620 | C25: 12477840 | D25: 2107757624 | E25: 102063975 | F25: 91756568 | G25: 503351317 | H25: 100136519 | I25: 312291775 | J25: 555191000 | K25: 180033596 | L25: 209550166 | M25: 0 | N25: 4243723000
A26: 澎湖縣 | B26: 37183020 | C26: 7225704 | D26: 1522321712 | E26: 49004200 | F26: 49048800 | G26: 408217907 | H26: 58704000 | I26: 217904931 | J26: 207800000 | K26: 104523648 | L26: 140780078 | M26: 0 | N26: 2802714000
A27: 基隆市 | B27: 65433984 | C27: 5216280 | D27: 2083822805 | E27: 157570897 | F27: 304280509 | G27: 637468263 | H27: 122230600 | I27: 387119194 | J27: 530977279 | K27: 215455861 | L27: 294660328 | M27: 0 | N27: 4804236000
A28: 新竹市 | B28: 69183220 | C28: 6564000 | D28: 1818562000 | E28: 137229592 | F28: 242915500 | G28: 545380815 | H28: 108794400 | I28: 329879760 | J28: 390752000 | K28: 196760507 | L28: 223322206 | M28: 0 | N28: 4069344000
A29: 嘉義市 | B29: 48596220 | C29: 13927123 | D29: 1571397109 | E29: 86430626 | F29: 177256411 | G29: 467003223 | H29: 96132900 | I29: 295647861 | J29: 324660000 | K29: 167306970 | L29: 199681557 | M29: 0 | N29: 3448040000
A30: 金門縣 | B30: 37183122 | C30: 9443400 | D30: 1000190785 | E30: 156392688 | F30: 119823831 | G30: 290526480 | H30: 57052638 | I30: 145106014 | J30: 177500000 | K30: 88382491 | L30: 120985551 | M30: 0 | N30: 2202587000
A31: 連江縣 | B31: 18903000 | C31: 7039000 | D31: 358503000 | E31: 41322000 | F31: 18996000 | G31: 94319000 | H31: 13691000 | I31: 44559000 | J31: 37703000 | K31: 31824000 | L31: 38360000 | M31: 0 | N31: 705219000

Sheet 上簡明 (hidden)
B1: 104年度各直轄市及縣(市)總預算 | O1: 104年度各直轄市及縣(市)總預算
B2: 歲入來源別總表 | O2: 歲出政事別總表
A3: 資料來源：取自104總預算彙編及修改臺北市科目調整數 | G3: 單位 : 新臺幣 千元 | T3: 單位 : 新臺幣 千元 | AC3: 配合103年度歲入來源別預算科目修正特別稅課(原歸屬自治稅捐收入)等改歸屬稅課收入
A4: 經資併計 | N4: 經資併計 | AA4: 原系統轉出數 | AB4: 原系統轉出數 | AC4: 103重歸類調整後稅課收入數額
A5: 科 目 | B5: 合 計 | C5: 稅課收入 | D5: 工程受益費收入 | E5: 罰款及賠償收入 | F5: 規費收入 | G5: 信託管理收入 | H5: 財產收入 | I5: 營業盈餘及事業收入 | J5: 補助及協助收入 | K5: 捐獻及贈與收入 | L5: 自治稅捐收入 | M5: 其他收入 | N5: 科 目 | O5: 合 計 | P5: 一般政務支出 | Q5: 教育科學文化支出 | R5: 經濟發展支出 | S5: 社會福利支出 | T5: 社區發展及環境保護支出 | U5: 退休撫卹支出 | V5: 警政支出 | W5: 債務支出 | X5: 協助及補助支出 | Y5: 其他支出 | AA5: 稅課收入 | AB5: 自治稅捐收入
A6: 款 | C6: 1 | D6: 2 | E6: 3 | F6: 4 | G6: 5 | H6: 6 | I6: 7 | J6: 8 | K6: 9 | L6: 10 | M6: 11 | N6: 款 | P6: 1 | Q6: 2 | R6: 3 | S6: 4 | T6: 5 | U6: 6 | V6: 7 | W6: 8 | X6: 9 | Y6: 10 | AA6: 1 | AB6: 10
A7: 項 | N7: 項
A8: 目
A9: 總 計 | B9: =SUM(B10:B31) -> 963323706 | C9: =SUM(C10:C31) -> 529469324 | D9: =SUM(D10:D31) -> 2 | E9: 15660811 | F9: 29068175 | G9: 352 | H9: 40111738 | I9: 25383130 | J9: 291585814 | K9: 8965607 | L9: 0 | M9: 23078753 | N9: 總 計 | O9: =SUM(O10:O31) -> 1033174266 | P9: =SUM(P10:P31) -> 110323353 | Q9: =SUM(Q10:Q31) -> 354932130 | R9: 156592572 | S9: 144929422 | T9: 59518431 | U9: 81713129 | V9: 88561303 | W9: 12079919 | X9: 1048479 | Y9: 23475528 | AA9: 482728535 | AB9: 575670 | AC9: =AA9+AB9 -> 483304205
A10: 新北市 | B10: =SUM(C10:M10) -> 140382724 | C10: 86394520 | E10: 3175423 | F10: 2784246 | H10: 10259893 | I10: 635774 | J10: 31118814 | K10: 1210936 | M10: 4803118 | N10: 新北市 | O10: =SUM(P10:Y10) -> 158371155 | P10: 19360210 | Q10: 47266133 | R10: 27118791 | S10: 22183814 | T10: 13040763 | U10: 12702815 | V10: 12037342 | W10: 964248 | Y10: 3697039 | AA10: 76782761 | AB10: 0 | AC10: =AA10+AB10 -> 76782761
A11: 臺北市 | B11: =SUM(C11:M11) -> 159058812 | C11: 106954024 | E11: 2294400 | F11: =10064670+1208080 -> 11272750 | H11: 13980446 | I11: 6493139 | J11: 17123722 | K11: 69025 | M11: =2079386-1208080 -> 871306 | N11: 臺北市 | O11: =SUM(P11:Y11) -> 158544077 | P11: =13559447-650 -> 13558797 | Q11: =66144887+650 -> 66145537 | R11: 18804264 | S11: 24292413 | T11: 12140077 | U11: 5225116 | V11: 13619735 | W11: 2082229 | Y11: 2675909 | AA11: 100319702 | AB11: 0 | AC11: =AA11+AB11 -> 100319702
A12: 桃園市 | B12: 80518000 | C12: 52254682 | E12: 1229457 | F12: 1512437 | H12: 330965 | I12: 6023216 | J12: 15210799 | K12: 241364 | M12: 3715080 | N12: 桃園市 | O12: 91781295 | P12: 10175110 | Q12: 32091705 | R12: 15455486 | S12: 13125994 | T12: 6115466 | U12: 5920174 | V12: 6327351 | W12: 304329 | X12: 421000 | Y12: 1844680 | AA12: 34821424 | AB12: 33200 | AC12: =AA12+AB12 -> 34854624
A13: 臺中市 | B13: 94601136 | C13: 60421815 | E13: 1884120 | F13: 2308804 | H13: 919894 | I13: 6221 | J13: 24884942 | K13: 396488 | M13: 3778852 | N13: 臺中市 | O13: 113555985 | P13: 12363171 | Q13: 33703720 | R13: 22591988 | S13: 14119889 | T13: 6855543 | U13: 9895246 | V13: 10707001 | W13: 760000 | Y13: 2559427 | AA13: 59323250 | AB13: 0 | AC13: =AA13+AB13 -> 59323250
A14: 臺南市 | B14: 70813044 | C14: 40609783 | E14: 855143 | F14: 1031501 | H14: 3157020 | I14: 1019050 | J14: 22855818 | K14: 147672 | M14: 1137057 | N14: 臺南市 | O14: 76588044 | P14: 9096446 | Q14: 27991464 | R14: 13032373 | S14: 9607988 | T14: 3193771 | U14: 4383954 | V14: 6535158 | W14: 1165000 | Y14: 1581890 | AA14: 40787942 | AB14: 0 | AC14: 40787942
A15: 高雄市 | B15: 111969145 | C15: 64667361 | E15: 2078234 | F15: 5501367 | H15: 5174322 | I15: 2681132 | J15: 27873851 | K15: 923310 | M15: 3069568 | N15: 高雄市 | O15: 123425220 | P15: 12213200 | Q15: 44531573 | R15: 14793499 | S15: 22273838 | T15: 9018582 | U15: 5744293 | V15: 9845326 | W15: 2277444 | Y15: 2727465 | AA15: 61832146 | AB15: 0 | AC15: 61832146
A16: 宜蘭縣 | B16: 19418129 | C16: 7904693 | D16: 0 | E16: 297529 | F16: 400591 | G16: 0 | H16: 43093 | I16: 882994 | J16: 9131937 | K16: 0 | L16: 0 | M16: 757292 | N16: 宜蘭縣 | O16: 19641386 | P16: 1861612 | Q16: 6924339 | R16: 2403286 | S16: 2236207 | T16: 1355257 | U16: 2194584 | V16: 1812650 | W16: 284329 | X16: 12250 | Y16: 556872 | AA16: 6990221 | AB16: 44325 | AC16: 7034546
A17: 新竹縣 | B17: 25673359 | C17: 9314809 | D17: 0 | E17: 399125 | F17: 356860 | G17: 1 | H17: 3607329 | I17: 2644367 | J17: 8209804 | K17: 2 | L17: 0 | M17: 1141062 | N17: 新竹縣 | O17: 25673359 | P17: 2123996 | Q17: 8307969 | R17: 5941113 | S17: 3082357 | T17: 752098 | U17: 2508764 | V17: 1647004 | W17: 515123 | X17: 0 | Y17: 794935 | AA17: 8966682 | AB17: 0 | AC17: 8966682
A18: 苗栗縣 | B18: 23975692 | C18: 8682616 | D18: 0 | E18: 246313 | F18: 286184 | G18: 0 | H18: 13041 | I18: 200005 | J18: 13599009 | K18: 10000 | L18: 0 | M18: 938524 | N18: 苗栗縣 | O18: 23975692 | P18: 2932367 | Q18: 8403478 | R18: 2519302 | S18: 2651355 | T18: 1090170 | U18: 2856431 | V18: 2292582 | W18: 650000 | X18: 53250 | Y18: 526757 | AA18: 7842381 | AB18: 3145 | AC18: 7845526
A19: 彰化縣 | B19: 36496298 | C19: 16787465 | E19: 527036 | F19: 325966 | G19: 200 | H19: 76591 | I19: 2413670 | J19: 16307216 | K19: 4830 | M19: 53324 | N19: 彰化縣 | O19: 38068721 | P19: 3391861 | Q19: 15326555 | R19: 4273348 | S19: 4165721 | T19: 240181 | U19: 4812000 | V19: 4179121 | W19: 533772 | X19: 57862 | Y19: 1088300 | AA19: 15545227 | AB19: 0 | AC19: 15545227
A20: 南投縣 | B20: 20670440 | C20: 8170384 | D20: 0 | E20: 266254 | F20: 170000 | G20: 0 | H20: 38701 | I20: 1592118 | J20: 10347680 | K20: 52 | L20: 0 | M20: 85251 | N20: 南投縣 | O20: 20549550 | P20: 2137995 | Q20: 7457146 | R20: 1932947 | S20: 2770998 | T20: 174444 | U20: 2865700 | V20: 2256316 | W20: 346650 | X20: 58988 | Y20: 548366 | AA20: 7030030 | AB20: 320000 | AC20: 7350030
A21: 雲林縣 | B21: 27115586 | C21: 10509525 | D21: 0 | E21: 300176 | F21: 274966 | G21: 0 | H21: 32867 | I21: 3500 | J21: 15176767 | K21: 279380 | L21: 0 | M21: 538405 | N21: 雲林縣 | O21: 26765586 | P21: 2169666 | Q21: 9287174 | R21: 3457598 | S21: 4042933 | T21: 214078 | U21: 3701608 | V21: 2378078 | W21: 690357 | X21: 76500 | Y21: 747594 | AA21: 10253418 | AB21: 0 | AC21: 10253418
A22: 嘉義縣 | B22: 22450000 | C22: 6880387 | D22: 0 | E22: 164969 | F22: 152749 | G22: 150 | H22: 91476 | I22: 4935 | J22: 15122786 | K22: 1289 | L22: 0 | M22: 31259 | N22: 嘉義縣 | O22: 22800000 | P22: 2164968 | Q22: 7235863 | R22: 3748702 | S22: 3286528 | T22: 181899 | U22: 3046267 | V22: 1999021 | W22: 488000 | X22: 120752 | Y22: 528000 | AA22: 6495443 | AB22: 0 | AC22: 6495443
A23: 屏東縣 | B23: 29960000 | C23: 12212484 | D23: 0 | E23: 714404 | F23: 452390 | G23: 0 | H23: 237453 | I23: 0 | J23: 16031441 | K23: 0 | L23: 0 | M23: 311828 | N23: 屏東縣 | O23: 29960000 | P23: 3069116 | Q23: 10993483 | R23: 2655498 | S23: 4217166 | T23: 378369 | U23: 4654757 | V23: 3092819 | W23: 250000 | X23: 94500 | Y23: 554292 | AA23: 11079770 | AB23: 0 | AC23: 11079770
A24: 臺東縣 | B24: 12665885 | C24: 4231081 | D24: 0 | E24: 146445 | F24: 202090 | G24: 0 | H24: 290241 | I24: 5000 | J24: 7742647 | K24: 21016 | L24: 0 | M24: 27365 | N24: 臺東縣 | O24: 14340106 | P24: 2319220 | Q24: 4297201 | R24: 1476098 | S24: 1980854 | T24: 180519 | U24: 2002473 | V24: 1596702 | W24: 130000 | X24: 1000 | Y24: 356039 | AA24: 4116029 | AB24: 0 | AC24: 4116029
A25: 花蓮縣 | B25: 17145683 | C25: 5867584 | D25: 0 | E25: 255811 | F25: 172110 | G25: 0 | H25: 69016 | I25: 66626 | J25: 10670773 | K25: 1450 | L25: 0 | M25: 42313 | N25: 花蓮縣 | O25: 17145683 | P25: 2108563 | Q25: 5635845 | R25: 2708278 | S25: 2031840 | T25: 257983 | U25: 2125504 | V25: 1747870 | W25: 189800 | X25: 0 | Y25: 340000 | AA25: 5110916 | AB25: 175000 | AC25: 5285916
A26: 澎湖縣 | B26: 8186783 | C26: 1994720 | E26: 16835 | F26: 152258 | H26: 105672 | I26: 5000 | J26: 5727982 | K26: 16292 | M26: 168024 | N26: 澎湖縣 | O26: 9120574 | P26: 968557 | Q26: 2370780 | R26: 1870177 | S26: 1181380 | T26: 300759 | U26: 924592 | V26: 1211049 | W26: 30670 | X26: 34500 | Y26: 228110 | AA26: 1747155 | AB26: 0 | AC26: 1747155
A27: 基隆市 | B27: 16949927 | C27: 7559580 | D27: 0 | E27: 294133 | F27: 330667 | G27: 0 | H27: 836772 | I27: 33330 | J27: 7331734 | K27: 133580 | M27: 430131 | N27: 基隆市 | O27: 16303232 | P27: 2383457 | Q27: 4212134 | R27: 2272246 | S27: 2172065 | T27: 882330 | U27: 2043409 | V27: 1811591 | W27: 197000 | Y27: 329000 | AA27: 6626731 | AB27: 0 | AC27: 6626731
A28: 新竹市 | B28: 18095663 | C28: 10251324 | D28: 1 | E28: 347412 | F28: 471181 | H28: 586783 | J28: 5376580 | K28: 131020 | M28: 931362 | N28: 新竹市 | O28: 18497663 | P28: 2150807 | Q28: 5837260 | R28: 2030015 | S28: 2132917 | T28: 1326149 | U28: 2110240 | V28: 1471375 | W28: 189000 | Y28: 1249900 | AA28: 9371537 | AB28: 0 | AC28: 9371537
A29: 嘉義市 | B29: 10841907 | C29: 5053093 | D29: 1 | E29: 73570 | F29: 229401 | G29: 1 | H29: 77575 | I29: 2069 | J29: 5251016 | K29: 6401 | L29: 0 | M29: 148780 | N29: 嘉義市 | O29: 11105585 | P29: 1563496 | Q29: 3720547 | R29: 942455 | S29: 1331474 | T29: 530409 | U29: 1460800 | V29: 1229036 | W29: 31368 | X29: 0 | Y29: 296000 | AA29: 5076789 | AB29: 0 | AC29: 5076789
A30: 金門縣 | B30: 13668751 | C30: 2317722 | D30: 0 | E30: 88972 | F30: 650012 | G30: 0 | H30: 175102 | I30: 649984 | J30: 4491300 | K30: 5200000 | L30: 0 | M30: 95659 | N30: 金門縣 | O30: 14085772 | P30: 1691894 | Q30: 2451886 | R30: 5610521 | S30: 1810927 | T30: 1137998 | U30: 490714 | V30: 607902 | W30: 0 | X30: 89513 | Y30: 194417 | AA30: 2211612 | AB30: 0 | AC30: 2211612
A31: 連江縣 | B31: 2666742 | C31: 429672 | D31: 0 | E31: 5050 | F31: 29645 | G31: 0 | H31: 7486 | I31: 21000 | J31: 1999196 | K31: 171500 | L31: 0 | M31: 3193 | N31: 連江縣 | O31: 2875581 | P31: 518844 | Q31: 740338 | R31: 954587 | S31: 230764 | T31: 151586 | U31: 43688 | V31: 156274 | W31: 600 | X31: 28364 | Y31: 50536 | AA31: 397369 | AB31: 0 | AC31: 397369

Sheet 前簡明 (hidden)
B1: 103年度各縣(市)總決算審定 | O1: 103年度各縣(市)總決算審定
B2: 歲入來源別總表 | O2: 歲出政事別總表
A3: 列印日期:104年10月6日 | B3: 資料來源：取自資料庫系統及配合科目移列做同基礎調整 | G3: 單位 : 新臺幣 元 | N3: 列印日期:104年10月6日 | T3: 單位 : 新臺幣 元
A4: 經資併計 | N4: 經資併計
A5: 科 目 | B5: 合 計 | C5: 稅課收入 | D5: 工程受益費收入 | E5: 罰款及賠償收入 | F5: 規費收入 | G5: 信託管理收入 | H5: 財產收入 | I5: 營業盈餘及事業收入 | J5: 補助及協助收入 | K5: 捐獻及贈與收入 | L5: 自治稅捐收入 | M5: 其他收入 | N5: 科 目 | O5: 合 計 | P5: 一般政務支出 | Q5: 教育科學文化支出 | R5: 經濟發展支出 | S5: 社會福利支出 | T5: 社區發展及環境保護支出 | U5: 退休撫卹支出 | V5: 警政支出 | W5: 債務支出 | X5: 協助及補助支出 | Y5: 其他支出
A6: 款 | C6: 1 | D6: 2 | E6: 3 | F6: 4 | G6: 5 | H6: 6 | I6: 7 | J6: 8 | K6: 9 | L6: 10 | M6: 11 | N6: 款 | P6: 1 | Q6: 2 | R6: 3 | S6: 4 | T6: 5 | U6: 6 | V6: 7 | W6: 8 | X6: 9 | Y6: 10
A7: 項 | N7: 項
A8: 目
A9: 總 計 | B9: 981755104208 | C9: 526538151476 | D9: 3708092 | E9: 19473873811 | F9: 35857055384 | G9: 119574523 | H9: 47778162528 | I9: 31274520637 | J9: 288689341626 | K9: 9886964689 | L9: 0 | M9: 22133751442 | N9: 總 計 | O9: 999547302200 | P9: 106041560880 | Q9: 349577516423 | R9: 156735107521 | S9: 155949213877 | T9: 52964222520 | U9: 74981543138 | V9: 81880550738 | W9: 10055507268 | X9: 677844745 | Y9: 10684235090
A10: 新北市 | B10: 142571741482 | C10: 88221727393 | D10: 3708092 | E10: =4302270628-1150000 -> 4301120628 | F10: =3625953999-563246000 -> 3062707999 | G10: 0 | H10: 10885669309 | I10: 58927379 | J10: 29196902356 | K10: 1324346883 | L10: 0 | M10: =4952235443+1150000+563246000 -> 5516631443 | N10: 新北市 | O10: 154473463926 | P10: 19772228431 | Q10: 47544136417 | R10: 28489978071 | S10: 21273403865 | T10: 12274935557 | U10: 12100170315 | V10: 10584939285 | W10: 750140730 | X10: 0 | Y10: 1683531255
A11: 臺北市 | B11: 188724222223 | C11: 112407759690 | D11: 0 | E11: 2952673015 | F11: =12203981961-471485000 -> 11732496961 | G11: 0 | H11: =21896721502+1680000 -> 21898401502 | I11: 13556608027 | J11: 23732022058 | K11: 127794961 | L11: 0 | M11: =1846661009+471485000-1680000 -> 2316466009 | N11: 臺北市 | O11: 167504327527 | P11: 13131672216 | Q11: 63780303467 | R11: 18280227817 | S11: 39418872913 | T11: 11444086459 | U11: 4908230685 | V11: 12383778728 | W11: 3290050932 | X11: 0 | Y11: 867104310
A12: 桃園縣 | B12: 56716718078 | C12: 38782611747 | D12: 0 | E12: 1568997860 | F12: 1771648529 | G12: 0 | H12: 226362106 | I12: 211206539 | J12: 13458760604 | K12: 11163162 | L12: 0 | M12: 685967531 | N12: 桃園縣 | O12: 62760371005 | P12: 5709330669 | Q12: 28136596598 | R12: 8362932099 | S12: 7254062162 | T12: 1798591987 | U12: 4905401878 | V12: 5622592896 | W12: 252996310 | X12: 0 | Y12: 717866406
A13: 臺中市 | B13: 99916972141 | C13: 64477196168 | D13: 0 | E13: 2338924667 | F13: =3298279924-1066971000 -> 2231308924 | G13: 0 | H13: 1071885811 | I13: 3815038460 | J13: 21726599364 | K13: 456126243 | L13: 0 | M13: =2732921504+1066971000 -> 3799892504 | N13: 臺中市 | O13: 104869032822 | P13: 11339544002 | Q13: 33192674497 | R13: 21414063230 | S13: 13320367516 | T13: 6191130460 | U13: 8621136713 | V13: 9425811371 | W13: 453408165 | X13: 0 | Y13: 910896868
A14: 臺南市 | B14: 71582555003 | C14: 40382767923 | D14: 0 | E14: =1012902362-8854000 -> 1004048362 | F14: =2349207876-641538000 -> 1707669876 | G14: 0 | H14: 2645760288 | I14: 417072329 | J14: 23434285737 | K14: 252846662 | L14: 0 | M14: =1087711826+8854000+641538000 -> 1738103826 | N14: 臺南市 | O14: 73521376929 | P14: 8890406220 | Q14: 27820755529 | R14: 13347686425 | S14: 9465348458 | T14: 2907965966 | U14: 3684694176 | V14: 6112258780 | W14: 677564130 | X14: 0 | Y14: 614697245
A15: 高雄市 | B15: 116362372410 | C15: 62080575356 | D15: 0 | E15: 2627600269 | F15: =6782774637-1135785000 -> 5646989637 | G15: 119188875 | H15: 5919795568 | I15: 5769828867 | J15: 27855014707 | K15: 891321595 | L15: 0 | M15: =4316272536+1135785000 -> 5452057536 | N15: 高雄市 | O15: 126265671271 | P15: =13087415025-772037000 -> 12315378025 | Q15: 45244508079 | R15: =13105518003+772037000 -> 13877555003 | S15: 26548986441 | T15: 9230545231 | U15: 5484591083 | V15: 9826266202 | W15: 1765673889 | X15: 0 | Y15: 1972167318
A16: 宜蘭縣 | B16: 19458448633 | C16: 7674964736 | D16: 0 | E16: =327069783-3552000 -> 323517783 | F16: =685757635-269844000 -> 415913635 | G16: 0 | H16: 104962591 | I16: 784459000 | J16: 9329624723 | K16: 275000 | L16: 0 | M16: =551335165+3552000+269844000 -> 824731165 | N16: 宜蘭縣 | O16: 19771999215 | P16: 1799068163 | Q16: 8005019835 | R16: 1945534484 | S16: 2296163221 | T16: 1347434846 | U16: 2074609588 | V16: 1744596125 | W16: 272958902 | X16: 12401169 | Y16: 274212882
A17: 新竹縣 | B17: 22078297051 | C17: 9709255844 | D17: 0 | E17: =417799467-99000 -> 417700467 | F17: =456108641-104372000 -> 351736641 | G17: 0 | H17: 1254301337 | I17: 1717373859 | J17: 8286752980 | K17: 0 | L17: 0 | M17: =236704923+99000+104372000 -> 341175923 | N17: 新竹縣 | O17: 23149637216 | P17: 1962474523 | Q17: 8623141706 | R17: 5090567901 | S17: 2678833101 | T17: 538960639 | U17: 2294567964 | V17: 1590643630 | W17: 257187039 | X17: 0 | Y17: 113260713
A18: 苗栗縣 | B18: 22394373463 | C18: 8700012528 | D18: 0 | E18: =322031678-2640000 -> 319391678 | F18: 345165524 | G18: 0 | H18: 1153036342 | I18: 300237461 | J18: 10938776698 | K18: 215605997 | L18: 0 | M18: =419507235+2640000 -> 422147235 | N18: 苗栗縣 | O18: 26455582212 | P18: 3184633492 | Q18: 8519159836 | R18: 4935608733 | S18: 2750491451 | T18: 1394399723 | U18: 2776478579 | V18: 1984179837 | W18: 629831640 | X18: 53250000 | Y18: 227548921
A19: 彰化縣 | B19: 39906506523 | C19: 16298765417 | D19: 0 | E19: 660871556 | F19: 394132829 | G19: 203949 | H19: 157358477 | I19: 3256672619 | J19: 17626204513 | K19: 28148440 | L19: 0 | M19: 1484148723 | N19: 彰化縣 | O19: 41204936654 | P19: 3055559358 | Q19: 16454056872 | R19: 6317188882 | S19: 5400958466 | T19: 307433142 | U19: 4713353459 | V19: 4185909523 | W19: 252010982 | X19: 59264199 | Y19: 459201771
A20: 南投縣 | B20: 23820221960 | C20: 9926037434 | D20: 0 | E20: 373183473 | F20: 198592183 | G20: 0 | H20: 98872823 | I20: 675705106 | J20: 12327953053 | K20: 1060000 | L20: 0 | M20: 218817888 | N20: 南投縣 | O20: 21691581149 | P20: 2243846120 | Q20: 7288370096 | R20: 4192974237 | S20: 2572868100 | T20: 254595322 | U20: 2552867918 | V20: 2148595198 | W20: 200005654 | X20: 46500000 | Y20: 190958504
A21: 雲林縣 | B21: 26040899406 | C21: 11184190313 | D21: 0 | E21: =435509629-3873000 -> 431636629 | F21: 244789587 | G21: 0 | H21: 270416836 | I21: 6300000 | J21: 12954203815 | K21: 518478000 | L21: 0 | M21: =427011226+3873000 -> 430884226 | N21: 雲林縣 | O21: 26632107533 | P21: 2163483576 | Q21: 8659782409 | R21: 5386823182 | S21: 3810753501 | T21: 148609708 | U21: 3045869955 | V21: 2273583445 | W21: 252445163 | X21: 76500000 | Y21: 814256594
A22: 嘉義縣 | B22: 21511119912 | C22: 7963522328 | D22: 0 | E22: =282876671-110000 -> 282766671 | F22: 153316667 | G22: 181699 | H22: 92705980 | I22: 8072000 | J22: 12460250756 | K22: 1289000 | L22: 0 | M22: =548904811+110000 -> 549014811 | N22: 嘉義縣 | O22: 21910332578 | P22: 2580484377 | Q22: 6459008961 | R22: 3687423718 | S22: 3077410680 | T22: 197716088 | U22: 3319252612 | V22: 1857835209 | W22: 234508595 | X22: 125756000 | Y22: 370936338
A23: 屏東縣 | B23: 31848994364 | C23: 11824537643 | D23: 0 | E23: =583507671-7008000 -> 576499671 | F23: =673362206-261844000 -> 411518206 | G23: 0 | H23: 549073158 | I23: 0 | J23: 18065170735 | K23: 101234216 | L23: 0 | M23: =52108735+7008000+261844000 -> 320960735 | N23: 屏東縣 | O23: 31058236625 | P23: 3427623156 | Q23: 10990728151 | R23: 4141012097 | S23: 3957873100 | T23: 417334133 | U23: 4433429320 | V23: 2794252828 | W23: 300000000 | X23: 100418697 | Y23: 495565143
A24: 臺東縣 | B24: 13773880309 | C24: 4231025996 | D24: 0 | E24: 169264382 | F24: 197183495 | G24: 0 | H24: 260484497 | I24: 5000000 | J24: 8705007494 | K24: 27382168 | L24: 0 | M24: 178532277 | N24: 臺東縣 | O24: 14213130063 | P24: 2607504369 | Q24: 4080122629 | R24: 1781566287 | S24: 1896576813 | T24: 198109576 | U24: 1833374844 | V24: 1461578224 | W24: 64792138 | X24: 460324 | Y24: 289044859
A25: 花蓮縣 | B25: 16951271853 | C25: 6284156492 | D25: 0 | E25: =297695521-3804000 -> 293891521 | F25: =176152362-35000 -> 176117362 | G25: 0 | H25: 207146102 | I25: 246480177 | J25: 9588030653 | K25: 1365000 | L25: 0 | M25: =150245546+3804000+35000 -> 154084546 | N25: 花蓮縣 | O25: 17090671006 | P25: 2065664917 | Q25: 5352153545 | R25: 3267016384 | S25: 2005200582 | T25: 282789659 | U25: 1927460455 | V25: 1798127147 | W25: 122339528 | X25: 0 | Y25: 269918789
A26: 澎湖縣 | B26: 7957563088 | C26: 2109152485 | D26: 0 | E26: =29631620-21000 -> 29610620 | F26: =161066944-7040000 -> 154026944 | G26: 0 | H26: 79534561 | I26: 12270181 | J26: 5391587469 | K26: 18448882 | L26: 0 | M26: =155870946+21000+7040000 -> 162931946 | N26: 澎湖縣 | O26: 8376027540 | P26: 960393398 | Q26: 1955599799 | R26: 2097878535 | S26: 1087602534 | T26: 219255426 | U26: 732486118 | V26: 1158434792 | W26: 24855220 | X26: 83330693 | Y26: 56191025
A27: 基隆市 | B27: 16673709167 | C27: 6729728160 | D27: 0 | E27: =207166930-2929000 -> 204237930 | F27: =431930669-111776000 -> 320154669 | G27: 0 | H27: 378989303 | I27: 30200000 | J27: 7676196084 | K27: 148995514 | L27: 0 | M27: =1070502507+2929000+111776000 -> 1185207507 | N27: 基隆市 | O27: 16665888704 | P27: 2336674511 | Q27: 4755188888 | R27: 2967338601 | S27: 2134882558 | T27: 863164214 | U27: 1705005129 | V27: 1656230426 | W27: 110349652 | X27: 0 | Y27: 137054725
A28: 新竹市 | B28: 16912958513 | C28: 9850281903 | D28: 0 | E28: =391359958-19791100 -> 371568858 | F28: =736868062-331732000 -> 405136062 | G28: 0 | H28: 208695839 | I28: 0 | J28: 5022322158 | K28: 69832750 | L28: 0 | M28: =633597843+19792000+331732000 -> 985121843 | N28: 新竹市 | O28: 16848050369 | P28: 2005119463 | Q28: 5848406789 | R28: 1959158619 | S28: 2068051088 | T28: 1352723368 | U28: 2019104523 | V28: 1353507509 | W28: 131774974 | X28: 0 | Y28: 110204036
A29: 嘉義市 | B29: 11128588589 | C29: 4909097972 | D29: 0 | E29: =124592557-7163000 -> 117429557 | F29: =324469354-81441000 -> 243028354 | G29: 0 | H29: 132560136 | I29: 2068633 | J29: 5421236612 | K29: 22272460 | L29: 0 | M29: =192290865+7163000+81441000 -> 280894865 | N29: 嘉義市 | O29: 10641077247 | P29: 1530351905 | Q29: 3584623481 | R29: 1159393948 | S29: 1195395565 | T29: 514237353 | U29: 1364182226 | V29: 1196220347 | W29: 12613625 | X29: 0 | Y29: 84058797
A30: 金門縣 | B30: 12370209118 | C30: 2381583062 | D30: 0 | E30: 42317582 | F30: =622926195-8079000 -> 614847195 | G30: 0 | H30: 175612996 | I30: 400000000 | J30: 3030392662 | K30: 5550000000 | L30: 0 | M30: =167376621+8079000 -> 175455621 | N30: 金門縣 | O30: 11412347868 | P30: 1744652891 | Q30: 2568774781 | R30: 3466831697 | S30: 1516006694 | T30: 978763589 | U30: 451905548 | V30: 579690623 | W30: 0 | X30: 89822000 | Y30: 15900045
A31: 連江縣 | B31: 3053480922 | C31: 409200886 | D31: 0 | E31: 5626532 | F31: 23386105 | G31: 0 | H31: 8216966 | I31: 1000000 | J31: 2462046395 | K31: 118977756 | L31: 0 | M31: 25026282 | N31: 連江縣 | O31: 3031452741 | P31: 443430098 | Q31: 714404058 | R31: 1338384571 | S31: 219105068 | T31: 101440074 | U31: 33370050 | V31: 141518613 | W31: 0 | X31: 30141663 | Y31: 9658546
N33: 備註:1.臺北市:社會救助支出項下災害準備金128,735,146元(經常門26,946,070元，資本門101,789,076元)。已調整至災害準備金

Sheet 上收支 (hidden)
A1: 資料來源：取自104總預算彙編
A2: 歲入歲出性質及餘絀簡明比較分析表
A3: 104年度總預算 | G3: 單位 : 新臺幣 千元
A4: 縣 市 | C4: 一.經 常 門 | M4: 二.資 本 門 | V4: 三.歲入歲出餘絀
C5: (一)經常門歲入 | D5: 1.直接稅收入 | E5: 2.間接稅收入 | F5: 3.賦稅外收入 | G5: (二)經常門歲出 | H5: 1.一般經常性支出 | I5: 2.債務利息及事務支出 | J5: 3.預備金-經 | K5: (三)經常門餘絀 | M5: (一)資本門歲入 | N5: 1.減少資產 | O5: 2.收回投資 | P5: (二)資本門歲出 | Q5: 1.增置或擴充改良資產 | R5: 2.增加投資 | S5: 3.預備金-資 | T5: (三)資本門餘絀
A6: 總 計 | B6: 金 額 | C6: =SUM(C8:C29) -> 941257562 | D6: =SUM(D8:D29) -> 296780144 | E6: 232689180 | F6: 411788238 | G6: 838755751 | H6: 820975304 | I6: 12079919 | J6: 5700528 | K6: 102501811 | M6: =SUM(M8:M29) -> 22066144 | N6: 19786636 | O6: 2279508 | P6: 194418515 | Q6: 165180502 | R6: 19464279 | S6: 9773734 | T6: -172352371 | V6: -69850560
B7: 百分比
A8: 新北市 | C8: 131165608 | D8: 57999372 | E8: 28395148 | F8: 44771088 | G8: 122494968 | H8: 120754236 | I8: 964248 | J8: 776484 | K8: 8670640 | M8: 9217116 | N8: 9217116 | P8: 35876187 | Q8: 21556351 | R8: 12919836 | S8: 1400000 | T8: -26659071 | V8: -17988431
A9: 臺北市 | C9: 158760891 | D9: 59813000 | E9: 47141024 | F9: 51806867 | G9: 132182343 | H9: 129022582 | I9: 2082229 | J9: 1077532 | K9: 26578548 | M9: 297921 | N9: 297921 | P9: 26361734 | Q9: 24526560 | R9: 1097674 | S9: 737500 | T9: -26063813 | V9: 514735
A10: 桃園市 | C10: 80391212 | D10: 33283243 | E10: 18971439 | F10: 28136530 | G10: 70428097 | H10: 69913068 | I10: 304329 | J10: 210700 | K10: 9963115 | M10: 126788 | N10: 126788 | P10: 21353198 | Q10: 18432198 | R10: 2000000 | S10: 921000 | T10: -21226410 | V10: -11263295
A11: 臺中市 | C11: 94120496 | D11: 37313191 | E11: 23108624 | F11: 33698681 | G11: 89429722 | H11: 88176572 | I11: 760000 | J11: 493150 | K11: 4690774 | M11: 480640 | N11: 400000 | O11: 80640 | P11: 24126263 | Q11: 22855263 | R11: 31000 | S11: 1240000 | T11: -23645623 | V11: -18954849
A12: 臺南市 | C12: 68658812 | D12: 23090597 | E12: 17519186 | F12: 28049029 | G12: 62959896 | H12: 61254306 | I12: 1165000 | J12: 540590 | K12: 5698916 | M12: 2154232 | N12: 1940000 | O12: 214232 | P12: 13628148 | Q12: 12902916 | R12: 15232 | S12: 710000 | T12: -11473916 | V12: -5775000
A13: 高雄市 | C13: 107515975 | D13: 29075000 | E13: 35592361 | F13: 42848614 | G13: 105054801 | H13: 102467555 | I13: 2277444 | J13: 309802 | K13: 2461174 | M13: 4453170 | N13: 4453170 | P13: 18370419 | Q13: 16378570 | R13: 545215 | S13: 1446634 | T13: -13917249 | V13: -11456075
A14: 宜蘭縣 | C14: 19406788 | D14: 4489690 | E14: 3415003 | F14: 11502095 | G14: 16258871 | H14: 15913042 | I14: 284329 | J14: 61500 | K14: 3147917 | M14: 11341 | N14: 11341 | O14: 0 | P14: 3382515 | Q14: 3186067 | R14: 0 | S14: 196448 | T14: -3371174 | V14: -223257
A15: 新竹縣 | C15: 22119780 | D15: 5226766 | E15: 4088043 | F15: 12804971 | G15: 17957752 | H15: 16969405 | I15: 515123 | J15: 473224 | K15: 4162028 | M15: 3553579 | N15: 1600011 | O15: 1953568 | P15: 7715607 | Q15: 5505039 | R15: 1953568 | S15: 257000 | T15: -4162028 | V15: 0
A16: 苗栗縣 | C16: 23975692 | D16: 3962000 | E16: 4720616 | F16: 15293076 | G16: 19374433 | H16: 18524433 | I16: 650000 | J16: 200000 | K16: 4601259 | M16: 0 | P16: 4601259 | Q16: 4361502 | R16: 0 | S16: 239757 | T16: -4601259 | V16: 0
A17: 彰化縣 | C17: 36480298 | D17: 7584047 | E17: 9203418 | F17: 19692833 | G17: 33272676 | H17: 32608904 | I17: 533772 | J17: 130000 | K17: 3207622 | M17: 16000 | N17: 16000 | P17: 4796045 | Q17: 4296045 | R17: 110000 | S17: 390000 | T17: -4780045 | V17: -1572423
A18: 南投縣 | C18: 20668440 | D18: 3156649 | E18: 5013735 | F18: 12498056 | G18: 18511049 | H18: 18051399 | I18: 346650 | J18: 113000 | K18: 2157391 | M18: 2000 | N18: 2000 | O18: 0 | P18: 2038501 | Q18: 1833001 | R18: 0 | S18: 205500 | T18: -2036501 | V18: 120890
A19: 雲林縣 | C19: 27088664 | D19: 4418117 | E19: 6091408 | F19: 16579139 | G19: 22964126 | H19: 22262810 | I19: 690357 | J19: 10959 | K19: 4124538 | M19: 26922 | N19: 26922 | O19: 0 | P19: 3801460 | Q19: 3453769 | R19: 0 | S19: 347691 | T19: -3774538 | V19: 350000
A20: 嘉義縣 | C20: 22400000 | D20: 2696235 | E20: 4184152 | F20: 15519613 | G20: 18663641 | H20: 18166838 | I20: 488000 | J20: 8803 | K20: 3736359 | M20: 50000 | N20: 50000 | P20: 4136359 | Q20: 3808839 | R20: 19520 | S20: 308000 | T20: -4086359 | V20: -350000
A21: 屏東縣 | C21: 29764291 | D21: 5032939 | E21: 7179545 | F21: 17551807 | G21: 26798865 | H21: 26518865 | I21: 250000 | J21: 30000 | K21: 2965426 | M21: 195709 | N21: 195709 | P21: 3161135 | Q21: 2855704 | S21: 305431 | T21: -2965426 | V21: 0
A22: 臺東縣 | C22: 12405885 | D22: 1677402 | E22: 2553679 | F22: 8174804 | G22: 12269224 | H22: 12099224 | I22: 130000 | J22: 40000 | K22: 136661 | M22: 260000 | N22: 260000 | P22: 2070882 | Q22: 1866882 | R22: 0 | S22: 204000 | T22: -1810882 | V22: -1674221
A23: 花蓮縣 | C23: 17135583 | D23: 2468181 | E23: 3399403 | F23: 11267999 | G23: 14356519 | H23: 14097519 | I23: 189800 | J23: 69200 | K23: 2779064 | M23: 10100 | N23: 10100 | O23: 0 | P23: 2789164 | Q23: 2629164 | R23: 0 | S23: 160000 | T23: -2779064 | V23: 0
A24: 澎湖縣 | C24: 8105715 | D24: 885394 | E24: 1109326 | F24: 6110995 | G24: 6919620 | H24: 6825950 | I24: 30670 | J24: 63000 | K24: 1186095 | M24: 81068 | N24: 50000 | O24: 31068 | P24: 2200954 | Q24: 2036720 | R24: 72234 | S24: 92000 | T24: -2119886 | V24: -933791
A25: 基隆市 | C25: 16330571 | D25: 4392726 | E25: 3166854 | F25: 8770991 | G25: 13685721 | H25: 13458221 | I25: 197000 | J25: 30500 | K25: 2644850 | M25: 619356 | N25: 619356 | P25: 2617511 | Q25: 2448511 | S25: 169000 | T25: -1998155 | V25: 646695
A26: 新竹市 | C26: 17615661 | D26: 6585154 | E26: 3666170 | F26: 7364337 | G26: 15352577 | H26: 14245037 | I26: 189000 | J26: 918540 | K26: 2263084 | M26: 480002 | N26: 480002 | P26: 3145086 | Q26: 2959086 | S26: 186000 | T26: -2665084 | V26: -402000
A27: 嘉義市 | C27: 10811907 | D27: 2825889 | E27: 2227204 | F27: 5758814 | G27: 9931669 | H27: 9837901 | I27: 31368 | J27: 62400 | K27: 880238 | M27: 30000 | N27: 30000 | O27: 0 | P27: 1173916 | Q27: 1086316 | R27: 0 | S27: 87600 | T27: -1143916 | V27: -263678
A28: 金門縣 | C28: 13668551 | D28: 668336 | E28: 1649386 | F28: 11350829 | G28: 8082458 | H28: 8016808 | I28: 0 | J28: 65650 | K28: 5586093 | M28: 200 | N28: 200 | O28: 0 | P28: 6003314 | Q28: 5166897 | R28: 700000 | S28: 136417 | T28: -6003114 | V28: -417021
A29: 連江縣 | C29: 2666742 | D29: 136216 | E29: 293456 | F29: 2237070 | G29: 1806723 | H29: 1790629 | I29: 600 | J29: 15494 | K29: 860019 | M29: 0 | N29: 0 | O29: 0 | P29: 1068858 | Q29: 1035102 | R29: 0 | S29: 33756 | T29: -1068858 | V29: -208839

Sheet 前收支 (hidden)
A2: 歲入歲出性質及餘絀簡明比較分析表
A3: 103年度總決算審定 | G3: 單位 : 新臺幣 元
A4: 縣 市 | C4: 一.經 常 門 | M4: 二.資 本 門 | V4: 三.歲入歲出餘絀
C5: (一)經常門歲入 | D5: 1.直接稅收入 | E5: 2.間接稅收入 | F5: 3.賦稅外收入 | G5: (二)經常門歲出 | H5: 1.一般經常性支出 | I5: 2.債務利息及事務支出 | J5: 3.預備金-經 | K5: (三)經常門餘絀 | M5: (一)資本門歲入 | N5: 1.減少資產 | O5: 2.收回投資 | P5: (二)資本門歲出 | Q5: 1.增置或擴充改良資產 | R5: 2.增加投資 | S5: 3.預備金-資 | T5: (三)資本門餘絀
A6: 總 計 | B6: 金 額 | C6: 957063551304 | D6: 299234895608 | E6: 227289890479 | F6: 430538765217 | G6: 803500591434 | H6: 793256636107 | I6: 10055507268 | J6: 188448059 | K6: 153562959870 | M6: 24691552904 | N6: 23895584259 | O6: 795968645 | P6: 196046710766 | Q6: 174670038848 | R6: 18285830473 | S6: 3090841445 | T6: -171355157862 | V6: -17792197992
B7: 百分比 | C7: 100 | D7: 31.2659379 | E7: 23.74867272 | F7: 44.98538939 | G7: 100 | H7: 98.72508428 | I7: 1.251462336 | J7: 0.02345338149 | M7: 100 | N7: 96.77635243 | O7: 3.223647569 | P7: 100 | Q7: 89.09613335 | R7: 9.327282463 | S7: 1.576584189
A8: 新北市 | C8: 132677635487 | D8: 59499889717 | E8: 28721837676 | F8: 44455908094 | G8: 115257961278 | H8: 114480954178 | I8: 750140730 | J8: 26866370 | K8: 17419674209 | M8: 9894105995 | N8: 9894105995 | O8: 0 | P8: 39215502648 | Q8: 23516160406 | R8: 14735334522 | S8: 964007720 | T8: -29321396653 | V8: -11901722444
A9: 臺北市 | C9: 185899305928 | D9: 62980778698 | E9: 49426980992 | F9: 73491546238 | G9: 146734353817 | H9: 143417356815 | I9: 3290050932 | J9: 26946070 | K9: 39164952111 | M9: 2824916295 | N9: 2824916295 | O9: 0 | P9: 20769973710 | Q9: 19535842185 | R9: 1132342449 | S9: 101789076 | T9: -17945057415 | V9: 21219894696
A10: 桃園縣 | C10: 56620947035 | D10: 22428064528 | E10: 16354547219 | F10: 17838335288 | G10: 49635961407 | H10: 49382965097 | I10: 252996310 | J10: 0 | K10: 6984985628 | M10: 95771043 | N10: 95771043 | O10: 0 | P10: 13124409598 | Q10: 12624409598 | R10: 500000000 | S10: 0 | T10: -13028638555 | V10: -6043652927
A11: 臺中市 | C11: 99405314175 | D11: 39706349669 | E11: 24770846499 | F11: 34928118007 | G11: 82594034762 | H11: 82140626597 | I11: 453408165 | J11: 0 | K11: 16811279413 | M11: 511657966 | N11: 510657966 | O11: 1000000 | P11: 22274998060 | Q11: 22192884703 | R11: 82113357 | S11: 0 | T11: -21763340094 | V11: -4952060681
A12: 臺南市 | C12: 69376012849 | D12: 22791953427 | E12: 17590814496 | F12: 28993244926 | G12: 59103897827 | H12: 58415166362 | I12: 677564130 | J12: 11167335 | K12: 10272115022 | M12: 2206542154 | N12: 1513311213 | O12: 693230941 | P12: 14417479102 | Q12: 14084425886 | R12: 1000000 | S12: 332053216 | T12: -12210936948 | V12: -1938821926
A13: 高雄市 | C13: 111057296283 | D13: 27576047107 | E13: 34504528249 | F13: 48976720927 | G13: 106509782269 | H13: 104628540505 | I13: 1765673889 | J13: 115567875 | K13: 4547514014 | M13: 5305076127 | N13: 5304275340 | O13: 800787 | P13: 19755889002 | Q13: 17591556325 | R13: 1043714440 | S13: 1120618237 | T13: -14450812875 | V13: -9903298861
A14: 宜蘭縣 | C14: 19388116267 | D14: 4356830953 | E14: 3318133783 | F14: 11713151531 | G14: 15384234181 | H14: 15111275279 | I14: 272958902 | J14: 0 | K14: 4003882086 | M14: 70332366 | N14: 70332366 | O14: 0 | P14: 4387765034 | Q14: 4387765034 | R14: 0 | S14: 0 | T14: -4317432668 | V14: -313550582
A15: 新竹縣 | C15: 20881130160 | D15: 5548267853 | E15: 4160987991 | F15: 11171874316 | G15: 16785876689 | H15: 16528689650 | I15: 257187039 | J15: 0 | K15: 4095253471 | M15: 1197166891 | N15: 1197166891 | O15: 0 | P15: 6363760527 | Q15: 6363760527 | R15: 0 | S15: 0 | T15: -5166593636 | V15: -1071340165
A16: 苗栗縣 | C16: 21259200703 | D16: 4796706627 | E16: 3903305901 | F16: 12559188175 | G16: 18324842549 | H16: 17695010909 | I16: 629831640 | J16: 0 | K16: 2934358154 | M16: 1135172760 | N16: 1135172760 | O16: 0 | P16: 8130739663 | Q16: 8130739663 | R16: 0 | S16: 0 | T16: -6995566903 | V16: -4061208749
A17: 彰化縣 | C17: 39891674962 | D17: 8413428341 | E17: 7885337076 | F17: 23592909545 | G17: 33351348049 | H17: 33098032540 | I17: 252010982 | J17: 1304527 | K17: 6540326913 | M17: 14831561 | N17: 14831561 | O17: 0 | P17: 7853588605 | Q17: 7711130153 | R17: 16229055 | S17: 126229397 | T17: -7838757044 | V17: -1298430131
A18: 南投縣 | C18: 23801844588 | D18: 4913935413 | E18: 5012102021 | F18: 13875807154 | G18: 17460226271 | H18: 17260220617 | I18: 200005654 | J18: 0 | K18: 6341618317 | M18: 18377372 | N18: 18377372 | O18: 0 | P18: 4231354878 | Q18: 4231354878 | R18: 0 | S18: 0 | T18: -4212977506 | V18: 2128640811
A19: 雲林縣 | C19: 25783105406 | D19: 5759589216 | E19: 5424601097 | F19: 14598915093 | G19: 20752757097 | H19: 20500311934 | I19: 252445163 | J19: 0 | K19: 5030348309 | M19: 257794000 | N19: 257794000 | O19: 0 | P19: 5879350436 | Q19: 5879350436 | R19: 0 | S19: 0 | T19: -5621556436 | V19: -591208127
A20: 嘉義縣 | C20: 21460857524 | D20: 3991998934 | E20: 3971523394 | F20: 13497335196 | G20: 17837374317 | H20: 17602865722 | I20: 234508595 | J20: 0 | K20: 3623483207 | M20: 50262388 | N20: 50262388 | O20: 0 | P20: 4072958261 | Q20: 4045918261 | R20: 27040000 | S20: 0 | T20: -4022695873 | V20: -399212666
A21: 屏東縣 | C21: 31382274686 | D21: 5903623474 | E21: 5920914169 | F21: 19557737043 | G21: 25378049130 | H21: 25071453248 | I21: 300000000 | J21: 6595882 | K21: 6004225556 | M21: 466719678 | N21: 465264031 | O21: 1455647 | P21: 5680187495 | Q21: 5414567099 | R21: 0 | S21: 265620396 | T21: -5213467817 | V21: 790757739
A22: 臺東縣 | C22: 13651004748 | D22: 1787086299 | E22: 2443939697 | F22: 9419978752 | G22: 11942095321 | H22: 11877303183 | I22: 64792138 | J22: 0 | K22: 1708909427 | M22: 122875561 | N22: 122875561 | O22: 0 | P22: 2271034742 | Q22: 2124574742 | R22: 160000 | S22: 146300000 | T22: -2148159181 | V22: -439249754
A23: 花蓮縣 | C23: 16815226073 | D23: 3318309117 | E23: 2965847375 | F23: 10531069581 | G23: 13571275219 | H23: 13448935691 | I23: 122339528 | J23: 0 | K23: 3243950854 | M23: 136045780 | N23: 136045780 | O23: 0 | P23: 3519395787 | Q23: 3519395787 | R23: 0 | S23: 0 | T23: -3383350007 | V23: -139399153
A24: 澎湖縣 | C24: 7903364168 | D24: 1217827660 | E24: 891324825 | F24: 5794211683 | G24: 6445129737 | H24: 6420274517 | I24: 24855220 | J24: 0 | K24: 1458234431 | M24: 54198920 | N24: 53130920 | O24: 1068000 | P24: 1930897803 | Q24: 1680518235 | R24: 247896650 | S24: 2482918 | T24: -1876698883 | V24: -418464452
A25: 基隆市 | C25: 16529938898 | D25: 3607678546 | E25: =3108684225+13365389 -> 3122049614 | F25: =9813576127-13365389 -> 9800210738 | G25: 13339738166 | H25: 13229388514 | I25: 110349652 | J25: 0 | K25: 3190200732 | M25: 143770269 | N25: 45356999 | O25: 98413270 | P25: 3326150538 | Q25: 3298495382 | R25: 0 | S25: 27655156 | T25: -3182380269 | V25: 7820463
A26: 新竹市 | C26: 16799894361 | D26: 6728488433 | E26: 3121793470 | F26: 6949612458 | G26: 13792179305 | H26: 13660404331 | I26: 131774974 | J26: 0 | K26: 3007715056 | M26: 113064152 | N26: 113064152 | O26: 0 | P26: 3055871064 | Q26: 3055871064 | R26: 0 | S26: 0 | T26: -2942806912 | V26: 64908144
A27: 嘉義市 | C27: 11058355963 | D27: 2942139038 | E27: 1966958934 | F27: 6149257991 | G27: 9340529789 | H27: 9327916164 | I27: 12613625 | J27: 0 | K27: 1717826174 | M27: 70232626 | N27: 70232626 | O27: 0 | P27: 1300547458 | Q27: 1300547458 | R27: 0 | S27: 0 | T27: -1230314832 | V27: 487511342
A28: 金門縣 | C28: 12367570118 | D28: 792061131 | E28: 1589521931 | F28: 9985987056 | G28: 8099382708 | H28: 8099382708 | I28: 0 | J28: 0 | K28: 4268187410 | M28: 2639000 | N28: 2639000 | O28: 0 | P28: 3312965160 | Q28: 2812965160 | R28: 500000000 | S28: 0 | T28: -3310326160 | V28: 957861250
A29: 連江縣 | C29: 3053480922 | D29: 173841427 | E29: 235359459 | F29: 2644280036 | G29: 1859561546 | H29: 1859561546 | I29: 0 | J29: 0 | K29: 1193919376 | M29: 0 | N29: 0 | O29: 0 | P29: 1171891195 | Q29: 1167805866 | R29: 0 | S29: 4085329 | T29: -1171891195 | V29: 22028181

Sheet 上融資 (hidden)
A1: 資料來源：取自104總預算彙編
A2: 收支簡明比較分析表
A3: 104年度總預算 | E3: 單位 : 新臺幣 千元
A4: 縣 市 | B4: 一.收入合計 | C4: (一)歲入 | D4: (二)債務之舉借 | E4: (三)預計移用以前年度歲計賸餘調節因應數 | F4: 二.支出合計 | G4: (一)歲出 | H4: (二)債務之償還
A5: 總 計 | B5: =SUM(B6:B27) -> 1297912459 | C5: 963323706 | D5: 328077628 | E5: 6511125 | F5: 1297912459 | G5: 1033174266 | H5: 264738193
A6: 新北市 | B6: 215257555 | C6: 140382724 | D6: 74874831 | F6: 215257555 | G6: 158371155 | H6: 56886400
A7: 臺北市 | B7: 165144077 | C7: 159058812 | D7: 0 | E7: 6085265 | F7: 165144077 | G7: 158544077 | H7: 6600000
A8: 桃園市 | B8: 108381295 | C8: 80518000 | D8: 27863295 | F8: 108381295 | G8: 91781295 | H8: 16600000
A9: 臺中市 | B9: 161751487 | C9: 94601136 | D9: 67150351 | F9: 161751487 | G9: 113555985 | H9: 48195502
A10: 臺南市 | B10: 104128044 | C10: 70813044 | D10: 33315000 | F10: 104128044 | G10: 76588044 | H10: 27540000
A11: 高雄市 | B11: 126925220 | C11: 111969145 | D11: 14956075 | F11: 126925220 | G11: 123425220 | H11: 3500000
A12: 宜蘭縣 | B12: 34657747 | C12: 19418129 | D12: 15239618 | E12: 0 | F12: 34657747 | G12: 19641386 | H12: 15016361
A13: 新竹縣 | B13: 39283359 | C13: 25673359 | D13: 13610000 | E13: 0 | F13: 39283359 | G13: 25673359 | H13: 13610000
A14: 苗栗縣 | B14: 33462719 | C14: 23975692 | D14: 9487027 | F14: 33462719 | G14: 23975692 | H14: 9487027
A15: 彰化縣 | B15: 45020388 | C15: 36496298 | D15: 8524090 | F15: 45020388 | G15: 38068721 | H15: 6951667
A16: 南投縣 | B16: 25219990 | C16: 20670440 | D16: 4549550 | E16: 0 | F16: 25219990 | G16: 20549550 | H16: 4670440
A17: 雲林縣 | B17: 41363001 | C17: 27115586 | D17: 14247415 | E17: 0 | F17: 41363001 | G17: 26765586 | H17: 14597415
A18: 嘉義縣 | B18: 32100000 | C18: 22450000 | D18: 9650000 | F18: 32100000 | G18: 22800000 | H18: 9300000
A19: 屏東縣 | B19: 38608940 | C19: 29960000 | D19: 8648940 | E19: 0 | F19: 38608940 | G19: 29960000 | H19: 8648940
A20: 臺東縣 | B20: 19550106 | C20: 12665885 | D20: 6884221 | F20: 19550106 | G20: 14340106 | H20: 5210000
A21: 花蓮縣 | B21: 21145683 | C21: 17145683 | D21: 4000000 | E21: 0 | F21: 21145683 | G21: 17145683 | H21: 4000000
A22: 澎湖縣 | B22: 10120574 | C22: 8186783 | D22: 1933791 | F22: 10120574 | G22: 9120574 | H22: 1000000
A23: 基隆市 | B23: 19577232 | C23: 16949927 | D23: 2627305 | F23: 19577232 | G23: 16303232 | H23: 3274000
A24: 新竹市 | B24: 27597663 | C24: 18095663 | D24: 9502000 | F24: 27597663 | G24: 18497663 | H24: 9100000
A25: 嘉義市 | B25: 11656026 | C25: 10841907 | D25: 814119 | E25: 0 | F25: 11656026 | G25: 11105585 | H25: 550441
A26: 金門縣 | B26: 14085772 | C26: 13668751 | D26: 0 | E26: 417021 | F26: 14085772 | G26: 14085772 | H26: 0
A27: 連江縣 | B27: 2875581 | C27: 2666742 | D27: 200000 | E27: 8839 | F27: 2875581 | G27: 2875581 | H27: 0

Sheet 前融資 (hidden)
A2: 收支簡明比較分析表
A3: 103年度總決算審定 | E3: 單位 : 新臺幣 元
A4: 縣 市 | B4: 一.收入合計 | C4: (一)歲入 | D4: (二)債務之舉借 | E4: (三)預計移用以前年度歲計賸餘調節因應數 | F4: 二.支出合計 | G4: (一)歲出 | H4: (二)債務之償還
A5: 總 計 | B5: 1223874165514 | C5: 981755104208 | D5: 242119061306 | E5: 0 | F5: 1212025627865 | G5: 999547302200 | H5: 212478325665
A6: 新北市 | B6: 201007267482 | C6: 142571741482 | D6: 58435526000 | E6: 0 | F6: 193473463926 | G6: 154473463926 | H6: 39000000000
A7: 臺北市 | B7: 188724222223 | C7: 188724222223 | D7: 0 | E7: 0 | F7: 184704327527 | G7: 167504327527 | H7: 17200000000
A8: 桃園縣 | B8: 64716718078 | C8: 56716718078 | D8: 8000000000 | E8: 0 | F8: 70435371005 | G8: 62760371005 | H8: 7675000000
A9: 臺中市 | B9: 138782952522 | C9: 99916972141 | D9: 38865980381 | E9: 0 | F9: 138782952522 | G9: 104869032822 | H9: 33913919700
A10: 臺南市 | B10: 97687355003 | C10: 71582555003 | D10: 26104800000 | E10: 0 | F10: 94666567383 | G10: 73521376929 | H10: 21145190454
A11: 高雄市 | B11: 130101424410 | C11: 116362372410 | D11: 13739052000 | E11: 0 | F11: 129407665661 | G11: 126265671271 | H11: 3141994390
A12: 宜蘭縣 | B12: 34125350401 | C12: 19458448633 | D12: 14666901768 | E12: 0 | F12: 33222805959 | G12: 19771999215 | H12: 13450806744
A13: 新竹縣 | B13: 37048297051 | C13: 22078297051 | D13: 14970000000 | E13: 0 | F13: 36519637216 | G13: 23149637216 | H13: 13370000000
A14: 苗栗縣 | B14: 31866373463 | C14: 22394373463 | D14: 9472000000 | E14: 0 | F14: 36248438212 | G14: 26455582212 | H14: 9792856000
A15: 彰化縣 | B15: 46906506523 | C15: 39906506523 | D15: 7000000000 | E15: 0 | F15: 45804936724 | G15: 41204936654 | H15: 4600000070
A16: 南投縣 | B16: 28220221960 | C16: 23820221960 | D16: 4400000000 | E16: 0 | F16: 26256021149 | G16: 21691581149 | H16: 4564440000
A17: 雲林縣 | B17: 39759746406 | C17: 26040899406 | D17: 13718847000 | E17: 0 | F17: 39029954533 | G17: 26632107533 | H17: 12397847000
A18: 嘉義縣 | B18: 30667369912 | C18: 21511119912 | D18: 9156250000 | E18: 0 | F18: 30855082578 | G18: 21910332578 | H18: 8944750000
A19: 屏東縣 | B19: 37554426030 | C19: 31848994364 | D19: 5705431666 | E19: 0 | F19: 36834019286 | G19: 31058236625 | H19: 5775782661
A20: 臺東縣 | B20: 17173880309 | C20: 13773880309 | D20: 3400000000 | E20: 0 | F20: 17269061727 | G20: 14213130063 | H20: 3055931664
A21: 花蓮縣 | B21: 21831271853 | C21: 16951271853 | D21: 4880000000 | E21: 0 | F21: 21990671006 | G21: 17090671006 | H21: 4900000000
A22: 澎湖縣 | B22: 9357563088 | C22: 7957563088 | D22: 1400000000 | E22: 0 | F22: 9776027540 | G22: 8376027540 | H22: 1400000000
A23: 基隆市 | B23: 20845924952 | C23: 16673709167 | D23: 4172215785 | E23: 0 | F23: 20042486173 | G23: 16665888704 | H23: 3376597469
A24: 新竹市 | B24: 20912958513 | C24: 16912958513 | D24: 4000000000 | E24: 0 | F24: 21093721435 | G24: 16848050369 | H24: 4245671066
A25: 嘉義市 | B25: 11160645295 | C25: 11128588589 | D25: 32056706 | E25: 0 | F25: 11168615694 | G25: 10641077247 | H25: 527538447
A26: 金門縣 | B26: 12370209118 | C26: 12370209118 | D26: 0 | E26: 0 | F26: 11412347868 | G26: 11412347868 | H26: 0
A27: 連江縣 | B27: 3053480922 | C27: 3053480922 | D27: 0 | E27: 0 | F27: 3031452741 | G27: 3031452741 | H27: 0
